Workbook

Sheet раскладка1-3
H1: "Утверждаю"
H2: Руководитель дошкольной образовательной
H3: организации
D5: Примерное 10 дневное меню
C6: для организации питания детей в дошкольных учреждениях
F7: с 8 -10,5 - часовым пребыванием
E8: от 1 до 3 лет
A9: День 1 - ий
A10: Наименование блюд и | C10: Масса | D10: Кол - во | E10: Кол - во | F10: Пищевые вещества | I10: Энергетическая | J10: Витамин | K10: № рецептуры
A11: продуктов | C11: порции | D11: (в гр ) | E11: (в гр ) | I11: ценность
D12: брутто | E12: нетто | F12: белки | G12: жиры | H12: угл-ды | I12: Ккал | J12: С
B13: ЗАВТРАК
A14: Макароны, запеченные с яйцом | C14: 83 | F14: 3.80 | G14: 5.10 | H14: 12.30 | I14: 110.30 | J14: 0.07 | K14: №262, справ.М.2003
B15: Макаронные изделия | D15: 20.00 | E15: 20.00
B16: Яйцо | D16: 13.00 | E16: 11.70
B17: Соль | D17: 0.40 | E17: 0.40
B18: Молоко | D18: 15.00 | E18: 15.00
B19: Масса полуфабриката | E19: 87.00
B20: Масло сливочное | D20: 3.00 | E20: 3.00
A21: Чай с молоком,сахаром | C21: 160/7 | F21: 2.60 | G21: 2.00 | H21: 11.90 | I21: 76.00 | J21: 1.20 | K21: №394Дели2010
B22: Заварка | D22: 0.5 | E22: 0.5
B23: Сахар | D23: 7 | E23: 7
B24: Молоко | D24: 92 | E24: 90
B25: Вода | D25: 70 | E25: 70
A26: Бутерброд с маслом сливочным | C26: 25/5 | F26: 1.9 | G26: 4.4 | H26: 13 | I26: 99 | K26: №1 Дели2010
B27: Батон нарезной | D27: 25 | E27: 25
B28: Масло сливочное | D28: 5 | E28: 5
A29: Фрукты свежие | C29: 70 | D29: 79.8 | E29: 70 | F29: 1.05 | G29: 0.35 | H29: 10.7 | I29: 50 | J29: 7 | K29: №368 Дели2010
A30: Итого: | C30: 350 | F30: =SUM(F13:F29) -> 9.4 | G30: =SUM(G13:G29) -> 11.9 | H30: =SUM(H13:H29) -> 47.9 | I30: =SUM(I13:I29) -> 335.3 | J30: =SUM(J13:J29) -> 8.3
B31: 2 - ой ЗАВТРАК
A32: Сок | C32: 90 | D32: 90 | E32: 90 | F32: 0.75 | G32: 0 | H32: 10 | I32: 43 | J32: 3 | K32: №399Дели2010
A33: Итого: | C33: 90 | F33: =SUM(F32) -> 0.75 | G33: =SUM(G32) -> 0.00 | H33: =SUM(H32) -> 10.00 | I33: =SUM(I32) -> 43.00 | J33: =SUM(J32) -> 3.00
B34: ОБЕД
A35: Огурцы порционно | C35: 50 | F35: 0.35 | G35: 0.05 | H35: 0.35 | I35: 3.50 | J35: 3.50 | K35: сб1996, стр564
B36: огурцы свежие | D36: 51.00 | E36: 50.00
A37: Суп с крупой и картофелем с мясом | C37: 150/10 | F37: 6 | G37: 4.5 | H37: 12 | I37: 112.5 | J37: 4.2 | K37: №138сбшк2004
B38: Говядина | D38: 22.00 | E38: 16.20
B39: Картофель | D39: 75.15 | E39: 45
B40: Крупа пшенная | D40: 6 | E40: 6
B41: Морковь | D41: 7.98 | E41: 6
B42: Лук репчатый | D42: 7.14 | E42: 6
B43: Масло растительное | D43: 3 | E43: 3
B44: Соль | D44: 0.6 | E44: 0.6
B45: Вода | D45: 108 | E45: 108
A46: Котлеты рубленые из говядины | C46: 55/2 | F46: 8.6 | G46: 8.5 | H46: 8.6 | I46: 145 | J46: 0.33 | K46: №451сбшк2004
B47: Говядина | D47: 55 | E47: 40.3
B48: Хлеб пшеничный 1с | D48: 10 | E48: 10
B49: Вода | D49: 13 | E49: 13
B50: Сухари панировочные | D50: 5.5 | E50: 5.5
B51: Масло растительное | D51: 2 | E51: 2
B52: Соль | D52: 0.5 | E52: 0.5
B53: Масса полуфабриката | E53: 68
B54: Масло сливочное | D54: 2 | E54: 2
A55: Капуста тушеная | C55: 130 | F55: 2.86 | G55: 4.2 | H55: 12.2 | I55: 98 | J55: 21.4 | K55: №534сбшк2004
B56: Капуста свежая | D56: 186.25 | E56: 149
B57: Лук репчатый | D57: 6.01 | E57: 5.2
B58: Морковь | D58: 3.46 | E58: 2.6
B59: Мука пшеничная | D59: 1.7 | E59: 1.7
B60: Масло растительное | D60: 1.7 | E60: 1.7
B61: Масло сливочное | D61: 2.2 | E61: 2.2
B62: Сахар | D62: 3.9 | E62: 3.9
B63: Соль | D63: 0.8 | E63: 0.8
A64: Кисель | C64: 130 | H64: 13.00 | I64: 52.00 | K64: №648сбшк2004
B65: Кисель-концентрат | D65: 15.20 | E65: 15.20
B66: Сахар | D66: 6.00 | E66: 6.00
B67: вода | D67: 130.00 | E67: 130.00
A68: Хлеб пшеничный 1с | C68: 15 | D68: 15 | E68: 15 | F68: 1.2 | G68: 0.15 | H68: 7.3 | I68: 36 | J68: 0
A69: Хлеб сельский | C69: 30 | D69: 30 | E69: 30 | F69: 1.5 | G69: 0.3 | H69: 14.3 | I69: 66
A70: Итого: | C70: 572 | F70: =SUM(F34:F69) -> 20.51 | G70: =SUM(G34:G69) -> 17.7 | H70: =SUM(H34:H69) -> 67.75 | I70: =SUM(I34:I69) -> 513 | J70: =SUM(J34:J69) -> 29.43
B71: ПОЛДНИК
A72: Пирожок печёный с повидлом | C72: 50 | F72: 3 | G72: 2.7 | H72: 22 | I72: 124.3 | J72: 0 | K72: №738сбшк2004
B73: Мука пшеничная | D73: 24 | E73: 24
B74: Масло сливочное | D74: 2 | E74: 2
B75: сахар | D75: 1.5 | E75: 1.5
B76: Яйцо | D76: 2.8 | E76: 2.5
B77: соль | D77: 0.7 | E77: 0.7
B78: вода | D78: 7 | E78: 7
B79: дрожжи сухие | D79: 0.2 | E79: 0.2
B80: тесто дрожжевое | E80: 36
B81: Масло растительное | D81: 0.1 | E81: 0.1
B82: повидло фруктовое | D82: 20 | E82: 20
A83: Кефир | C83: 130 | F83: 4 | G83: 3.25 | H83: 5.1 | I83: 65.5 | J83: 1.05 | K83: №401Дели2010
B84: кефир | D84: 134 | E84: 130
A85: Чай с сахаром и лимоном | C85: 100/4/2,5 | F85: 0.03 | G85: 0.01 | H85: 5.60 | I85: 22.75 | J85: 1.59 | K85: №393Дели2010
B86: Заварка | D86: 0.3 | E86: 0.3
B87: Сахар | D87: 4 | E87: 4
B88: лимон | D88: 2.8 | E88: 2.5
B89: Вода | D89: 100.0 | E89: 100.0
A90: Итого: | C90: 286.5 | F90: =SUM(F71:F89) -> 7.03 | G90: =SUM(G71:G89) -> 5.96 | H90: =SUM(H71:H89) -> 32.70 | I90: =SUM(I71:I89) -> 212.55 | J90: =SUM(J71:J89) -> 2.64
A91: ВСЕГО: | C91: =C30+C33+C70+C90 -> 1298.5 | F91: =F30+F33+F70+F90 -> 37.6 | G91: =G30+G33+G70+G90 -> 35.5 | H91: =H30+H33+H70+H90 -> 158.4 | I91: =I30+I33+I70+I90 -> 1103.9 | J91: =J30+J33+J70+J90 -> 43.3
A93: День 2- ый
A94: Наименование блюд и | C94: Масса | D94: Кол - во | E94: Кол - во | F94: Пищевые вещества | I94: Энергетическая | J94: Витамин | K94: № рецептуры
A95: продуктов | C95: порции | D95: (в гр ) | E95: (в гр ) | I95: ценность
D96: брутто | E96: нетто | F96: белки | G96: жиры | H96: угл-ды | I96: Ккал | J96: С
B97: ЗАВТРАК
A98: Каша манная молочная жидкая | C98: 150/4 | F98: 4.50 | G98: 4.50 | H98: 20.00 | I98: 138.50 | J98: 0.16 | K98: №311,сбшк2004
B99: Крупа манная | D99: 23.00 | E99: 23.00
B100: Молоко | D100: 132.00 | E100: 132.00
B101: Сахар | D101: 4.00 | E101: 4.00
B102: Соль | D102: 0.50 | E102: 0.50
B103: Масло сливочное | D103: 4 | E103: 4
A104: Какао с молоком | C104: 160 | F104: 2.00 | G104: 2.20 | H104: 11.30 | I104: 73.00 | J104: 0.32 | K104: №397Дели2010
B105: Какао-порошок | D105: 1.7 | E105: 1.7
B106: Сахар | D106: 8.3 | E106: 8.3
B107: Молоко | D107: 92 | E107: 92
B108: вода | D108: 77 | E108: 77
A109: Бутерброд с сыром, маслом | C109: 25/5/5 | F109: 3.50 | G109: 5.95 | H109: 12.90 | I109: 119.00 | J109: 0.15 | K109: №3Дели2010
B110: Батон нарезной | D110: 25 | E110: 25
B111: Сыр | D111: 5.1 | E111: 5
B112: Масло сливочное | D112: 5 | E112: 5
A113: Итого: | C113: 350 | F113: =SUM(F97:F112) -> 10.00 | G113: =SUM(G97:G112) -> 12.65 | H113: 44.20 | I113: 330.50 | J113: 0.63
B114: 2 - ой ЗАВТРАК
A115: Фрукты свежие | C115: 70 | D115: 79.8 | E115: 70 | F115: 0 | G115: 0 | H115: 2.3 | I115: 9.2 | J115: 7 | K115: №368 Дели2010
A116: Итого: | C116: 70 | F116: =SUM(F115) -> 0.00 | G116: =SUM(G115) -> 0.00 | H116: 2.30 | I116: 9.20 | J116: 7.00
B117: ОБЕД
A118: Икра кабачковая | C118: 40 | F118: 0.76 | G118: 3.56 | H118: 3.08 | I118: 47.60 | J118: 2.80
B119: икра кабачковая | D119: 42 | E119: 40
A120: Суп вермишелевый с картофелем, говядиной | C120: 150/10 | F120: 8.7 | G120: 5.2 | H120: 16 | I120: 145 | J120: 4 | K120: 140сбшк2004
B121: Говядина | D121: 22.00 | E121: 16.19
B122: Картофель | D122: 75.15 | E122: 45
B123: Морковь | D123: 7.98 | E123: 6
B124: Лук репчатый | D124: 7.14 | E124: 6
B125: Макаронные изделия | D125: 5 | E125: 5
B126: Масло растительное | D126: 3 | E126: 3
B127: Соль | D127: 1 | E127: 1
B128: Вода | D128: 114 | E128: 114
A129: Пудинг рыбный | C129: 80.00 | F129: 3.20 | G129: 5.20 | H129: 7.20 | I129: 88.00 | K129: ТТК №4
B130: рыба | D130: 70 | E130: 56
B131: Хлеб пшеничный 1с | D131: 10 | E131: 10
B132: яйцо | D132: 8 | E132: 7.2
B133: молоко | D133: 14 | E133: 14
B134: масло сливочное | D134: 3 | E134: 3
B135: соль | D135: 0.4 | E135: 0.4
B136: Масло растительное | D136: 1 | E136: 1
B137: Соус молочный
B138: молоко | D138: 13.5 | E138: 13.5
B139: масло сливочное | D139: 2 | E139: 2
B140: Мука пшеничная | D140: 2 | E140: 2
B141: Вода | D141: 3 | E141: 3
B142: Сахар | D142: 0.24 | E142: 0.24
B143: соль | D143: 0.2 | E143: 0.2
A144: Картофель тушёный | C144: 100 | F144: 1.87 | G144: 5.3 | H144: 8.2 | I144: 88 | J144: 7.3 | K144: №216сбшк2004
B145: Картофель | D145: 141.95 | E145: 85
B146: Лук репчатый | D146: 19.04 | E146: 16
B147: Морковь | D147: 13.3 | E147: 10
B148: Масло сливочное | D148: 2 | E148: 2
B149: Масло растительное | D149: 0.6 | E149: 0.6
B150: Соль | D150: 0.6 | E150: 0.6
A151: Компот из свежих яблок | C151: 130 | F151: 0.10 | G151: 0.10 | H151: 10.20 | I151: 42.00 | J151: 1.20 | K151: №372Дели2010
B152: Яблоки | D152: 29.64 | E152: 26
B153: Сахар | D153: 8.6 | E153: 8.6
B154: Вода | D154: 112 | E154: 112
A155: Хлеб сельский | C155: 30 | D155: 30 | E155: 30 | F155: 1.5 | G155: 0.3 | H155: 14.3 | I155: 65.9
A156: Итого: | C156: 540 | F156: =SUM(F117:F155) -> 16.1 | G156: =SUM(G117:G155) -> 19.7 | H156: =SUM(H117:H155) -> 59.0 | I156: =SUM(I117:I155) -> 476.5 | J156: =SUM(J117:J155) -> 15.3
B157: ПОЛДНИК
A158: Ряженка | C158: 130 | F158: 3.5 | G158: 3.2 | H158: 3.2 | I158: 55 | J158: 0.68 | K158: №400Дели2010
B159: ряженка | D159: 134 | E159: 130.0
A160: салат из моркови припущенной | C160: 50/2 | F160: 0.75 | G160: 0.06 | H160: 8.00 | I160: 35.50 | J160: 1.90 | K160: №41 Дели2010
B161: Морковь | D161: 66.5 | E161: 50
B162: Сахар | D162: 2 | E162: 2
A163: Суфле из творога с повидлом | C163: 90/10 | F163: 12.0 | G163: 6.0 | H163: 22.0 | I163: 190 | J163: 0.3 | K163: №365сбшк2004
B164: Творог | D164: 65 | E164: 64
B165: Мука пшеничная | D165: 7 | E165: 7
B166: Яйцо | D166: 5 | E166: 4.5
B167: Сахар | D167: 6 | E167: 6
B168: Молоко | D168: 12.8 | E168: 12.8
B169: Сметана | D169: 8.1 | E169: 8.1
B170: соль | D170: 0.2 | E170: 0.2
B171: Масло растительное | D171: 0.6 | E171: 0.6
B172: Повидло фруктовое | D172: 10 | E172: 10
A173: Чай с сахаром | C173: 100/4 | F173: 0.05 | G173: 0.01 | H173: 5.4 | I173: 21.9 | K173: №392Дели2010
B174: Заварка | D174: 0.3 | E174: 0.3
B175: Сахар | D175: 4 | E175: 4
B176: Вода | D176: 100 | E176: 100
A177: Хлеб пшеничный 1с | C177: 20 | D177: 20 | E177: 20 | F177: 1.6 | G177: 0.2 | H177: 9.8 | I177: 47 | J177: 0
A178: Итого: | C178: 406 | F178: =SUM(F157:F177) -> 17.9 | G178: =SUM(G157:G177) -> 9.5 | H178: =SUM(H157:H177) -> 48.4 | I178: =SUM(I157:I177) -> 349.4 | J178: =SUM(J157:J177) -> 2.9
A179: ВСЕГО: | C179: =C113+C116+C156+C178 -> 1366 | F179: =F113+F116+F156+F178 -> 44.0 | G179: =G113+G116+G156+G178 -> 41.8 | H179: =H113+H116+H156+H178 -> 153.9 | I179: =I113+I116+I156+I178 -> 1165.6 | J179: =J113+J116+J156+J178 -> 25.8
A181: День 3 - ий
A182: Наименование блюд и | C182: Масса | D182: Кол - во | E182: Кол - во | F182: Пищевые вещества | I182: Энергетическая | J182: Витамин | K182: № рецептуры
A183: продуктов | C183: порции | D183: (в гр ) | E183: (в гр ) | I183: ценность
D184: брутто | E184: нетто | F184: белки | G184: жиры | H184: угл-ды | I184: Ккал | J184: С
B185: ЗАВТРАК
A186: Каша Геркулесовая молочная с маслом | C186: 150/4 | F186: 4.75 | G186: 4.30 | H186: 14.00 | I186: 114.00 | J186: 0.21 | K186: №311 сбшк2004
B187: Крупа Геркулесовая | D187: 23 | E187: 23
B188: Молоко | D188: 100 | E188: 100
B189: вода | D189: 33 | E189: 33
B190: Сахар | D190: 4 | E190: 4
B191: Соль | D191: 0.5 | E191: 0.5
B192: Масло сливочное | D192: 4 | E192: 4
A193: Кофейный напиток с молоком | C193: 165 | F193: 1 | G193: 1.2 | H193: 10 | I193: 55 | J193: 0.16 | K193: №395Дели2010
B194: Кофейный напиток | D194: 2.5 | E194: 2.5
B195: Сахар | D195: 7.7 | E195: 7.7
B196: Молоко | D196: 75 | E196: 75
B197: вода | D197: 106 | E197: 106
A198: Бутерброд с маслом сливочным | C198: 25/5 | F198: 1.9 | G198: 4.4 | H198: 13 | I198: 99 | K198: №1 Дели2010
B199: Батон нарезной | D199: 25 | E199: 25
B200: Масло сливочное | D200: 5 | E200: 5
A201: Итого: | C201: 350 | F201: =SUM(F185:F200) -> 7.65 | G201: =SUM(G185:G200) -> 9.9 | H201: 37 | I201: 268 | J201: 0.374
B202: 2 - ой ЗАВТРАК
A203: Сок | C203: 90 | D203: 90 | E203: 90 | F203: 0.75 | G203: 0 | H203: 10 | I203: 43 | J203: 3 | K203: №399Дели2010
... 728 more rows

Sheet меню3-7
F1: "Утверждаю"
F2: Руководитель дошкольной образовательной
F3: организации
D9: Примерное 10 дневное меню
C10: для организации питания детей в дошкольных учреждениях
F11: с 8 -10,5 - часовым пребыванием
A12: День 1 - ый | E12: от 3 до 7 лет
A13: Наименование блюд и | C13: Масса | D13: Пищевые вещества | G13: Энергетическая | H13: витамин | I13: Сборник рецептур
A14: продуктов | C14: порции | G14: ценность
D15: белки | E15: жиры | F15: угл-ды | G15: Ккал | H15: С
B16: ЗАВТРАК
A17: Макароны, запеченные с яйцом | C17: 130/4 | D17: 6.20 | E17: 8.30 | F17: 20.00 | G17: 179.50 | H17: 0.12 | I17: №262,справ.М2003
A18: Чай с сахаром и молоком | C18: 180/10 | D18: 2.60 | E18: 2.30 | F18: 14.30 | G18: 89.00 | H18: 1.20 | I18: № 394 Дели2010
A19: Бутерброд с маслом сливочным | C19: 30/5 | D19: 2.30 | E19: 4.50 | F19: 15.40 | G19: 111.00 | I19: №1 Дели2010
A20: Фрукты свежие | C20: 70 | D20: 1.05 | E20: 0.35 | F20: 14.7 | G20: 67 | H20: 7 | I20: №368 Дели2010
A21: Итого: | C21: 429 | D21: =SUM(D16:D20) -> 12.15 | E21: =SUM(E16:E20) -> 15.45 | F21: =SUM(F16:F20) -> 64.40 | G21: =SUM(G16:G20) -> 446.50 | H21: =SUM(H16:H20) -> 8.32
B22: 2 - ой ЗАВТРАК
A23: Сок | C23: 90 | D23: 0.3 | E23: 0.00 | F23: 10.80 | G23: 44 | H23: 11.00 | I23: №399,Дели2010
A24: Итого: | C24: 90 | D24: =SUM(D23) -> 0.30 | E24: =SUM(E23) -> 0.00 | F24: 10.80 | G24: 44.00 | H24: 11.00
B25: ОБЕД
A26: Огурцы порционно | C26: 60 | D26: 0.42 | E26: 0.06 | F26: 1.14 | G26: 6.80 | H26: 4.20 | I26: сб1996, стр564
A27: Суп с крупой и картофелем с мясом | C27: 200/10 | D27: 7.00 | E27: 5.00 | F27: 16.10 | G27: 137.50 | H27: 5.60 | I27: №138, сб шк2004
A28: Котлеты рубленые из говядины | C28: 70/4 | D28: 11.00 | E28: 10.80 | F28: 10.90 | G28: 184.00 | H28: 0.42 | I28: №451сбшк2004
A29: Капуста тушеная | C29: 150 | D29: 3.30 | E29: 4.90 | F29: 16.10 | G29: 121.00 | H29: 24.70 | I29: №534сб шк2004
A30: Кисель | C30: 150 | F30: 18.00 | G30: 71.00 | I30: № 648, сб шк2004
A31: Хлеб сельский | C31: 37.5 | D31: 1.8 | E31: 0.4 | F31: 18 | G31: 82.5
A32: Итого: | C32: 681.5 | D32: =SUM(D25:D31) -> 23.52 | E32: =SUM(E25:E31) -> 21.16 | F32: =SUM(F25:F31) -> 80.24 | G32: =SUM(G25:G31) -> 602.8 | H32: =SUM(H25:H31) -> 34.92
B33: ПОЛДНИК
A34: Пирожок печёный с повидлом | C34: 60 | D34: 3.4 | E34: 2.9 | F34: 24.1 | G34: 136 | H34: 0 | I34: №738сбшк2004
A35: Кефир | C35: 150 | D35: 4.35 | E35: 3.8 | F35: 6.0 | G35: 80 | H35: 1.05 | I35: №401Дели2010
A36: Кондитерские изделия | C36: 15 | D36: 0.9 | E36: 3.5 | F36: 11.0 | G36: 79
A37: Чай с сахаром и лимоном | C37: 120/5/3 | D37: 0.08 | E37: 0.01 | F37: 6.80 | G37: 27.30 | H37: 1.90 | I37: №393Дели2010
A38: Итого: | C38: 350 | D38: =SUM(D33:D37) -> 8.73 | E38: =SUM(E33:E37) -> 10.16 | F38: =SUM(F33:F37) -> 47.9 | G38: =SUM(G33:G37) -> 322.3 | H38: =SUM(H33:H37) -> 2.95
A40: ВСЕГО: | C40: =C21+C24+C32+C38 -> 1550.5 | D40: 44.70 | E40: 46.77 | F40: 203.34 | G40: 1415.60 | H40: 57.19
A42: День 2- ой
A43: Наименование блюд и | C43: Масса | D43: Пищевые вещества | G43: Энергетическая | H43: витамин | I43: №рецептуры
A44: продуктов | C44: порции | G44: ценность
D45: белки | E45: жиры | F45: угл-ды | G45: Ккал | H45: С
B46: ЗАВТРАК
A47: Каша манная молочная жидкая | C47: 200/5 | D47: 6.00 | E47: 8.20 | F47: 28.00 | G47: 209.50 | H47: 0.22 | I47: №311,сбшк2004
A48: Какао с молоком | C48: 180 | D48: 2.10 | E48: 2.58 | F48: 13.60 | G48: 86.00 | H48: 0.39 | I48: №397 Дели2010
A49: Бутерброд с сыром, маслом | C49: 30/7/5 | D49: 4.80 | E49: 7.20 | F49: 15.40 | G49: 146.00 | H49: 0.19 | I49: №3 Дели2010
A50: Итого: | C50: 427 | D50: =SUM(D46:D49) -> 12.90 | E50: =SUM(E46:E49) -> 17.98 | F50: =SUM(F46:F49) -> 57.00 | G50: =SUM(G46:G49) -> 441.50 | H50: =SUM(H46:H49) -> 0.80
B51: 2 - ой ЗАВТРАК
A52: Фрукты свежие | C52: 70 | D52: 0.1 | E52: 0.10 | F52: 2.80 | G52: 12 | H52: 7.50 | I52: №368 Дели2010
A53: Итого: | C53: 70 | D53: =SUM(D52) -> 0.10 | E53: =SUM(E52) -> 0.10 | F53: 2.80 | G53: 12.00 | H53: 7.50
B54: ОБЕД
A55: Икра кабачковая | C55: 50 | D55: 0.95 | E55: 4.45 | F55: 3.85 | G55: 59.00 | H55: 3.50
A56: Суп вермишелевый с картофелем, говядиной | C56: 200/10 | D56: 8.42 | E56: 5.34 | F56: 21.10 | G56: 166 | H56: 5.30 | I56: 140,сбшк2004
A57: Пудинг рыбный | C57: 100.00 | D57: 9.10 | E57: 5.00 | F57: 10.80 | G57: 124.00 | I57: ТТК №4
A58: Картофель тушёный | C58: 150 | D58: 2.8 | E58: 8 | F58: 12.4 | G58: 132 | H58: 11 | I58: №216сбшк2004
A59: Компот из свежих яблок | C59: 150 | D59: 0.10 | E59: 0.10 | F59: 11.80 | G59: 47.00 | H59: 1.20 | I59: № 372 Дели2010
A60: Хлеб пшеничный 1с | C60: 30 | D60: 1.5 | E60: 0.3 | F60: 14.4 | G60: 66 | H60: 0
A61: Хлеб сельский | C61: 37.5 | D61: 1.8 | E61: 0.4 | F61: 18 | G61: 82.5
A62: Итого: | C62: 577.5 | D62: =SUM(D54:D61) -> 24.67 | E62: =SUM(E54:E61) -> 23.59 | F62: =SUM(F54:F61) -> 92.35 | G62: =SUM(G54:G61) -> 676.5 | H62: =SUM(H54:H61) -> 21
B63: ПОЛДНИК
A64: Ряженка | C64: 150 | D64: 2.1 | E64: 3.2 | F64: 6.3 | G64: 66 | H64: 0.78 | I64: №400Дели2010
A65: Салат из моркови припущенной | C65: 60/3 | D65: 0.90 | E65: 0.08 | F65: 9.60 | G65: 42.00 | H65: 2.28 | I65: №41 Дели2010
A66: Суфле из творога с повидлом | C66: 105/20 | D66: 13.30 | E66: 6.50 | F66: 18.00 | G66: 183.00 | H66: 0.30 | I66: №365сбшк2004
A67: Кондитерские изделия | C67: 15 | D67: 0.3 | E67: 0.1 | F67: 5.0 | G67: 22
A68: Чай с сахаром | C68: 120/5 | D68: 0.05 | E68: 0.01 | F68: 6.5 | G68: 26 | I68: №392Дели2010
A69: Итого: | C69: 478 | D69: =SUM(D63:D68) -> 16.65 | E69: =SUM(E63:E68) -> 9.885 | F69: =SUM(F63:F68) -> 45.4 | G69: =SUM(G63:G68) -> 339 | H69: =SUM(H63:H68) -> 3.36
A70: ВСЕГО: | C70: =C50+C53+C62+C69 -> 1552.5 | D70: 54.32 | E70: 51.56 | F70: 197.55 | G70: 1469.00 | H70: 32.66
A72: День 3 - ий
A73: Наименование блюд и | C73: Масса | D73: Пищевые вещества | G73: Энергетическая | H73: витамин | I73: № рецептуры
A74: продуктов | C74: порции | G74: ценность
D75: белки | E75: жиры | F75: угл-ды | G75: Ккал | H75: С
B76: ЗАВТРАК
A77: Каша Геркулесовая молочная с маслом | C77: 200/5 | D77: 6.70 | E77: 9.80 | F77: 23.00 | G77: 207.00 | H77: 0.23 | I77: №311, сбшк2004
A78: Кофейный напиток с молоком | C78: 180 | D78: 1.20 | E78: 1.34 | F78: 12.00 | G78: 65.00 | H78: 0.19 | I78: №395 Дели2010
A79: Бутерброд с маслом сливочным | C79: 30/5 | D79: 2.30 | E79: 4.50 | F79: 15.40 | G79: 111.00 | I79: №1 Дели2010
A80: Итого: | C80: 420 | D80: =SUM(D76:D79) -> 10.20 | E80: =SUM(E76:E79) -> 15.64 | F80: =SUM(F76:F79) -> 50.40 | G80: =SUM(G76:G79) -> 383.00 | H80: =SUM(H76:H79) -> 0.42
B81: 2 - ой ЗАВТРАК
A82: Сок | C82: 90 | D82: 0.75 | E82: 0.00 | F82: 8.00 | G82: 35 | H82: 3.00 | I82: №399,Дели2010
A83: Итого: | C83: 90 | D83: =SUM(D82) -> 0.75 | E83: =SUM(E82) -> 0.00 | F83: 8.00 | G83: 35.00 | H83: 3.00
B84: ОБЕД
A85: Помидоры порционно | C85: 60 | D85: 0.75 | E85: 0.06 | F85: 8.50 | G85: 38.29 | H85: 1.90 | I85: сб1996, стр563
A86: Суп картофельный с горохом с мясными фрикадельками | C86: 200/20 | D86: 9.9 | E86: 6.70 | F86: 15.90 | G86: 164 | H86: 5.88 | I86: №139,сб шк2004
A88: Биточки куриные "Солнышко" | C88: 80 | D88: 11.00 | E88: 8.93 | F88: 9.00 | G88: 160.00 | H88: 0.45 | I88: акт к.п.от 07.02.14
A89: Рагу овощное | C89: 180 | D89: 3.60 | E89: 6.60 | F89: 14.40 | G89: 131.00 | H89: 8.90 | I89: №224, сбшк2004
A90: Компот из кураги | C90: 150 | D90: 0.7 | E90: 0.0 | F90: 20.0 | G90: 83 | H90: 0.13 | I90: №376, Дели 2010
A91: Хлеб пшеничный 1с | C91: 15 | D91: 0.75 | E91: 0.2 | F91: 7.2 | G91: 33 | H91: 0
A92: Хлеб сельский | C92: 37.5 | D92: 1.8 | E92: 0.4 | F92: 18 | G92: 82.5
A93: Итого: | C93: 742.5 | D93: =SUM(D84:D92) -> 28.5 | E93: =SUM(E84:E92) -> 22.84 | F93: =SUM(F84:F92) -> 93 | G93: =SUM(G84:G92) -> 691.79 | H93: =SUM(H84:H92) -> 17.26
B94: ПОЛДНИК
A95: Фрукты свежие | C95: 70 | D95: 0.3 | E95: 0.23 | F95: 5.73 | G95: 23 | H95: 3.75 | I95: №368 Дели2010
A96: Катык | C96: 150 | D96: 4.10 | E96: 3.50 | F96: 5.60 | G96: 70.00 | H96: 0.90 | I96: №401 Дели2010
A97: Булочка Домашняя | C97: 50 | D97: 3.60 | E97: 5.70 | F97: 27.10 | G97: 175.00 | H97: 0.00 | I97: №769,сбшк2004
A98: Кондитерские изделия | C98: 15 | D98: 0.42 | E98: 0.5 | F98: 5.0 | G98: 26
A99: Чай с молоком,сахаром | C99: 120/5 | D99: 2.10 | E99: 1.60 | F99: 9.50 | G99: 61.00 | H99: 0.93 | I99: №394Дели2010
A100: Итого: | C100: 410 | D100: =SUM(D94:D99) -> 10.52 | E100: =SUM(E94:E99) -> 11.53 | F100: =SUM(F94:F99) -> 52.93 | G100: =SUM(G94:G99) -> 355.00 | H100: =SUM(H94:H99) -> 5.58
A102: ВСЕГО: | C102: =C80+C83+C93+C100 -> 1662.5 | D102: 49.97 | E102: 50.01 | F102: 204.33 | G102: 1464.79 | H102: 26.26
A106: День 4 - ый
A107: Наименование блюд и | C107: Масса | D107: Пищевые вещества | G107: Энергетическая | H107: витамин | I107: № рецептуры
A108: продуктов | C108: порции | G108: ценность
D109: белки | E109: жиры | F109: угл-ды | G109: Ккал | H109: С
B110: ЗАВТРАК
A111: Суп молочный с макаронными изделиями | C111: 180 | D111: 3.90 | E111: 5.00 | F111: 16.00 | G111: 124.50 | H111: 0.50 | I111: №160,сбшк2004
A112: Чай с сахаром | C112: 180/10 | D112: 0.10 | E112: 0.02 | F112: 10.00 | G112: 40.00 | I112: № 392 Дели 2010
A113: Бутерброд с сыром, маслом | C113: 30/7/5 | D113: 4.80 | E113: 7.20 | F113: 15.40 | G113: 146.00 | H113: 0.19 | I113: №3 Дели2010
A114: Итого: | C114: 412 | D114: =SUM(D110:D113) -> 8.8 | E114: =SUM(E110:E113) -> 12.22 | F114: =SUM(F110:F113) -> 41.4 | G114: =SUM(G110:G113) -> 310.5 | H114: =SUM(H110:H113) -> 0.69
B115: 2 - ой ЗАВТРАК
A116: Сок | C116: 90 | D116: 0.45 | E116: 0.00 | F116: 17.00 | G116: 69 | H116: 3.00 | I116: №399,Дели2010
A117: Итого: | C117: 90 | D117: =SUM(D116) -> 0.45 | E117: =SUM(E116) -> 0 | F117: 17 | G117: 69 | H117: 3
B118: ОБЕД
A119: Огурцы порционно | C119: 60 | D119: 0.42 | E119: 0.06 | F119: 1.14 | G119: 6.80 | H119: 4.20 | I119: сб1996, стр564
A120: Щи со свежей капустой, картофелем на м/б,со сметаной | C120: 200/7 | D120: 1.40 | E120: 4.50 | F120: 6.80 | G120: 73.00 | H120: 9.60 | I120: №124,сбшк2004
A121: Гуляш из отварной говядины | C121: 45/45 | D121: 12.00 | E121: 12.00 | F121: 3.00 | G121: 168.00 | H121: 0.38 | I121: №141,сб.диет2002
A122: Каша гречневая вязкая | C122: 205 | D122: 7.30 | E122: 5.60 | F122: 44.00 | G122: 255.00 | I122: №297,сбшк2004
A124: Кисель | C124: 150 | F124: 18.00 | G124: 71.00 | I124: № 648, сб шк2004
A125: Хлеб пшеничный 1с | C125: 15 | D125: 0.75 | E125: 0.2 | F125: 7.2 | G125: 33 | H125: 0
A126: Хлеб сельский | C126: 37.5 | D126: 1.8 | E126: 0.4 | F126: 18 | G126: 82.5
A127: Итого: | C127: 764.5 | D127: =SUM(D118:D126) -> 23.67 | E127: =SUM(E118:E126) -> 22.71 | F127: =SUM(F118:F126) -> 98.14 | G127: =SUM(G118:G126) -> 689.30 | H127: =SUM(H118:H126) -> 14.18
B128: ПОЛДНИК
A129: Фрукты свежие | C129: 70 | D129: 0.1 | E129: 0.09 | F129: 12.8 | G129: 52 | H129: 29.4 | I129: №368 Дели2010
A130: Кефир | C130: 150 | D130: 4.35 | E130: 3.8 | F130: 6.0 | G130: 80 | H130: 1.05 | I130: №401Дели2010
A131: Запеканка картофельная с овощами,соусом | C131: 100/20 | D131: 3.50 | E131: 6.00 | F131: 10.90 | G131: 112.00 | H131: 0.01 | I131: №293, справ.М.2003
A132: Напиток из плодов шиповника | C132: 120 | D132: 0.36 | E132: 0.15 | F132: 11.28 | G132: 47.88 | H132: 48.8 | I132: №398Дели2010
A133: Хлеб пшеничный 1с | C133: 15 | D133: 0.75 | E133: 0.2 | F133: 7.2 | G133: 33 | H133: 0
A134: Итого: | C134: 475 | D134: =SUM(D128:D133) -> 9.06 | E134: =SUM(E128:E133) -> 10.14 | F134: =SUM(F128:F133) -> 48.18 | G134: =SUM(G128:G133) -> 324.88 | H134: =SUM(H128:H133) -> 79.26
A136: ВСЕГО: | C136: =C114+C117+C127+C134 -> 1741.5 | D136: 41.98 | E136: 45.07 | F136: 204.72 | G136: 1393.68 | H136: 97.13
A139: День 5 - ый
A140: Наименование блюд и | C140: Масса | D140: Пищевые вещества | G140: Энергетическая | H140: витамин | I140: №рецептуры
A141: продуктов | C141: порции | G141: ценность
D142: белки | E142: жиры | F142: угл-ды | G142: Ккал | H142: С
B143: ЗАВТРАК
A144: Каша рисовая молочная с маслом | C144: 200/5 | D144: 5.89 | E144: 5.42 | F144: 25.84 | G144: 176.00 | H144: 0.21 | I144: №311,сбшк2004
A145: Какао с молоком | C145: 180 | D145: 2.10 | E145: 2.58 | F145: 13.60 | G145: 88.30 | H145: 0.39 | I145: №397 Дели2010
A146: Бутерброд с маслом сливочным | C146: 30/5 | D146: 2.30 | E146: 4.50 | F146: 15.40 | G146: 111.00 | I146: №1 Дели2010
A147: Итого: | C147: 420 | D147: =SUM(D143:D146) -> 10.29 | E147: =SUM(E143:E146) -> 12.50 | F147: =SUM(F143:F146) -> 54.84 | G147: =SUM(G143:G146) -> 375.30 | H147: =SUM(H143:H146) -> 0.61
B148: 2 - ой ЗАВТРАК
A149: Фрукты свежие | C149: 70 | D149: 0.1 | E149: 0.10 | F149: 4.60 | G149: 21 | H149: 7.50 | I149: №368 Дели2010
A150: Итого: | C150: 70 | D150: =SUM(D149) -> 0.10 | E150: =SUM(E149) -> 0.10 | F150: 4.60 | G150: 21.00 | H150: 7.50
B151: ОБЕД
A152: Икра кабачковая | C152: 50 | D152: 0.95 | E152: 4.45 | F152: 3.85 | G152: 59.50 | H152: 3.50
A153: Суп крестьянский с курицей, сметаной | C153: 200/20/6 | D153: 5.69 | E153: 6.10 | F153: 9.42 | G153: 115 | H153: 4.97 | I153: №134 сбшк2004
A154: Тефтели рыбные в сметанно-томатном соусе | C154: 80/40 | D154: 12.50 | E154: 6.00 | F154: 13.00 | G154: 156.00 | I154: ТТК №1
A155: Пюре Картофельное | C155: 100 | D155: 2.10 | E155: 3.00 | F155: 14.00 | G155: 91.00 | H155: 6.95 | I155: №520,сбшк2004
A156: Компот из сухофруктов | C156: 150 | D156: 0.70 | E156: 0.04 | F156: 20.60 | G156: 85.00 | H156: 0.30 | I156: № 376 Дели2010
A157: Хлеб пшеничный 1с | C157: 15 | D157: 0.75 | E157: 0.2 | F157: 7.2 | G157: 33 | H157: 0
A158: Хлеб сельский | C158: 37.5 | D158: 1.8 | E158: 0.4 | F158: 18 | G158: 82.5
A159: Итого: | C159: 698.5 | D159: =SUM(D151:D158) -> 24.49 | E159: =SUM(E151:E158) -> 20.14 | F159: =SUM(F151:F158) -> 86.07 | G159: =SUM(G151:G158) -> 622 | H159: =SUM(H151:H158) -> 15.72
B160: ПОЛДНИК
A161: Ряженка | C161: 150 | D161: 2.1 | E161: 3.8 | F161: 6.3 | G161: 67 | H161: 0.78 | I161: №400Дели2010
A162: Морковь отварная | C162: 60 | D162: 0.4 | E162: 0.1 | F162: 3.4 | G162: 15 | H162: 0.61 | I162: сб1996,стр562
A163: Пудинг творожный | C163: 150/25 | D163: 17.00 | E163: 10.60 | F163: 32.00 | G163: 291.00 | H163: 18.20 | I163: №349, справ М 2003
A164: Кондитерские изделия | C164: 24 | D164: 0.56 | E164: 3.00 | F164: 6.00 | G164: 53.00
A165: (вафли)
A166: Чай с сахаром | C166: 120/5 | D166: 0.05 | E166: 0.01 | F166: 6.5 | G166: 26 | I166: №392Дели2010
A167: Итого: | C167: 534 | D167: =SUM(D161:D166) -> 20.11 | E167: =SUM(E161:E166) -> 17.42 | F167: =SUM(F161:F166) -> 54.2 | G167: =SUM(G161:G166) -> 452.4 | H167: =SUM(H161:H166) -> 19.59
A168: ВСЕГО: | C168: =C147+C150+C159+C167 -> 1722.5 | D168: 54.99 | E168: 50.16 | F168: 199.71 | G168: 1470.70 | H168: 43.42
C170: 2 НЕДЕЛЯ
A172: День 6 - ой
A173: Наименование блюд и | C173: Масса | D173: Пищевые вещества | G173: Энергетическая | H173: витамин | I173: №рецептуры
A174: продуктов | C174: порции | G174: ценность
D175: белки | E175: жиры | F175: угл-ды | G175: Ккал | H175: С
B176: ЗАВТРАК
A177: Каша пшённая молочная с маслом | C177: 200/5 | D177: 7.30 | E177: 9.00 | F177: 32.90 | G177: 241.00 | H177: 0.21 | I177: №311,сбшк2004
A178: Кофейный напиток с молоком | C178: 180 | D178: 1.20 | E178: 1.34 | F178: 12.00 | G178: 65.00 | H178: 0.19 | I178: №395 Дели2010
A179: Бутерброд с сыром, маслом | C179: 30/7/5 | D179: 4.80 | E179: 7.20 | F179: 15.40 | G179: 146.00 | H179: 0.19 | I179: №3 Дели2010
A180: Итого: | C180: 427 | D180: =SUM(D176:D179) -> 13.30 | E180: =SUM(E176:E179) -> 17.54 | F180: =SUM(F176:F179) -> 60.30 | G180: =SUM(G176:G179) -> 452.00 | H180: =SUM(H176:H179) -> 0.59
B181: 2 - ой ЗАВТРАК
A182: Сок | C182: 90 | D182: 0.23 | E182: 0.15 | F182: 3.20 | G182: 15 | H182: 1.50 | I182: №399 Дели2010
A183: Итого: | C183: 90 | D183: =SUM(D182) -> 0.23 | E183: =SUM(E182) -> 0.15 | F183: 3.20 | G183: 15.00 | H183: 1.50
B184: ОБЕД
A185: Помидоры порционно | C185: 60 | D185: 0.75 | E185: 0.06 | F185: 8.50 | G185: 38.29 | H185: 1.90 | I185: сб1996, стр563
A186: Свекольник с мясными фрикадельками, со сметаной | C186: 200/20/6 | D186: 9.30 | E186: 8.10 | F186: 14.90 | G186: 169.00 | H186: 6.36 | I186: №35,сб Пермь2001
A187: Биточки рубленые из рыбы | C187: 80 | D187: 11.90 | E187: 5.00 | F187: 3.98 | G187: 108.00 | I187: ТТК №3
A188: Макароны отварные | C188: 100 | D188: 3.6 | E188: 2.80 | F188: 22.60 | G188: 129 | I188: №332,сбшк2004
A189: Компот из свежих яблок | C189: 150 | D189: 0.10 | E189: 0.10 | F189: 11.80 | G189: 47.00 | H189: 1.20 | I189: № 372 Дели2010
A190: Хлеб пшеничный 1с | C190: 30 | D190: 1.5 | E190: 0.3 | F190: 14.4 | G190: 66 | H190: 0.00
A191: Хлеб сельский | C191: 37.5 | D191: 1.8 | E191: 0.4 | F191: 18 | G191: 82.5
A192: Итого: | C192: 683.5 | D192: =SUM(D184:D191) -> 28.95 | E192: =SUM(E184:E191) -> 16.76 | F192: =SUM(F184:F191) -> 94.18 | G192: =SUM(G184:G191) -> 639.49 | H192: =SUM(H184:H191) -> 9.46
B193: ПОЛДНИК
A194: Фрукты свежие | C194: 70 | D194: 0.3 | E194: 0.30 | F194: 2.30 | G194: 13 | H194: 7.50 | I194: №368 Дели2010
A195: Катык | C195: 150 | D195: 4.35 | E195: 3.8 | F195: 6.0 | G195: 75 | H195: 1.05 | I195: №401Дели2010
A196: Плюшка новомосковская | C196: 70 | D196: 3.20 | E196: 4.10 | F196: 20.00 | G196: 130.00 | H196: 0.02 | I196: №184
A197: Кондитерские изделия | C197: 15 | D197: 1.89 | E197: 5.0 | F197: 4.0 | G197: 69
A198: (печенье)
A199: Чай с молоком,сахаром | C199: 120/5 | D199: 2.10 | E199: 1.60 | F199: 9.50 | G199: 61.00 | H199: 0.93 | I199: №394Дели2010
A200: Итого: | C200: 430 | D200: =SUM(D193:D199) -> 11.84 | E200: =SUM(E193:E199) -> 14.75 | F200: =SUM(F193:F199) -> 41.8 | G200: =SUM(G193:G199) -> 347.6 | H200: =SUM(H193:H199) -> 9.5
A201: ВСЕГО: | C201: =C180+C183+C192+C200 -> 1630.5 | D201: 54.32 | E201: 49.20 | F201: 199.48 | G201: 1454.09 | H201: 21.05
A203: День 7 - ой
A204: Наименование блюд и | C204: Масса | D204: Пищевые вещества | G204: Энергетическая | H204: витамин | I204: №рецептуры
A205: продуктов | C205: порции | G205: ценность
D206: белки | E206: жиры | F206: угл-ды | G206: Ккал | H206: С
B207: ЗАВТРАК
A208: Омлет с сыром | C208: 95/10 | D208: 10.6 | E208: 5.45 | F208: 9.80 | G208: 130 | H208: 0.16 | I208: №215 Дели2010
A209: Чай с сахаром и молоком | C209: 180/10 | D209: 2.60 | E209: 2.30 | F209: 14.30 | G209: 89.00 | H209: 1.20 | I209: № 394 Дели2010
A210: Бутерброд с маслом сливочным | C210: 30/5 | D210: 2.30 | E210: 4.50 | F210: 15.40 | G210: 111.00 | I210: №1 Дели2010
A211: Фрукты свежие | C211: 70 | D211: 0.01 | E211: 0.01 | F211: 14.00 | G211: 56 | H211: 31.50 | I211: №368 Дели2010
A212: Итого: | C212: 400 | D212: =SUM(D207:D211) -> 15.51 | E212: =SUM(E207:E211) -> 12.26 | F212: =SUM(F207:F211) -> 53.5 | G212: =SUM(G207:G211) -> 386 | H212: =SUM(H207:H211) -> 32.86
B213: 2 - ой ЗАВТРАК
A214: Сок | C214: 90 | D214: 0.01 | E214: 0.00 | F214: 10.00 | G214: 40 | H214: 3.00 | I214: №399,Дели2010
A215: Итого: | C215: 90 | D215: =SUM(D214) -> 0.01 | E215: =SUM(E214) -> 0 | F215: 10 | G215: 40 | H215: 3
B216: ОБЕД
A217: Икра кабачковая | C217: 50 | D217: 0.95 | E217: 4.45 | F217: 3.85 | G217: 59.50 | H217: 3.50
A218: Суп с крупой и картофелем с рыбными фрикадельками | C218: 200/30 | D218: 7.00 | E218: 2.53 | F218: 16.10 | G218: 115.00 | H218: 5.60 | I218: №138, сб шк2004
A219: Рагу овощное с мясом | C219: 180/47 | D219: 12.00 | E219: 15.90 | F219: 29.00 | G219: 307.00 | H219: 0.38 | I219: №224,сбшк2004
A220: Кисель | C220: 150 | F220: 18.00 | G220: 71.00 | I220: № 648, сб шк2004
... 122 more rows

Sheet кал1-3
D2: Ккалорийность в разрезе
D3: ДОУ от 1 до 3 лет
D4: с 8 -10,5 часовым пребыванием
B7: Объемы порций | C7: Белки | D7: Жиры | E7: Угл-ды | F7: Энергетическая ценность | G7: Витамин С
A8: Нормы | B8: 1050-1450 | C8: 31,5-44,25 | D8: 35,25-42 | E8: 152,25-161,25 | F8: 1050-1170
A9: 1 | B9: ='[1]младш 8-10ч'!C91 -> 1298.5 | C9: ='[1]младш 8-10ч'!F91 -> 37.64 | D9: ='[1]младш 8-10ч'!G91 -> 35.51 | E9: ='[1]младш 8-10ч'!H91 -> 158.35 | F9: ='[1]младш 8-10ч'!I91 -> 1103.85 | G9: ='[1]младш 8-10ч'!J91 -> 43.34
A10: 2 | B10: ='[1]младш 8-10ч'!C179 -> 1366 | C10: ='[1]младш 8-10ч'!F179 -> 44.03 | D10: ='[1]младш 8-10ч'!G179 -> 41.78 | E10: ='[1]младш 8-10ч'!H179 -> 153.88 | F10: ='[1]младш 8-10ч'!I179 -> 1165.6 | G10: ='[1]младш 8-10ч'!J179 -> 25.81
A11: 3 | B11: ='[1]младш 8-10ч'!C271 -> 1379 | C11: ='[1]младш 8-10ч'!F271 -> 40.15 | D11: ='[1]младш 8-10ч'!G271 -> 39.05 | E11: ='[1]младш 8-10ч'!H271 -> 160.8 | F11: ='[1]младш 8-10ч'!I271 -> 1153.4 | G11: ='[1]младш 8-10ч'!J271 -> 26.064
A12: 4 | B12: ='[1]младш 8-10ч'!C356 -> 1412 | C12: ='[1]младш 8-10ч'!F356 -> 31.85 | D12: ='[1]младш 8-10ч'!G356 -> 35.27 | E12: ='[1]младш 8-10ч'!H356 -> 158.65 | F12: ='[1]младш 8-10ч'!I356 -> 1080.00 | G12: ='[1]младш 8-10ч'!J356 -> 85.76
A13: 5 | B13: ='[1]младш 8-10ч'!C447 -> 1385 | C13: ='[1]младш 8-10ч'!F447 -> 44.25 | D13: ='[1]младш 8-10ч'!G447 -> 40.17 | E13: ='[1]младш 8-10ч'!H447 -> 156.68 | F13: ='[1]младш 8-10ч'!I447 -> 1164.1 | G13: ='[1]младш 8-10ч'!J447 -> 34.8
A14: 6 | B14: ='[1]младш 8-10ч'!C539 -> 1006 | C14: ='[1]младш 8-10ч'!F539 -> 43.04 | D14: ='[1]младш 8-10ч'!G539 -> 39.6 | E14: ='[1]младш 8-10ч'!H539 -> 154 | F14: ='[1]младш 8-10ч'!I539 -> 1143.2 | G14: ='[1]младш 8-10ч'!J539 -> 18.28
A15: 7 | B15: ='[1]младш 8-10ч'!C625 -> 1373.50 | C15: ='[1]младш 8-10ч'!F625 -> 43.64 | D15: ='[1]младш 8-10ч'!G625 -> 41.08 | E15: ='[1]младш 8-10ч'!H625 -> 154.18 | F15: ='[1]младш 8-10ч'!I625 -> 1161.75 | G15: ='[1]младш 8-10ч'!J625 -> 21.52
A16: 8 | B16: ='[1]младш 8-10ч'!C721 -> 1370 | C16: ='[1]младш 8-10ч'!F721 -> 40.88 | D16: ='[1]младш 8-10ч'!G721 -> 40.13 | E16: ='[1]младш 8-10ч'!H721 -> 154.45 | F16: ='[1]младш 8-10ч'!I721 -> 1140.8 | G16: ='[1]младш 8-10ч'!J721 -> 20.77375
A17: 9 | B17: ='[1]младш 8-10ч'!C807 -> 1400 | C17: ='[1]младш 8-10ч'!F807 -> 37.38 | D17: ='[1]младш 8-10ч'!G807 -> 36.5 | E17: ='[1]младш 8-10ч'!H807 -> 161.05 | F17: ='[1]младш 8-10ч'!I807 -> 1120.1 | G17: ='[1]младш 8-10ч'!J807 -> 30.57
A18: 10 | B18: ='[1]младш 8-10ч'!C913 -> 1096.00 | C18: ='[1]младш 8-10ч'!F913 -> 42.51 | D18: ='[1]младш 8-10ч'!G913 -> 41.05 | E18: ='[1]младш 8-10ч'!H913 -> 161.18 | F18: ='[1]младш 8-10ч'!I913 -> 1183.00 | G18: ='[1]младш 8-10ч'!J913 -> 69.52
A20: Всего | B20: =SUM(B9:B19) -> 13086 | C20: =SUM(C9:C18) -> 405.37 | D20: =SUM(D9:D19) -> 390.14 | E20: =SUM(E9:E19) -> 1573.22 | F20: =F9+F10+F11+F12+F13+F14+F15+F16+F17+F18 -> 11415.80 | G20: =SUM(G9:G19) -> 376.43775
A21: В среднем | B21: =AVERAGE(B9:B18) -> 1308.6 | C21: 40.537 | D21: 39.014 | E21: 157.322 | F21: 1141.58 | G21: 37.643775
A28: Примечание: при составлении примерного 10- дневного меню соблюдено выполнение средне-суточных наборов продуктов по возрастам и времени пребывания. Пищевая,энергетическая ценность соответствует показателям СанПиН 2.4.1.3049-13 таб. 3 "Нормы физиологических потребностей в энергии и пищевых веществах" и приложению№10 " Рекомендуемые суточные наборы продуктов для организации питания детей в дошкольных образовательных организациях" по химическому составу использованных наборов продуктов.

Sheet свод1-3
B1: Расход продуктов ДОУ
D2: до 3 лет | F2: с 8 - 10,5 часовым пребыванием | L2: нетто
A3: Наименов. прод. | B3: 1 | C3: 2 | D3: 3 | E3: 4 | F3: 5 | G3: 6 | H3: 7 | I3: 8 | J3: 9 | K3: 10 | L3: Кол-во | M3: Среднее | N3: Норма | O3: Отклон. | P3: Отклон.%
N4: 1-3
A5: Сахар | B5: 22.40 | C5: 33.14 | D5: 27.70 | E5: 18.00 | F5: 34.30 | G5: 32.30 | H5: 26.50 | I5: 29.90 | J5: 24.50 | K5: 23.70 | L5: 272.44 | M5: 27.24 | N5: 278 | O5: -5.6 | P5: -2.00
A6: Заварка | B6: 0.80 | C6: 0.30 | D6: 0.30 | E6: 0.40 | F6: 0.30 | G6: 0.30 | H6: 0.80 | I6: 0.30 | J6: 0.30 | K6: 0.50 | L6: 4.30 | M6: 0.43 | N6: 4.3 | O6: 0.0 | P6: 0.00
A7: Яйцо | B7: 14.20 | C7: 11.70 | D7: 4.30 | E7: 10.00 | F7: 5.00 | G7: 13.00 | H7: 68.00 | I7: 5.50 | J7: 12.00 | K7: 9.90 | L7: 153.60 | M7: 15.36 | N7: 150 | O7: 3.6 | P7: 2.40
A8: Дрожжи сухие | B8: 0.20 | C8: 0.00 | D8: 0.20 | E8: 0.00 | F8: 0.00 | G8: 0.20 | H8: 0.00 | I8: 0.20 | J8: 0.00 | K8: 0.20 | L8: 1.00 | M8: 0.10 | N8: 1 | O8: 0.0 | P8: 0.00
A9: Батон нарезной | B9: 25.00 | C9: 25.00 | D9: 25.00 | E9: 25.00 | F9: 25.00 | G9: 25.00 | H9: 25.00 | I9: 25.00 | J9: 25.00 | K9: 25.00 | L9: 250.00 | M9: 25.00 | O9: 250.0
A10: Хлеб пшеничный 1с | B10: 25.00 | C10: 30.00 | D10: 0.00 | E10: 15.00 | F10: 7.00 | G10: 20.00 | H10: 15.00 | I10: 15.00 | J10: 24.60 | K10: 23.00 | L10: 174.60 | M10: 17.46 | O10: 174.6
A11: Хлеб сельский | B11: 30.00 | C11: 30.00 | D11: 30.00 | E11: 30.00 | F11: 30.00 | G11: 30.00 | H11: 30.00 | I11: 30.00 | J11: 30.00 | K11: 30.00 | L11: 300.00 | M11: 30.00 | N11: 300 | O11: 0.0 | P11: 0.00
A12: Мука пшеничная | B12: 25.70 | C12: 9.00 | D12: 38.50 | E12: 3.50 | F12: 8.25 | G12: 35.00 | H12: 7.00 | I12: 25.30 | J12: 1.10 | K12: 40.10 | L12: 193.45 | M12: 19.35 | N12: 190.0 | O12: 3.4 | P12: 1.82
A13: Кисель-концентрат | B13: 15.20 | C13: 0.00 | D13: 0.00 | E13: 15.20 | F13: 0.00 | G13: 0.00 | H13: 15.20 | I13: 0.00 | J13: 0.00 | K13: 15.20 | L13: 60.80 | M13: 6.08
A14: Макаронные изделия | B14: 20.00 | C14: 5.00 | D14: 0.00 | E14: 12.00 | F14: 0.00 | G14: 23.80 | H14: 0.00 | I14: 0.00 | J14: 0.00 | K14: 0.00 | L14: 60.80 | M14: 6.08 | N14: 60 | O14: 0.8 | P14: 1.33
A15: Крупа рисовая | B15: 0.00 | C15: 0.00 | D15: 0.00 | E15: 0.00 | F15: 30.00 | G15: 0.00 | H15: 0.00 | I15: 12.00 | J15: 0.00 | K15: 9.00 | L15: 51.00 | M15: 5.10 | O15: 51.0
A16: Крупа кукурузная | B16: 0.00 | C16: 0.00 | D16: 0.00 | E16: 0.00 | F16: 0.00 | G16: 0.00 | H16: 0.00 | I16: 0.00 | J16: 0.00 | K16: 0.00 | L16: 0.00 | M16: 0.00 | O16: 0.0
A17: Крупа манная | B17: 0.00 | C17: 23.00 | D17: 0.00 | E17: 0.00 | F17: 7.00 | G17: 1.75 | H17: 0.00 | I17: 0.00 | J17: 0.00 | K17: 0.00 | L17: 31.75 | M17: 3.18 | O17: 31.8
A18: Горох | B18: 0.00 | C18: 0.00 | D18: 12.00 | E18: 0.00 | F18: 0.00 | G18: 0.00 | H18: 0.00 | I18: 0.00 | J18: 0.00 | K18: 0.00 | L18: 12.00 | M18: 1.20 | O18: 12.0
A19: Крупа пшенная | B19: 6.00 | C19: 0.00 | D19: 0.00 | E19: 0.00 | F19: 0.00 | G19: 30.00 | H19: 0.00 | I19: 15.00 | J19: 0.00 | K19: 0.00 | L19: 51.00 | M19: 5.10 | O19: 51.0
A20: Крупа ячневая | B20: 0.00 | C20: 0.00 | D20: 0.00 | E20: 0.00 | F20: 0.00 | G20: 0.00 | H20: 0.00 | I20: 0.00 | J20: 0.00 | K20: 0.00 | L20: 0.00 | M20: 0.00 | O20: 0.0
A21: Полба | B21: 0.00 | C21: 0.00 | D21: 0.00 | E21: 0.00 | F21: 0.00 | G21: 0.00 | H21: 0.00 | I21: 0.00 | J21: 0.00 | K21: 0.00 | L21: 0.00 | M21: 0.00 | O21: 0.0
A22: Крупа перловая | B22: 0.00 | C22: 0.00 | D22: 0.00 | E22: 0.00 | F22: 6.00 | G22: 0.00 | H22: 6.60 | I22: 0.00 | J22: 0.00 | K22: 0.00 | L22: 12.60 | M22: 1.26 | O22: 12.6
A23: Крупа геркулесовая | B23: 0.00 | C23: 0.00 | D23: 23.00 | E23: 0.00 | F23: 0.00 | G23: 0.00 | H23: 0.00 | I23: 0.00 | J23: 0.00 | K23: 0.00 | L23: 23.00 | M23: 2.30 | O23: 23.0
A24: Крупа пшеничная | B24: 0.00 | C24: 0.00 | D24: 0.00 | E24: 0.00 | F24: 0.00 | G24: 0.00 | H24: 0.00 | I24: 0.00 | J24: 23.00 | K24: 0.00 | L24: 23.00 | M24: 2.30 | O24: 23.0
A25: Крупа гречневая | B25: 0.00 | C25: 0.00 | D25: 0.00 | E25: 25.00 | F25: 0.00 | G25: 0.00 | H25: 0.00 | I25: 0.00 | J25: 0.00 | K25: 0.00 | L25: 25.00 | M25: 2.50 | O25: 25.0
A26: Картофель | B26: 45.00 | C26: 130.00 | D26: 80.30 | E26: 108.00 | F26: 100.80 | G26: 25.90 | H26: 103.00 | I26: 151.00 | J26: 136.40 | K26: 48.00 | L26: 928.40 | M26: 92.84 | N26: 900 | O26: 28.4 | P26: 3.16
A27: Морковь | B27: 8.60 | C27: 66.00 | D27: 54.00 | E27: 23.00 | F27: 46.40 | G27: 6.60 | H27: 41.60 | I27: 7.00 | J27: 27.70 | K27: 83.00 | L27: 363.90 | M27: 36.39 | O27: 363.9
A28: Лук репчатый | B28: 11.20 | C28: 22.00 | D28: 35.00 | E28: 25.00 | F28: 11.00 | G28: 21.20 | H28: 30.70 | I28: 19.20 | J28: 7.50 | K28: 26.40 | L28: 209.20 | M28: 20.92 | O28: 209.2
A29: Свекла | B29: 0.00 | C29: 0.00 | D29: 0.00 | E29: 0.00 | F29: 0.00 | G29: 38.30 | H29: 0.00 | I29: 24.00 | J29: 0.00 | K29: 0.00 | L29: 62.30 | M29: 6.23 | O29: 62.3
A30: Капуста свежая | B30: 149.00 | C30: 0.00 | D30: 36.00 | E30: 30.00 | F30: 18.00 | G30: 0.00 | H30: 39.00 | I30: 37.00 | J30: 44.20 | K30: 54.00 | L30: 407.20 | M30: 40.72 | O30: 407.2
A31: икра кабачковая | B31: 0.00 | C31: 40.00 | D31: 0.00 | E31: 0.00 | F31: 40.00 | G31: 0.00 | H31: 40.00 | I31: 0.00 | J31: 0.00 | K31: 40.00 | L31: 160.00 | M31: 16.00 | O31: 160.0
A32: Огурцы соленые | B32: 0.00 | C32: 0.00 | D32: 0.00 | E32: 0.00 | F32: 0.00 | G32: 0.00 | H32: 0.00 | I32: 0.00 | J32: 0.00 | K32: 0.00 | L32: 0.00 | M32: 0.00 | O32: 0.0
A33: Помидоры свежие | B33: 0.00 | C33: 0.00 | D33: 50.00 | E33: 0.00 | F33: 0.00 | G33: 50.00 | H33: 0.00 | I33: 0.00 | J33: 50.00 | K33: 0.00 | L33: 150.00 | M33: 15.00 | O33: 150.0
A34: Огурцы свежие | B34: 50.00 | C34: 0.00 | D34: 0.00 | E34: 50.00 | F34: 0.00 | G34: 0.00 | H34: 0.00 | I34: 50.00 | J34: 0.00 | K34: 0.00 | L34: 150.00 | M34: 15.00 | O34: 150.0
A35: Томат-паста | B35: 0.00 | C35: 0.00 | D35: 0.00 | E35: 0.00 | F35: 1.20 | G35: 0.00 | H35: 0.00 | I35: 1.00 | J35: 0.00 | K35: 0.00 | L35: 2.20 | M35: 0.22 | O35: 2.2
A36: Масло сливочное | B36: 14.20 | C36: 16.00 | D36: 15.70 | E36: 7.50 | F36: 15.50 | G36: 14.20 | H36: 13.10 | I36: 16.00 | J36: 12.10 | K36: 9.80 | L36: 134.10 | M36: 13.41 | N36: 135 | O36: -0.9 | P36: -0.67
A37: Масло растительное | B37: 6.80 | C37: 5.20 | D37: 8.10 | E37: 11.00 | F37: 5.10 | G37: 6.85 | H37: 6.00 | I37: 6.10 | J37: 5.60 | K37: 8.50 | L37: 69.25 | M37: 6.93 | N37: 68 | O37: 1.3 | P37: 1.84
A38: Фрукты свежие | B38: 70.00 | C38: 70.00 | D38: 60.00 | E38: 60.00 | F38: 70.00 | G38: 70.00 | H38: 70.00 | I38: 70.00 | J38: 70.00 | K38: 60.00 | L38: 670.00 | M38: 67.00 | O38: 670.0
A39: Яблоки | B39: 0.00 | C39: 26.00 | D39: 0.00 | E39: 0.00 | F39: 0.00 | G39: 26.00 | H39: 0.00 | I39: 0.00 | J39: 26.00 | K39: 0.00 | L39: 78.00 | M39: 7.80 | O39: 78.0
A40: Ягоды | B40: 0.00 | C40: 0.00 | D40: 0.00 | E40: 0.00 | F40: 0.00 | G40: 0.00 | H40: 0.00 | I40: 0.00 | J40: 0.00 | K40: 0.00 | L40: 0.00 | M40: 0.00 | O40: 0.0
A41: Лимон | B41: 2.50 | C41: 0.00 | D41: 0.00 | E41: 0.00 | F41: 0.00 | G41: 0.00 | H41: 2.50 | I41: 0.00 | J41: 0.00 | K41: 0.00 | L41: 5.00 | M41: 0.50 | O41: 5.0
A42: Повидло фруктовое | B42: 20.00 | C42: 10.00 | D42: 0.00 | E42: 0.00 | F42: 0.00 | G42: 0.00 | H42: 0.00 | I42: 0.00 | J42: 0.00 | K42: 0.00 | L42: 30.00 | M42: 3.00 | O42: 30.0
A43: Сок | B43: 90.00 | C43: 0.00 | D43: 90.00 | E43: 90.00 | F43: 0.00 | G43: 90.00 | H43: 90.00 | I43: 90.00 | J43: 90.00 | K43: 90.00 | L43: 720.00 | M43: 72.00 | N43: 750 | O43: -30.0 | P43: -4.00
A44: Курага | B44: 0.00 | C44: 0.00 | D44: 13.00 | E44: 0.00 | F44: 0.00 | G44: 0.00 | H44: 0.00 | I44: 0.00 | J44: 0.00 | K44: 0.00 | L44: 13.00 | M44: 1.30 | O44: 13.0
A45: Сухофрукты | B45: 0.00 | C45: 0.00 | D45: 0.00 | E45: 0.00 | F45: 13.00 | G45: 0.00 | H45: 0.00 | I45: 13.00 | J45: 0.00 | K45: 0.00 | L45: 26.00 | M45: 2.60 | O45: 26.0
A46: Урюк | B46: 0.00 | C46: 0.00 | D46: 0.00 | E46: 0.00 | F46: 0.00 | G46: 0.00 | H46: 0.00 | I46: 0.00 | J46: 0.00 | K46: 0.00 | L46: 0.00 | M46: 0.00 | O46: 0.0
A47: Изюм | B47: 0.00 | C47: 0.00 | D47: 0.00 | E47: 0.00 | F47: 10.00 | G47: 0.00 | H47: 0.00 | I47: 0.00 | J47: 0.00 | K47: 0.00 | L47: 10.00 | M47: 1.00 | O47: 10.0
A48: Шиповник | B48: 0.00 | C48: 0.00 | D48: 0.00 | E48: 10.00 | F48: 0.00 | G48: 0.00 | H48: 0.00 | I48: 0.00 | J48: 0.00 | K48: 10.00 | L48: 20.00 | M48: 2.00 | O48: 20.0
A49: Молоко | B49: 105.00 | C49: 264.30 | D49: 235.00 | E49: 75.00 | F49: 186.00 | G49: 214.50 | H49: 114.00 | I49: 170.00 | J49: 262.00 | K49: 190.00 | L49: 1815.80 | M49: 181.58 | O49: 1815.8
A50: Кефир | B50: 130.00 | C50: 0.00 | D50: 0.00 | E50: 130.00 | F50: 0.00 | G50: 0.00 | H50: 130.00 | I50: 0.00 | J50: 0.00 | K50: 130.00 | L50: 520.00 | M50: 52.00 | O50: 520.0
A51: Катык | B51: 0.00 | C51: 0.00 | D51: 130.00 | E51: 0.00 | F51: 0.00 | G51: 130.00 | H51: 0.00 | I51: 0.00 | J51: 130.00 | K51: 0.00 | L51: 390.00 | M51: 39.00
A52: Ряженка | B52: 0.00 | C52: 130.00 | D52: 0.00 | E52: 0.00 | F52: 130.00 | G52: 0.00 | H52: 0.00 | I52: 130.00 | J52: 0.00 | K52: 0.00 | L52: 390.00 | M52: 39.00 | O52: 390.0
A53: Молоко сгущенное | B53: 0.00 | C53: 0.00 | D53: 0.00 | E53: 0.00 | F53: 20.00 | G53: 0.00 | H53: 20.00 | I53: 0.00 | J53: 0.00 | K53: 0.00 | L53: 40.00 | M53: 4.00 | O53: 40.0
A54: Сметана | B54: 0.00 | C54: 8.10 | D54: 0.00 | E54: 14.00 | F54: 23.50 | G54: 6.00 | H54: 3.00 | I54: 6.00 | J54: 6.00 | K54: 0.00 | L54: 66.60 | M54: 6.66 | N54: 68 | O54: -1.4 | P54: -2.06
A55: Творог | B55: 0.00 | C55: 64.00 | D55: 0.00 | E55: 0.00 | F55: 75.00 | G55: 0.00 | H55: 69.00 | I55: 0.00 | J55: 0.00 | K55: 16.00 | L55: 224.00 | M55: 22.40 | N55: 225 | O55: -1.0 | P55: -0.44
A56: Говядина | B56: 56.50 | C56: 16.19 | D56: 17.10 | E56: 63.00 | F56: 0.00 | G56: 17.10 | H56: 74.00 | I56: 67.00 | J56: 17.10 | K56: 35.70 | L56: 363.69 | M56: 36.37 | O56: 363.7
A57: Фарш из говядины | B57: 0.00 | C57: 0.00 | D57: 0.00 | E57: 0.00 | F57: 0.00 | G57: 0.00 | H57: 0.00 | I57: 0.00 | J57: 0.00 | K57: 0.00 | L57: 0.00 | M57: 0.00 | O57: 0.0
A58: Цыплята | B58: 0.00 | C58: 0.00 | D58: 47.00 | E58: 0.00 | F58: 22.00 | G58: 0.00 | H58: 0.00 | I58: 22.00 | J58: 0.00 | K58: 55.60 | L58: 146.60 | M58: 14.66 | N58: 150 | O58: -3.4 | P58: -2.27
A59: Сыр | B59: 0.00 | C59: 5.00 | D59: 0.00 | E59: 5.00 | F59: 0.00 | G59: 5.00 | H59: 5.00 | I59: 5.00 | J59: 0.00 | K59: 5.00 | L59: 30.00 | M59: 3.00 | N59: 30 | O59: 0.0 | P59: 0.00
A60: Рыба | B60: 0.00 | C60: 56.00 | D60: 0.00 | E60: 0.00 | F60: 56.00 | G60: 52.50 | H60: 19.30 | I60: 0.00 | J60: 55.00 | K60: 0.00 | L60: 238.80 | M60: 23.88 | N60: 240.0 | O60: -1.2 | P60: -0.50
A61: Кофейный напиток | B61: 0.00 | C61: 0.00 | D61: 2.50 | E61: 0.00 | F61: 0.00 | G61: 2.50 | H61: 0.00 | I61: 0.00 | J61: 2.50 | K61: 0.00 | L61: 7.50 | M61: 0.75 | N61: 8 | O61: 0.0 | P61: 0.00
A62: Какао-порошок | B62: 0.00 | C62: 1.70 | D62: 0.00 | E62: 0.00 | F62: 1.70 | G62: 0.00 | H62: 0.00 | I62: 1.70 | J62: 0.00 | K62: 0.00 | L62: 5.10 | M62: 0.51 | N62: 5 | O62: 0.1 | P62: 2.00
A63: Кондитерские изделия | B63: 0.00 | C63: 0.00 | D63: 15.00 | E63: 0.00 | F63: 0.00 | G63: 19.00 | H63: 0.00 | I63: 0.00 | J63: 0.00 | K63: 19.00 | L63: 53.00 | M63: 5.30 | O63: 53.0
A64: Конфеты | B64: 0.00 | C64: 0.00 | D64: 0.00 | E64: 0.00 | F64: 0.00 | G64: 0.00 | H64: 0.00 | I64: 0.00 | J64: 0.00 | K64: 0.00 | L64: 0.00 | M64: 0.00
A65: Соль | B65: 3.00 | C65: 2.90 | D65: 3.00 | E65: 2.80 | F65: 3.00 | G65: 2.80 | H65: 2.80 | I65: 3.20 | J65: 2.90 | K65: 3.30 | L65: 29.70 | M65: 2.97 | N65: 30.0 | O65: -0.3 | P65: -1.00
A66: Крахмал | B66: 3.75 | C66: 0.00 | D66: 0.00 | E66: 3.75 | F66: 0.00 | G66: 0.00 | H66: 3.75 | I66: 0.00 | J66: 0.00 | K66: 3.75 | L66: 15.00 | M66: 1.50 | N66: 15.0 | O66: 0.0 | P66: 0.00
A67: Сухари панировочные | B67: 5.50 | C67: 0.00 | D67: 0.00 | E67: 3.00 | F67: 2.50 | G67: 5.25 | H67: 3.00 | I67: 3.00 | J67: 5.30 | K67: 5.00 | L67: 32.55 | M67: 3.26 | O67: 32.6
A68: Напиток витаминный | B68: 0.00 | C68: 0.00 | D68: 0.00 | E68: 0.00 | F68: 0.00 | G68: 0.00 | H68: 0.00 | I68: 0.00 | J68: 0.00 | K68: 0.00 | L68: 0.00 | M68: 0.00 | N68: 0 | O68: 0.0
A69: Крупы, бобовые | B69: 6.00 | C69: 23.00 | D69: 35.00 | E69: 25.00 | F69: 43.00 | G69: 31.75 | H69: 6.60 | I69: 27.00 | J69: 23.00 | K69: 9.00 | L69: 229.35 | M69: 22.94 | N69: 225 | O69: 4.3 | P69: 1.93
A70: Овощи разные | B70: 218.80 | C70: 128.00 | D70: 175.00 | E70: 128.00 | F70: 116.60 | G70: 116.10 | H70: 151.30 | I70: 138.20 | J70: 129.40 | K70: 203.40 | L70: 1504.80 | M70: 150.48 | N70: 1540 | O70: -35.2 | P70: -2.29
A71: Фрукты | B71: 72.50 | C71: 96.00 | D71: 60.00 | E71: 60.00 | F71: 70.00 | G71: 96.00 | H71: 72.50 | I71: 70.00 | J71: 96.00 | K71: 60.00 | L71: 753.00 | M71: 75.30 | N71: 760 | O71: -7.0 | P71: -0.92
A72: Фрукты сухие | B72: 0.00 | C72: 0.00 | D72: 13.00 | E72: 10.00 | F72: 23.00 | G72: 0.00 | H72: 0.00 | I72: 13.00 | J72: 0.00 | K72: 10.00 | L72: 69.00 | M72: 6.90 | N72: 70.0 | O72: -1.0 | P72: -1.43
A73: Молочные прод. | B73: 235.00 | C73: 394.30 | D73: 365.00 | E73: 205.00 | F73: 336.00 | G73: 344.50 | H73: 264.00 | I73: 300.00 | J73: 392.00 | K73: 320.00 | L73: 3155.80 | M73: 315.58 | N73: 2925.0 | O73: 230.8 | P73: 7.89
A74: Говядина | B74: 56.50 | C74: 16.19 | D74: 17.10 | E74: 63.00 | F74: 0.00 | G74: 17.10 | H74: 74.00 | I74: 67.00 | J74: 17.10 | K74: 35.70 | L74: 363.69 | M74: 36.37 | N74: 375.0 | O74: -11.3 | P74: -3.02
A75: Хлеб пшеничный | B75: 50.00 | C75: 55.00 | D75: 25.00 | E75: 40.00 | F75: 32.00 | G75: 45.00 | H75: 40.00 | I75: 40.00 | J75: 49.60 | K75: 48.00 | L75: 424.60 | M75: 42.46 | N75: 450.0 | O75: -25.4 | P75: -5.64
A76: Кондитерские изделия | B76: 0.00 | C76: 0.00 | D76: 15.00 | E76: 0.00 | F76: 0.00 | G76: 19.00 | H76: 0.00 | I76: 0.00 | J76: 0.00 | K76: 19.00 | L76: 53.00 | N76: 53 | O76: 0.0 | P76: 0.00
D80: до 3 лет | F80: с 8 - 10,5 часовым пребыванием | L80: брутто | P80: мясо потушное
A81: Наименов. прод. | B81: 1 | C81: 2 | D81: 3 | E81: 4 | F81: 5 | G81: 6 | H81: 7 | I81: 8 | J81: 9 | K81: 10 | L81: Кол-во | M81: Среднее
A83: Сахар | B83: 22.40 | C83: 33.14 | D83: 27.70 | E83: 18.00 | F83: 34.30 | G83: 32.30 | H83: 26.50 | I83: 29.90 | J83: 24.50 | K83: 23.70 | L83: 272.44 | M83: 27.24
A84: Заварка | B84: 0.80 | C84: 0.30 | D84: 0.30 | E84: 0.40 | F84: 0.30 | G84: 0.30 | H84: 0.80 | I84: 0.30 | J84: 0.30 | K84: 0.50 | L84: 4.30 | M84: 0.43
A85: Яйцо | B85: 15.80 | C85: 13.00 | D85: 4.82 | E85: 11.00 | F85: 5.60 | G85: 14.50 | H85: 75.52 | I85: 6.90 | J85: 13.40 | K85: 11.10 | L85: 171.64 | M85: 17.16
A86: Дрожжи сухие | B86: 0.20 | C86: 0.00 | D86: 0.20 | E86: 0.00 | F86: 0.00 | G86: 0.20 | H86: 0.00 | I86: 0.20 | J86: 0.00 | K86: 0.20 | L86: 1.00 | M86: 0.10
A87: Батон нарезной | B87: 25.00 | C87: 25.00 | D87: 25.00 | E87: 25.00 | F87: 25.00 | G87: 25.00 | H87: 25.00 | I87: 25.00 | J87: 25.00 | K87: 25.00 | L87: 250.00 | M87: 25.00
A88: Хлеб пшеничный 1с | B88: 25.00 | C88: 30.00 | D88: 0.00 | E88: 15.00 | F88: 7.00 | G88: 20.00 | H88: 15.00 | I88: 15.00 | J88: 24.60 | K88: 23.00 | L88: 174.60 | M88: 17.46
A89: Хлеб сельский | B89: 30.00 | C89: 30.00 | D89: 30.00 | E89: 30.00 | F89: 30.00 | G89: 30.00 | H89: 30.00 | I89: 30.00 | J89: 30.00 | K89: 30.00 | L89: 300.00 | M89: 30.00
A90: Мука пшеничная | B90: 25.70 | C90: 9.00 | D90: 38.50 | E90: 3.50 | F90: 8.25 | G90: 35.00 | H90: 7.00 | I90: 25.30 | J90: 1.10 | K90: 40.10 | L90: 193.45 | M90: 19.35
A91: Кисель-концентрат | B91: 15.20 | C91: 0.00 | D91: 0.00 | E91: 15.20 | F91: 0.00 | G91: 0.00 | H91: 15.20 | I91: 0.00 | J91: 0.00 | K91: 15.20 | L91: 60.80 | M91: 6.08
A92: Макаронные изделия | B92: 20.00 | C92: 5.00 | D92: 0.00 | E92: 12.00 | F92: 0.00 | G92: 23.80 | H92: 0.00 | I92: 0.00 | J92: 0.00 | K92: 0.00 | L92: 60.80 | M92: 6.08
A93: Крупа рисовая | B93: 0.00 | C93: 0.00 | D93: 0.00 | E93: 0.00 | F93: 30.00 | G93: 0.00 | H93: 0.00 | I93: 12.00 | J93: 0.00 | K93: 9.00 | L93: 51.00 | M93: 5.10
A94: Крупа кукурузная | B94: 0.00 | C94: 0.00 | D94: 0.00 | E94: 0.00 | F94: 0.00 | G94: 0.00 | H94: 0.00 | I94: 0.00 | J94: 0.00 | K94: 0.00 | L94: 0.00 | M94: 0.00
A95: Крупа манная | B95: 0.00 | C95: 23.00 | D95: 0.00 | E95: 0.00 | F95: 7.00 | G95: 1.75 | H95: 0.00 | I95: 0.00 | J95: 0.00 | K95: 0.00 | L95: 31.75 | M95: 3.18
A96: Горох | B96: 0.00 | C96: 0.00 | D96: 12.20 | E96: 0.00 | F96: 0.00 | G96: 0.00 | H96: 0.00 | I96: 0.00 | J96: 0.00 | K96: 0.00 | L96: 12.20 | M96: 1.22
A97: Крупа пшенная | B97: 6.00 | C97: 0.00 | D97: 0.00 | E97: 0.00 | F97: 0.00 | G97: 30.00 | H97: 0.00 | I97: 15.00 | J97: 0.00 | K97: 0.00 | L97: 51.00 | M97: 5.10
A98: Крупа ячневая | B98: 0.00 | C98: 0.00 | D98: 0.00 | E98: 0.00 | F98: 0.00 | G98: 0.00 | H98: 0.00 | I98: 0.00 | J98: 0.00 | K98: 0.00 | L98: 0.00 | M98: 0.00
A99: Полба | B99: 0.00 | C99: 0.00 | D99: 0.00 | E99: 0.00 | F99: 0.00 | G99: 0.00 | H99: 0.00 | I99: 0.00 | J99: 0.00 | K99: 0.00 | L99: 0.00 | M99: 0.00
A100: Крупа перловая | B100: 0.00 | C100: 0.00 | D100: 0.00 | E100: 0.00 | F100: 6.00 | G100: 0.00 | H100: 6.60 | I100: 0.00 | J100: 0.00 | K100: 0.00 | L100: 12.60 | M100: 1.26
A101: Крупа геркулесовая | B101: 0.00 | C101: 0.00 | D101: 23.00 | E101: 0.00 | F101: 0.00 | G101: 0.00 | H101: 0.00 | I101: 0.00 | J101: 0.00 | K101: 0.00 | L101: 23.00 | M101: 2.30
A102: Крупа пшеничная | B102: 0.00 | C102: 0.00 | D102: 0.00 | E102: 0.00 | F102: 0.00 | G102: 0.00 | H102: 0.00 | I102: 0.00 | J102: 23.00 | K102: 0.00 | L102: 23.00 | M102: 2.30
A103: Крупа гречневая | B103: 0.00 | C103: 0.00 | D103: 0.00 | E103: 25.00 | F103: 0.00 | G103: 0.00 | H103: 0.00 | I103: 0.00 | J103: 0.00 | K103: 0.00 | L103: 25.00 | M103: 2.50
A104: Картофель | B104: 75.15 | C104: 217.10 | D104: 134.10 | E104: 180.36 | F104: 168.33 | G104: 43.25 | H104: 172.01 | I104: 252.17 | J104: 227.79 | K104: 80.16 | L104: 1550.42 | M104: 155.04
A105: Морковь | B105: 11.44 | C105: 87.78 | D105: 71.93 | E105: 30.58 | F105: 61.71 | G105: 8.78 | H105: 55.33 | I105: 9.31 | J105: 36.84 | K105: 110.39 | L105: 484.09 | M105: 48.41
A106: Лук репчатый | B106: 13.15 | C106: 26.18 | D106: 41.62 | E106: 29.75 | F106: 13.09 | G106: 25.22 | H106: 36.53 | I106: 22.85 | J106: 8.92 | K106: 31.42 | L106: 248.73 | M106: 24.87
A107: Свекла | B107: 0.00 | C107: 0.00 | D107: 0.00 | E107: 0.00 | F107: 0.00 | G107: 52.09 | H107: 0.00 | I107: 32.64 | J107: 0.00 | K107: 0.00 | L107: 84.73 | M107: 8.47
A108: Капуста свежая | B108: 186.25 | C108: 0.00 | D108: 45.00 | E108: 37.50 | F108: 22.50 | G108: 0.00 | H108: 48.75 | I108: 46.25 | J108: 55.25 | K108: 67.50 | L108: 509.00 | M108: 50.90
A109: икра кабачковая | B109: 0.00 | C109: 42.00 | D109: 0.00 | E109: 0.00 | F109: 42.00 | G109: 0.00 | H109: 42.00 | I109: 0.00 | J109: 0.00 | K109: 42.00 | L109: 168.00 | M109: 16.80
A110: Огурцы соленые | B110: 0.00 | C110: 0.00 | D110: 0.00 | E110: 0.00 | F110: 0.00 | G110: 0.00 | H110: 0.00 | I110: 0.00 | J110: 0.00 | K110: 0.00 | L110: 0.00 | M110: 0.00
A111: Помидоры свежие | B111: 0.00 | C111: 0.00 | D111: 51.00 | E111: 0.00 | F111: 0.00 | G111: 51.00 | H111: 0.00 | I111: 0.00 | J111: 51.00 | K111: 0.00 | L111: 153.00 | M111: 15.30
A112: Огурцы свежие | B112: 51.00 | C112: 0.00 | D112: 0.00 | E112: 51.00 | F112: 0.00 | G112: 0.00 | H112: 0.00 | I112: 51.00 | J112: 0.00 | K112: 0.00 | L112: 153.00 | M112: 15.30
A113: Томат-паста | B113: 0.00 | C113: 0.00 | D113: 0.00 | E113: 0.00 | F113: 1.20 | G113: 0.00 | H113: 0.00 | I113: 1.00 | J113: 0.00 | K113: 0.00 | L113: 2.20 | M113: 0.22
A114: Масло сливочное | B114: 14.20 | C114: 16.00 | D114: 15.70 | E114: 7.50 | F114: 15.50 | G114: 14.20 | H114: 13.10 | I114: 16.00 | J114: 12.10 | K114: 9.80 | L114: 134.10 | M114: 13.41
A115: Масло растительное | B115: 6.80 | C115: 5.20 | D115: 8.10 | E115: 11.00 | F115: 5.10 | G115: 6.85 | H115: 6.00 | I115: 6.10 | J115: 5.60 | K115: 8.50 | L115: 69.25 | M115: 6.93
A116: Фрукты свежие | B116: 79.80 | C116: 79.80 | D116: 68.40 | E116: 68.40 | F116: 79.80 | G116: 79.80 | H116: 79.80 | I116: 79.80 | J116: 79.80 | K116: 68.40 | L116: 763.80 | M116: 76.38
A117: Яблоки | B117: 0.00 | C117: 29.64 | D117: 0.00 | E117: 0.00 | F117: 0.00 | G117: 29.64 | H117: 0.00 | I117: 0.00 | J117: 29.64 | K117: 0.00 | L117: 88.92 | M117: 8.89
A118: Ягоды | B118: 0.00 | C118: 0.00 | D118: 0.00 | E118: 0.00 | F118: 0.00 | G118: 0.00 | H118: 0.00 | I118: 0.00 | J118: 0.00 | K118: 0.00 | L118: 0.00 | M118: 0.00
A119: Лимон | B119: 2.80 | C119: 0.00 | D119: 0.00 | E119: 0.00 | F119: 0.00 | G119: 0.00 | H119: 2.80 | I119: 0.00 | J119: 0.00 | K119: 0.00 | L119: 5.60 | M119: 0.56
A120: Повидло фруктовое | B120: 20.00 | C120: 10.00 | D120: 0.00 | E120: 0.00 | F120: 0.00 | G120: 0.00 | H120: 0.00 | I120: 0.00 | J120: 0.00 | K120: 0.00 | L120: 30.00 | M120: 3.00
A121: Сок | B121: 90.00 | C121: 0.00 | D121: 90.00 | E121: 90.00 | F121: 0.00 | G121: 90.00 | H121: 90.00 | I121: 90.00 | J121: 90.00 | K121: 90.00 | L121: 720.00 | M121: 72.00
A122: Курага | B122: 0.00 | C122: 0.00 | D122: 13.30 | E122: 0.00 | F122: 0.00 | G122: 0.00 | H122: 0.00 | I122: 0.00 | J122: 0.00 | K122: 0.00 | L122: 13.30 | M122: 1.33
A123: Сухофрукты | B123: 0.00 | C123: 0.00 | D123: 0.00 | E123: 0.00 | F123: 13.30 | G123: 0.00 | H123: 0.00 | I123: 13.30 | J123: 0.00 | K123: 0.00 | L123: 26.60 | M123: 2.66
A124: Урюк | B124: 0.00 | C124: 0.00 | D124: 0.00 | E124: 0.00 | F124: 0.00 | G124: 0.00 | H124: 0.00 | I124: 0.00 | J124: 0.00 | K124: 0.00 | L124: 0.00 | M124: 0.00
A125: Изюм | B125: 0.00 | C125: 0.00 | D125: 0.00 | E125: 0.00 | F125: 10.20 | G125: 0.00 | H125: 0.00 | I125: 0.00 | J125: 0.00 | K125: 0.00 | L125: 10.20 | M125: 1.02
A126: Шиповник | B126: 0.00 | C126: 0.00 | D126: 0.00 | E126: 10.00 | F126: 0.00 | G126: 0.00 | H126: 0.00 | I126: 0.00 | J126: 0.00 | K126: 10.00 | L126: 20.00 | M126: 2.00
A127: Молоко | B127: 107.00 | C127: 264.30 | D127: 236.33 | E127: 75.00 | F127: 186.80 | G127: 215.83 | H127: 116.00 | I127: 170.00 | J127: 264.13 | K127: 192.00 | L127: 1827.39 | M127: 182.74
A128: Кефир | B128: 134.00 | C128: 0.00 | D128: 0.00 | E128: 134.00 | F128: 0.00 | G128: 0.00 | H128: 134.00 | I128: 0.00 | J128: 0.00 | K128: 134.00 | L128: 536.00 | M128: 53.60
A129: Ряженка | B129: 0.00 | C129: 134.00 | D129: 0.00 | E129: 0.00 | F129: 134.00 | G129: 0.00 | H129: 0.00 | I129: 134.00 | J129: 0.00 | K129: 0.00 | L129: 402.00 | M129: 40.20
A130: Катык | B130: 0.00 | C130: 0.00 | D130: 134.00 | E130: 0.00 | F130: 0.00 | G130: 134.00 | H130: 0.00 | I130: 0.00 | J130: 134.00 | K130: 0.00
A131: Молоко сгущенное | B131: 0.00 | C131: 0.00 | D131: 0.00 | E131: 0.00 | F131: 20.00 | G131: 0.00 | H131: 20.00 | I131: 0.00 | J131: 0.00 | K131: 0.00 | L131: 40.00 | M131: 4.00
A132: Сметана | B132: 0.00 | C132: 8.10 | D132: 0.00 | E132: 14.00 | F132: 23.50 | G132: 6.00 | H132: 3.00 | I132: 6.00 | J132: 6.00 | K132: 0.00 | L132: 66.60 | M132: 6.66
A133: Творог | B133: 0.00 | C133: 65.00 | D133: 0.00 | E133: 0.00 | F133: 76.00 | G133: 0.00 | H133: 70.08 | I133: 0.00 | J133: 0.00 | K133: 16.32 | L133: 227.40 | M133: 22.74
A134: Говядина | B134: 77.00 | C134: 22.00 | D134: 23.20 | E134: 85.60 | F134: 0.00 | G134: 23.23 | H134: 100.54 | I134: 91.03 | J134: 23.23 | K134: 48.51 | L134: 494.34 | M134: 49.43
A135: Фарш из говядины | B135: 0.00 | C135: 0.00 | D135: 0.00 | E135: 0.00 | F135: 0.00 | G135: 0.00 | H135: 0.00 | I135: 0.00 | J135: 0.00 | K135: 0.00 | L135: 0.00 | M135: 0.00
A136: Цыплята | B136: 0.00 | C136: 0.00 | D136: 72.31 | E136: 0.00 | F136: 33.90 | G136: 0.00 | H136: 0.00 | I136: 33.85 | J136: 0.00 | K136: 85.54 | L136: 225.60 | M136: 22.56
A137: Сыр | B137: 0.00 | C137: 5.10 | D137: 0.00 | E137: 5.10 | F137: 0.00 | G137: 5.10 | H137: 5.10 | I137: 5.10 | J137: 0.00 | K137: 5.10 | L137: 30.60 | M137: 3.06
A138: Рыба | B138: 0.00 | C138: 70.00 | D138: 0.00 | E138: 0.00 | F138: 70.00 | G138: 65.63 | H138: 24.13 | I138: 0.00 | J138: 68.75 | K138: 0.00 | L138: 298.51 | M138: 29.85
A139: Кофейный напиток | B139: 0.00 | C139: 0.00 | D139: 2.50 | E139: 0.00 | F139: 0.00 | G139: 2.50 | H139: 0.00 | I139: 0.00 | J139: 2.50 | K139: 0.00 | L139: 7.50 | M139: 0.75
A140: Какао-порошок | B140: 0.00 | C140: 1.70 | D140: 0.00 | E140: 0.00 | F140: 1.70 | G140: 0.00 | H140: 0.00 | I140: 1.70 | J140: 0.00 | K140: 0.00 | L140: 5.10 | M140: 0.51
A141: Кондитерские изделия | B141: 0.00 | C141: 0.00 | D141: 15.00 | E141: 0.00 | F141: 0.00 | G141: 19.00 | H141: 0.00 | I141: 0.00 | J141: 0.00 | K141: 19.00 | L141: 53.00 | M141: 5.30
A142: Конфеты | B142: 0.00 | C142: 0.00 | D142: 0.00 | E142: 0.00 | F142: 0.00 | G142: 0.00 | H142: 0.00 | I142: 0.00 | J142: 0.00 | K142: 0.00 | L142: 0.00
A143: Соль | B143: 3.00 | C143: 3.00 | D143: 3.00 | E143: 3.00 | F143: 3.00 | G143: 3.00 | H143: 3.00 | I143: 3.00 | J143: 3.00 | K143: 3.00 | L143: 30.00 | M143: 3.00
A144: Крахмал | B144: 0.00 | C144: 0.00 | D144: 0.00 | E144: 0.00 | F144: 0.00 | G144: 0.00 | H144: 0.00 | I144: 0.00 | J144: 0.00 | K144: 0.00 | L144: 0.00 | M144: 0.00
A145: Сухари панировочные | B145: 5.50 | C145: 0.00 | D145: 0.00 | E145: 3.00 | F145: 2.50 | G145: 5.25 | H145: 3.00 | I145: 3.00 | J145: 5.30 | K145: 5.00 | L145: 32.55 | M145: 3.26
A146: Напиток витаминный | B146: 0.00 | C146: 0.00 | D146: 0.00 | E146: 0.00 | F146: 0.00 | G146: 0.00 | H146: 0.00 | I146: 0.00 | J146: 0.00 | K146: 0.00 | L146: 0.00 | M146: 0.00
A147: Крупы, бобовые | B147: 6.00 | C147: 23.00 | D147: 35.20 | E147: 25.00 | F147: 43.00 | G147: 31.75 | H147: 6.60 | I147: 27.00 | J147: 23.00 | K147: 9.00 | L147: 229.55 | M147: 22.96
A148: Овощи разные | B148: 261.84 | C148: 155.96 | D148: 209.55 | E148: 148.83 | F148: 140.50 | G148: 137.09 | H148: 182.61 | I148: 163.05 | J148: 152.01 | K148: 251.31 | L148: 1802.75 | M148: 180.28
A149: Фрукты | B149: 82.60 | C149: 109.44 | D149: 68.40 | E149: 68.40 | F149: 79.80 | G149: 109.44 | H149: 82.60 | I149: 79.80 | J149: 109.44 | K149: 68.40 | L149: 858.32 | M149: 85.83
A150: Фрукты сухие | B150: 0.00 | C150: 0.00 | D150: 13.30 | E150: 10.00 | F150: 23.50 | G150: 0.00 | H150: 0.00 | I150: 13.30 | J150: 0.00 | K150: 10.00 | L150: 70.10 | M150: 7.01
A151: Молочные прод. | B151: 241.00 | C151: 398.30 | D151: 370.33 | E151: 209.00 | F151: 340.80 | G151: 349.83 | H151: 270.00 | I151: 304.00 | J151: 398.13 | K151: 326.00 | L151: 3207.39 | M151: 320.74
A152: Говядина | B152: 77.00 | C152: 22.00 | D152: 23.20 | E152: 85.60 | F152: 0.00 | G152: 23.23 | H152: 100.54 | I152: 91.03 | J152: 23.23 | K152: 48.51 | L152: 494.34 | M152: 49.43
A153: Хлеб пшеничный | B153: 50.00 | C153: 55.00 | D153: 25.00 | E153: 40.00 | F153: 32.00 | G153: 45.00 | H153: 40.00 | I153: 40.00 | J153: 49.60 | K153: 48.00 | L153: 424.60 | M153: 42.46
A154: Кондитерские изделия | B154: 0.00 | C154: 0.00 | D154: 15.00 | E154: 0.00 | F154: 0.00 | G154: 19.00 | H154: 0.00 | I154: 0.00 | J154: 0.00 | K154: 19.00 | L154: 53.00
D158: до 3 лет | F158: с 8 - 10,5 часовым пребыванием | L158: брутто | O158: лопатка, фарш
A159: Наименов. прод. | B159: 1 | C159: 2 | D159: 3 | E159: 4 | F159: 5 | G159: 6 | H159: 7 | I159: 8 | J159: 9 | K159: 10 | L159: Кол-во | M159: Среднее
A161: Сахар | B161: 22.40 | C161: 33.14 | D161: 27.70 | E161: 18.00 | F161: 34.30 | G161: 32.30 | H161: 26.50 | I161: 29.90 | J161: 24.50 | K161: 23.70 | L161: 272.44 | M161: 27.24
A162: Заварка | B162: 0.80 | C162: 0.30 | D162: 0.30 | E162: 0.40 | F162: 0.30 | G162: 0.30 | H162: 0.80 | I162: 0.30 | J162: 0.30 | K162: 0.50 | L162: 4.30 | M162: 0.43
A163: Яйцо | B163: 15.80 | C163: 13.00 | D163: 4.82 | E163: 11.00 | F163: 5.60 | G163: 14.50 | H163: 75.52 | I163: 6.90 | J163: 13.40 | K163: 11.10 | L163: 171.64 | M163: 17.16
A164: Дрожжи сухие | B164: 0.20 | C164: 0.00 | D164: 0.20 | E164: 0.00 | F164: 0.00 | G164: 0.20 | H164: 0.00 | I164: 0.20 | J164: 0.00 | K164: 0.20 | L164: 1.00 | M164: 0.10
A165: Батон нарезной | B165: 25.00 | C165: 25.00 | D165: 25.00 | E165: 25.00 | F165: 25.00 | G165: 25.00 | H165: 25.00 | I165: 25.00 | J165: 25.00 | K165: 25.00 | L165: 250.00 | M165: 25.00
A166: Хлеб пшеничный 1с | B166: 25.00 | C166: 30.00 | D166: 0.00 | E166: 15.00 | F166: 7.00 | G166: 20.00 | H166: 15.00 | I166: 15.00 | J166: 24.60 | K166: 23.00 | L166: 174.60 | M166: 17.46
A167: Хлеб сельский | B167: 30.00 | C167: 30.00 | D167: 30.00 | E167: 30.00 | F167: 30.00 | G167: 30.00 | H167: 30.00 | I167: 30.00 | J167: 30.00 | K167: 30.00 | L167: 300.00 | M167: 30.00
A168: Мука пшеничная | B168: 25.70 | C168: 9.00 | D168: 38.50 | E168: 3.50 | F168: 8.25 | G168: 35.00 | H168: 7.00 | I168: 25.30 | J168: 1.10 | K168: 40.10 | L168: 193.45 | M168: 19.35
A169: Кисель-концентрат | B169: 15.20 | C169: 0.00 | D169: 0.00 | E169: 15.20 | F169: 0.00 | G169: 0.00 | H169: 15.20 | I169: 0.00 | J169: 0.00 | K169: 15.20 | L169: 60.80 | M169: 6.08
A170: Макаронные изделия | B170: 20.00 | C170: 5.00 | D170: 0.00 | E170: 12.00 | F170: 0.00 | G170: 23.80 | H170: 0.00 | I170: 0.00 | J170: 0.00 | K170: 0.00 | L170: 60.80 | M170: 6.08
A171: Крупа рисовая | B171: 0.00 | C171: 0.00 | D171: 0.00 | E171: 0.00 | F171: 30.00 | G171: 0.00 | H171: 0.00 | I171: 12.00 | J171: 0.00 | K171: 9.00 | L171: 51.00 | M171: 5.10
A172: Крупа кукурузная | B172: 0.00 | C172: 0.00 | D172: 0.00 | E172: 0.00 | F172: 0.00 | G172: 0.00 | H172: 0.00 | I172: 0.00 | J172: 0.00 | K172: 0.00 | L172: 0.00 | M172: 0.00
A173: Крупа манная | B173: 0.00 | C173: 23.00 | D173: 0.00 | E173: 0.00 | F173: 7.00 | G173: 1.75 | H173: 0.00 | I173: 0.00 | J173: 0.00 | K173: 0.00 | L173: 31.75 | M173: 3.18
A174: Горох | B174: 0.00 | C174: 0.00 | D174: 12.20 | E174: 0.00 | F174: 0.00 | G174: 0.00 | H174: 0.00 | I174: 0.00 | J174: 0.00 | K174: 0.00 | L174: 12.20 | M174: 1.22
A175: Крупа пшенная | B175: 6.00 | C175: 0.00 | D175: 0.00 | E175: 0.00 | F175: 0.00 | G175: 30.00 | H175: 0.00 | I175: 15.00 | J175: 0.00 | K175: 0.00 | L175: 51.00 | M175: 5.10
A176: Крупа ячневая | B176: 0.00 | C176: 0.00 | D176: 0.00 | E176: 0.00 | F176: 0.00 | G176: 0.00 | H176: 0.00 | I176: 0.00 | J176: 0.00 | K176: 0.00 | L176: 0.00 | M176: 0.00
A177: Полба | B177: 0.00 | C177: 0.00 | D177: 0.00 | E177: 0.00 | F177: 0.00 | G177: 0.00 | H177: 0.00 | I177: 0.00 | J177: 0.00 | K177: 0.00 | L177: 0.00 | M177: 0.00
A178: Крупа перловая | B178: 0.00 | C178: 0.00 | D178: 0.00 | E178: 0.00 | F178: 6.00 | G178: 0.00 | H178: 6.60 | I178: 0.00 | J178: 0.00 | K178: 0.00 | L178: 12.60 | M178: 1.26
A179: Крупа геркулесовая | B179: 0.00 | C179: 0.00 | D179: 23.00 | E179: 0.00 | F179: 0.00 | G179: 0.00 | H179: 0.00 | I179: 0.00 | J179: 0.00 | K179: 0.00 | L179: 23.00 | M179: 2.30
A180: Крупа пшеничная | B180: 0.00 | C180: 0.00 | D180: 0.00 | E180: 0.00 | F180: 0.00 | G180: 0.00 | H180: 0.00 | I180: 0.00 | J180: 23.00 | K180: 0.00 | L180: 23.00 | M180: 2.30
A181: Крупа гречневая | B181: 0.00 | C181: 0.00 | D181: 0.00 | E181: 25.00 | F181: 0.00 | G181: 0.00 | H181: 0.00 | I181: 0.00 | J181: 0.00 | K181: 0.00 | L181: 25.00 | M181: 2.50
A182: Картофель | B182: 75.15 | C182: 217.10 | D182: 134.10 | E182: 180.36 | F182: 168.33 | G182: 43.25 | H182: 172.01 | I182: 252.17 | J182: 227.79 | K182: 80.16 | L182: 1550.42 | M182: 155.04
A183: Морковь | B183: 11.44 | C183: 87.78 | D183: 71.93 | E183: 30.58 | F183: 61.71 | G183: 8.78 | H183: 55.33 | I183: 9.31 | J183: 36.84 | K183: 110.39 | L183: 484.09 | M183: 48.41
A184: Лук репчатый | B184: 13.15 | C184: 26.18 | D184: 41.62 | E184: 29.75 | F184: 13.09 | G184: 25.22 | H184: 36.53 | I184: 22.85 | J184: 8.92 | K184: 31.42 | L184: 248.73 | M184: 24.87
A185: Свекла | B185: 0.00 | C185: 0.00 | D185: 0.00 | E185: 0.00 | F185: 0.00 | G185: 52.09 | H185: 0.00 | I185: 32.64 | J185: 0.00 | K185: 0.00 | L185: 84.73 | M185: 8.47
A186: Капуста свежая | B186: 186.25 | C186: 0.00 | D186: 45.00 | E186: 37.50 | F186: 22.50 | G186: 0.00 | H186: 48.75 | I186: 46.25 | J186: 55.25 | K186: 67.50 | L186: 509.00 | M186: 50.90
A187: икра кабачковая | B187: 0.00 | C187: 42.00 | D187: 0.00 | E187: 0.00 | F187: 42.00 | G187: 0.00 | H187: 42.00 | I187: 0.00 | J187: 0.00 | K187: 42.00 | L187: 168.00 | M187: 16.80
A188: Огурцы соленые | B188: 0.00 | C188: 0.00 | D188: 0.00 | E188: 0.00 | F188: 0.00 | G188: 0.00 | H188: 0.00 | I188: 0.00 | J188: 0.00 | K188: 0.00 | L188: 0.00 | M188: 0.00
A189: Помидоры свежие | B189: 0.00 | C189: 0.00 | D189: 51.00 | E189: 0.00 | F189: 0.00 | G189: 51.00 | H189: 0.00 | I189: 0.00 | J189: 51.00 | K189: 0.00 | L189: 153.00 | M189: 15.30
A190: Огурцы свежие | B190: 51.00 | C190: 0.00 | D190: 0.00 | E190: 51.00 | F190: 0.00 | G190: 0.00 | H190: 0.00 | I190: 51.00 | J190: 0.00 | K190: 0.00 | L190: 153.00 | M190: 15.30
A191: Томат-паста | B191: 0.00 | C191: 0.00 | D191: 0.00 | E191: 0.00 | F191: 1.20 | G191: 0.00 | H191: 0.00 | I191: 1.00 | J191: 0.00 | K191: 0.00 | L191: 2.20 | M191: 0.22
A192: Масло сливочное | B192: 14.20 | C192: 16.00 | D192: 15.70 | E192: 7.50 | F192: 15.50 | G192: 14.20 | H192: 13.10 | I192: 16.00 | J192: 12.10 | K192: 9.80 | L192: 134.10 | M192: 13.41
A193: Масло растительное | B193: 6.80 | C193: 5.20 | D193: 8.10 | E193: 11.00 | F193: 5.10 | G193: 6.85 | H193: 6.00 | I193: 6.10 | J193: 5.60 | K193: 8.50 | L193: 69.25 | M193: 6.93
A194: Фрукты свежие | B194: 79.80 | C194: 79.80 | D194: 68.40 | E194: 68.40 | F194: 79.80 | G194: 79.80 | H194: 79.80 | I194: 79.80 | J194: 79.80 | K194: 68.40 | L194: 763.80 | M194: 76.38
A195: Яблоки | B195: 0.00 | C195: 29.64 | D195: 0.00 | E195: 0.00 | F195: 0.00 | G195: 29.64 | H195: 0.00 | I195: 0.00 | J195: 29.64 | K195: 0.00 | L195: 88.92 | M195: 8.89
A196: Ягоды | B196: 0.00 | C196: 0.00 | D196: 0.00 | E196: 0.00 | F196: 0.00 | G196: 0.00 | H196: 0.00 | I196: 0.00 | J196: 0.00 | K196: 0.00 | L196: 0.00 | M196: 0.00
A197: Лимон | B197: 2.80 | C197: 0.00 | D197: 0.00 | E197: 0.00 | F197: 0.00 | G197: 0.00 | H197: 2.80 | I197: 0.00 | J197: 0.00 | K197: 0.00 | L197: 5.60 | M197: 0.56
A198: Повидло фруктовое | B198: 20.00 | C198: 10.00 | D198: 0.00 | E198: 0.00 | F198: 0.00 | G198: 0.00 | H198: 0.00 | I198: 0.00 | J198: 0.00 | K198: 0.00 | L198: 30.00 | M198: 3.00
A199: Сок | B199: 90.00 | C199: 0.00 | D199: 90.00 | E199: 90.00 | F199: 0.00 | G199: 90.00 | H199: 90.00 | I199: 90.00 | J199: 90.00 | K199: 90.00 | L199: 720.00 | M199: 72.00
A200: Курага | B200: 0.00 | C200: 0.00 | D200: 13.30 | E200: 0.00 | F200: 0.00 | G200: 0.00 | H200: 0.00 | I200: 0.00 | J200: 0.00 | K200: 0.00 | L200: 13.30 | M200: 1.33
A201: Сухофрукты | B201: 0.00 | C201: 0.00 | D201: 0.00 | E201: 0.00 | F201: 13.30 | G201: 0.00 | H201: 0.00 | I201: 13.30 | J201: 0.00 | K201: 0.00 | L201: 26.60 | M201: 2.66
A202: Урюк | B202: 0.00 | C202: 0.00 | D202: 0.00 | E202: 0.00 | F202: 0.00 | G202: 0.00 | H202: 0.00 | I202: 0.00 | J202: 0.00 | K202: 0.00 | L202: 0.00 | M202: 0.00
A203: Изюм | B203: 0.00 | C203: 0.00 | D203: 0.00 | E203: 0.00 | F203: 10.20 | G203: 0.00 | H203: 0.00 | I203: 0.00 | J203: 0.00 | K203: 0.00 | L203: 10.20 | M203: 1.02
A204: Шиповник | B204: 0.00 | C204: 0.00 | D204: 0.00 | E204: 10.00 | F204: 0.00 | G204: 0.00 | H204: 0.00 | I204: 0.00 | J204: 0.00 | K204: 10.00 | L204: 20.00 | M204: 2.00
A205: Молоко | B205: 107.00 | C205: 264.30 | D205: 236.33 | E205: 75.00 | F205: 186.80 | G205: 215.83 | H205: 116.00 | I205: 170.00 | J205: 264.13 | K205: 192.00 | L205: 1827.39 | M205: 182.74
A206: Кефир | B206: 134.00 | C206: 0.00 | D206: 0.00 | E206: 134.00 | F206: 0.00 | G206: 0.00 | H206: 134.00 | I206: 0.00 | J206: 0.00 | K206: 134.00 | L206: 536.00 | M206: 53.60
A207: Ряженка | B207: 0.00 | C207: 134.00 | D207: 0.00 | E207: 0.00 | F207: 134.00 | G207: 0.00 | H207: 0.00 | I207: 134.00 | J207: 0.00 | K207: 0.00 | L207: 402.00 | M207: 40.20
A208: Катык | B208: 0.00 | C208: 0.00 | D208: 134.00 | E208: 0.00 | F208: 0.00 | G208: 134.00 | H208: 0.00 | I208: 0.00 | J208: 134.00 | K208: 0.00
... 24 more rows

Sheet меню1-3
F1: "Утверждаю"
F2: Руководитель дошкольной образовательной
F3: организации
C5: Примерное 10 дневное меню
B6: для организации питания детей в дошкольных учреждениях
E7: с 8 -10,5 - часовым пребыванием
D8: от 1 до 3 лет
A9: День 1 - ий
A10: Наименование блюд и | C10: Масса | D10: Пищевые вещества | G10: Энергетическая | H10: Витамин | I10: № рецептуры
A11: продуктов | C11: порции | G11: ценность
D12: белки | E12: жиры | F12: угл-ды | G12: Ккал | H12: С
B13: ЗАВТРАК
A14: Макароны, запеченные с яйцом | C14: 83 | D14: 3.80 | E14: 5.10 | F14: 12.30 | G14: 110.30 | H14: 0.07 | I14: №262, справ.М.2003
A15: Чай с молоком,сахаром | C15: 160/7 | D15: 2.60 | E15: 2.00 | F15: 11.90 | G15: 76.00 | H15: 1.20 | I15: №394Дели2010
A16: Бутерброд с маслом сливочным | C16: 25/5 | D16: 1.9 | E16: 4.4 | F16: 13 | G16: 99 | I16: №1 Дели2010
A17: Фрукты свежие | C17: 70 | D17: 1.05 | E17: 0.35 | F17: 10.7 | G17: 50 | H17: 7 | I17: №368 Дели2010
A18: Итого: | C18: 350 | D18: =SUM(D13:D17) -> 9.4 | E18: =SUM(E13:E17) -> 11.9 | F18: =SUM(F13:F17) -> 47.9 | G18: =SUM(G13:G17) -> 335.3 | H18: =SUM(H13:H17) -> 8.3
B19: 2 - ой ЗАВТРАК
A20: Сок | C20: 90 | D20: 0.75 | E20: 0 | F20: 10 | G20: 43 | H20: 3 | I20: №399Дели2010
A21: Итого: | C21: 90 | D21: =SUM(D20) -> 0.75 | E21: =SUM(E20) -> 0.00 | F21: =SUM(F20) -> 10.00 | G21: =SUM(G20) -> 43.00 | H21: =SUM(H20) -> 3.00
B22: ОБЕД
A23: Огурцы порционно | C23: 50 | D23: 0.35 | E23: 0.05 | F23: 0.35 | G23: 3.50 | H23: 3.50 | I23: сб1996, стр564
A24: Суп с крупой и картофелем с мясом | C24: 150/10 | D24: 6 | E24: 4.5 | F24: 12 | G24: 112.5 | H24: 4.2 | I24: №138сбшк2004
A25: Котлеты рубленые из говядины | C25: 55/2 | D25: 8.6 | E25: 8.5 | F25: 8.6 | G25: 145 | H25: 0.33 | I25: №451сбшк2004
A26: Капуста тушеная | C26: 130 | D26: 2.86 | E26: 4.2 | F26: 12.2 | G26: 98 | H26: 21.4 | I26: №534сбшк2004
A27: Кисель | C27: 130 | F27: 13.00 | G27: 52.00 | I27: №648сбшк2004
A28: Хлеб пшеничный 1с | C28: 15 | D28: 1.2 | E28: 0.15 | F28: 7.3 | G28: 36 | H28: 0
A29: Хлеб сельский | C29: 30 | D29: 1.5 | E29: 0.3 | F29: 14.3 | G29: 66
A30: Итого: | C30: 572 | D30: =SUM(D22:D29) -> 20.51 | E30: =SUM(E22:E29) -> 17.7 | F30: =SUM(F22:F29) -> 67.75 | G30: =SUM(G22:G29) -> 513 | H30: =SUM(H22:H29) -> 29.43
B31: ПОЛДНИК
A32: Пирожок печёный с повидлом | C32: 50 | D32: 3 | E32: 2.7 | F32: 22 | G32: 124.3 | H32: 0 | I32: №738сбшк2004
A33: Кефир | C33: 130 | D33: 4 | E33: 3.25 | F33: 5.1 | G33: 65.5 | H33: 1.05 | I33: №401Дели2010
A34: Чай с сахаром и лимоном | C34: 100/4/2,5 | D34: 0.03 | E34: 0.01 | F34: 5.60 | G34: 22.75 | H34: 1.59 | I34: №393Дели2010
A35: Итого: | C35: 286.5 | D35: =SUM(D31:D34) -> 7.03 | E35: =SUM(E31:E34) -> 5.96 | F35: =SUM(F31:F34) -> 32.70 | G35: =SUM(G31:G34) -> 212.55 | H35: =SUM(H31:H34) -> 2.64
A36: ВСЕГО: | C36: =C18+C21+C30+C35 -> 1298.5 | D36: 37.6 | E36: 35.5 | F36: 158.4 | G36: 1103.9 | H36: 43.3
A38: День 2- ый
A39: Наименование блюд и | C39: Масса | D39: Пищевые вещества | G39: Энергетическая | H39: Витамин | I39: № рецептуры
A40: продуктов | C40: порции | G40: ценность
D41: белки | E41: жиры | F41: угл-ды | G41: Ккал | H41: С
B42: ЗАВТРАК
A43: Каша манная молочная жидкая | C43: 150/4 | D43: 4.50 | E43: 4.50 | F43: 20.00 | G43: 138.50 | H43: 0.16 | I43: №311,сбшк2004
A44: Какао с молоком | C44: 160 | D44: 2.00 | E44: 2.20 | F44: 11.30 | G44: 73.00 | H44: 0.32 | I44: №397Дели2010
A45: Бутерброд с сыром, маслом | C45: 25/5/5 | D45: 3.50 | E45: 5.95 | F45: 12.90 | G45: 119.00 | H45: 0.15 | I45: №3Дели2010
A46: Итого: | C46: 350 | D46: =SUM(D42:D45) -> 10.00 | E46: =SUM(E42:E45) -> 12.65 | F46: =SUM(F42:F45) -> 44.20 | G46: =SUM(G42:G45) -> 330.50 | H46: =SUM(H42:H45) -> 0.63
B47: 2 - ой ЗАВТРАК
A48: Фрукты свежие | C48: 70 | D48: 0 | E48: 0 | F48: 2.3 | G48: 9.2 | H48: 7 | I48: №368 Дели2010
A49: Итого: | C49: 70 | D49: =SUM(D48) -> 0.00 | E49: =SUM(E48) -> 0.00 | F49: 2.30 | G49: 9.20 | H49: 7.00
B50: ОБЕД
A51: Икра кабачковая | C51: 40 | D51: 0.76 | E51: 3.56 | F51: 3.08 | G51: 47.60 | H51: 2.80
A52: Суп вермишелевый с картофелем, говядиной | C52: 150/10 | D52: 8.7 | E52: 5.2 | F52: 16 | G52: 145 | H52: 4 | I52: 140сбшк2004
A53: Пудинг рыбный | C53: 80.00 | D53: 3.20 | E53: 5.20 | F53: 7.20 | G53: 88.00 | I53: ТТК №4
A54: Картофель тушёный | C54: 100 | D54: 1.87 | E54: 5.3 | F54: 8.2 | G54: 88 | H54: 7.3 | I54: №216сбшк2004
A55: Компот из свежих яблок | C55: 130 | D55: 0.10 | E55: 0.10 | F55: 10.20 | G55: 42.00 | H55: 1.20 | I55: №372Дели2010
A56: Хлеб сельский | C56: 30 | D56: 1.5 | E56: 0.3 | F56: 14.3 | G56: 65.9
A57: Итого: | C57: 540 | D57: =SUM(D50:D56) -> 16.1 | E57: =SUM(E50:E56) -> 19.7 | F57: =SUM(F50:F56) -> 59.0 | G57: =SUM(G50:G56) -> 476.5 | H57: =SUM(H50:H56) -> 15.3
B58: ПОЛДНИК
A59: Ряженка | C59: 130 | D59: 3.5 | E59: 3.2 | F59: 3.2 | G59: 55 | H59: 0.68 | I59: №400Дели2010
A60: салат из моркови припущенной | C60: 50/2 | D60: 0.75 | E60: 0.06 | F60: 8.00 | G60: 35.50 | H60: 1.90 | I60: №41 Дели2010
A61: Суфле из творога с повидлом | C61: 90/10 | D61: 12.0 | E61: 6.0 | F61: 22.0 | G61: 190 | H61: 0.3 | I61: №365сбшк2004
A62: Чай с сахаром | C62: 100/4 | D62: 0.05 | E62: 0.01 | F62: 5.4 | G62: 21.9 | I62: №392Дели2010
A63: Хлеб пшеничный 1с | C63: 20 | D63: 1.6 | E63: 0.2 | F63: 9.8 | G63: 47 | H63: 0
A64: Итого: | C64: 406 | D64: =SUM(D58:D63) -> 17.9 | E64: =SUM(E58:E63) -> 9.5 | F64: =SUM(F58:F63) -> 48.4 | G64: =SUM(G58:G63) -> 349.4 | H64: =SUM(H58:H63) -> 2.9
A65: ВСЕГО: | C65: =C46+C49+C57+C64 -> 1366 | D65: 44.0 | E65: 41.8 | F65: 153.9 | G65: 1165.6 | H65: 25.8
A67: День 3 - ий
A68: Наименование блюд и | C68: Масса | D68: Пищевые вещества | G68: Энергетическая | H68: Витамин | I68: № рецептуры
A69: продуктов | C69: порции | G69: ценность
D70: белки | E70: жиры | F70: угл-ды | G70: Ккал | H70: С
B71: ЗАВТРАК
A72: Каша Геркулесовая молочная с маслом | C72: 150/4 | D72: 4.75 | E72: 4.30 | F72: 14.00 | G72: 114.00 | H72: 0.21 | I72: №311 сбшк2004
A73: Кофейный напиток с молоком | C73: 165 | D73: 1 | E73: 1.2 | F73: 10 | G73: 55 | H73: 0.16 | I73: №395Дели2010
A74: Бутерброд с маслом сливочным | C74: 25/5 | D74: 1.9 | E74: 4.4 | F74: 13 | G74: 99 | I74: №1 Дели2010
A75: Итого: | C75: 350 | D75: =SUM(D71:D74) -> 7.65 | E75: =SUM(E71:E74) -> 9.9 | F75: =SUM(F71:F74) -> 37 | G75: =SUM(G71:G74) -> 268 | H75: =SUM(H71:H74) -> 0.374
B76: 2 - ой ЗАВТРАК
A77: Сок | C77: 90 | D77: 0.75 | E77: 0 | F77: 10 | G77: 43 | H77: 3 | I77: №399Дели2010
A78: Итого: | C78: 90 | D78: =SUM(D77) -> 0.75 | E78: =SUM(E77) -> 0.00 | F78: 10.00 | G78: 43.00 | H78: 3.00
B79: ОБЕД
A80: Помидоры порционно | C80: 50 | D80: 0.63 | E80: 0.05 | F80: 7.10 | G80: 31.30 | H80: 1.60 | I80: сб1996, стр563
A81: Суп картофельный с горохом с мясными фрикадельками | C81: 150/15 | D81: 7.3 | E81: 5 | F81: 11.9 | G81: 122 | H81: 4.41 | I81: №139,сбшк2004
A83: Биточки куриные "Солнышко" | C83: 60 | D83: 8.20 | E83: 6.20 | F83: 6.50 | G83: 115.00 | H83: 0.34 | I83: акт от 07.02.14
A84: Рагу овощное | C84: 150 | D84: 3.00 | E84: 6.40 | F84: 12.00 | G84: 117.00 | H84: 7.40 | I84: №224,сбшк2004
A85: Компот из кураги | C85: 130 | D85: 0.60 | E85: 0.00 | F85: 18.00 | G85: 73.50 | H85: 0.11 | I85: №376Дели2010
A86: Хлеб сельский | C86: 30 | D86: 1.5 | E86: 0.3 | F86: 14.3 | G86: 66
A87: Итого: | C87: 585 | D87: =SUM(D79:D86) -> 21.23 | E87: =SUM(E79:E86) -> 17.95 | F87: =SUM(F79:F86) -> 69.80 | G87: =SUM(G79:G86) -> 524.80 | H87: =SUM(H79:H86) -> 13.86
B88: ПОЛДНИК
A89: Фрукты свежие | C89: 60 | D89: 0.2 | E89: 0.2 | F89: 2 | G89: 10.6 | H89: 7 | I89: №368 Дели2010
A90: Катык | C90: 130 | D90: 4 | E90: 3.2 | F90: 3.1 | G90: 57 | H90: 1.05 | I90: №401Дели2010
A91: Булочка Домашняя | C91: 45 | D91: 4.20 | E91: 6.00 | F91: 26.00 | G91: 174.00 | H91: 0.00 | I91: №769сбшк2004
A92: Чай с молоком,сахаром | C92: 100/4 | D92: 1.70 | E92: 1.30 | F92: 7.90 | G92: 50.00 | H92: 0.78 | I92: №394Дели2010
A93: Кондитерские изделия | C93: 15 | D93: 0.42 | E93: 0.5 | F93: 5 | G93: 26
A94: Итого: | C94: 354 | D94: =SUM(D88:D93) -> 10.5 | E94: =SUM(E88:E93) -> 11.2 | F94: =SUM(F88:F93) -> 44.0 | G94: =SUM(G88:G93) -> 317.6 | H94: =SUM(H88:H93) -> 8.8
A95: ВСЕГО: | C95: =C75+C78+C87+C94 -> 1379 | D95: 40.2 | E95: 39.1 | F95: 160.8 | G95: 1153.4 | H95: 26.1
A97: День 4 - ый
A98: Наименование блюд и | C98: Масса | D98: Пищевые вещества | G98: Энергетическая | H98: Витамин | I98: № рецептуры
A99: продуктов | C99: порции | G99: ценность
D100: белки | E100: жиры | F100: угл-ды | G100: Ккал | H100: С
B101: ЗАВТРАК
A102: Суп молочный с макаронными изделиями | C102: 150 | D102: 3.30 | E102: 3.10 | F102: 13.90 | G102: 96.00 | H102: 0.39 | I102: №160,сбшк2004
A103: Чай с сахаром | C103: 160/7 | F103: 8.50 | G103: 34.00 | I103: №394Дели2010
A104: Бутерброд с сыром, маслом | C104: 25/5/5 | D104: 3.50 | E104: 5.95 | F104: 12.90 | G104: 119.60 | H104: 0.15 | I104: №3Дели2010
A105: Итого: | C105: 352 | D105: =SUM(D101:D104) -> 6.80 | E105: =SUM(E101:E104) -> 9.05 | F105: =SUM(F101:F104) -> 35.30 | G105: =SUM(G101:G104) -> 249.60 | H105: =SUM(H101:H104) -> 0.54
B106: 2 - ой ЗАВТРАК
A107: Сок | C107: 90 | D107: 0.3 | E107: 0 | F107: 17 | G107: 69 | H107: 3 | I107: №399Дели2010
A108: Итого: | C108: 90 | D108: =SUM(D107) -> 0.30 | E108: =SUM(E107) -> 0.00 | F108: 17.00 | G108: 69.00 | H108: 3.00
B109: ОБЕД
A110: Огурцы порционно | C110: 50 | D110: 0.35 | E110: 0.05 | F110: 0.35 | G110: 3.50 | H110: 3.50 | I110: сб1996, стр564
A111: Щи со свежей капустой, картофелем на м/б,со сметаной | C111: 150/6 | D111: 1.30 | E111: 3.30 | F111: 5.00 | G111: 55.00 | H111: 7.19 | I111: №124,сбшк2004
A112: Гуляш из отварной говядины | C112: 40/40 | D112: 10.00 | E112: 10.00 | F112: 3.00 | G112: 142.00 | H112: 0.37 | I112: №141,сб.диет2002
A113: Каша гречневая вязкая | C113: 100 | D113: 2.50 | E113: 3.00 | F113: 21.00 | G113: 121.00 | I113: №297,сбшк2004
A114: Кисель | C114: 130 | F114: 13.00 | G114: 52.00 | I114: №648сбшк2004
A115: Хлеб сельский | C115: 30 | D115: 1.5 | E115: 0.3 | F115: 14.3 | G115: 66
A116: Итого: | C116: 545 | D116: =SUM(D109:D115) -> 15.65 | E116: =SUM(E109:E115) -> 16.65 | F116: =SUM(F109:F115) -> 56.65 | G116: =SUM(G109:G115) -> 439.50 | H116: =SUM(H109:H115) -> 11.06
B117: ПОЛДНИК
A118: Фрукты свежие | C118: 60 | D118: 0.1 | E118: 0.09 | F118: 17 | G118: 69 | H118: 29.4 | I118: №368Дели2010
A119: Запеканка картофельная с овощами,соусом | C119: 100/20 | D119: 3.50 | E119: 6.00 | F119: 10.90 | G119: 112.00 | H119: 0.01 | I119: №293, справ.М.2003
A120: Кефир | C120: 130 | D120: 4 | E120: 3.2 | F120: 5.1 | G120: 65 | H120: 1.05 | I120: №401Дели2010
A121: Напиток из плодов шиповника | C121: 100 | D121: 0.3 | E121: 0.13 | F121: 9.4 | G121: 39.9 | H121: 40.7 | I121: №398Дели2010
A122: Хлеб пшеничный 1с | C122: 15 | D122: 1.2 | E122: 0.15 | F122: 7.3 | G122: 36 | H122: 0
A123: Итого: | C123: 425 | D123: =SUM(D117:D122) -> 9.10 | E123: =SUM(E117:E122) -> 9.57 | F123: =SUM(F117:F122) -> 49.70 | G123: =SUM(G117:G122) -> 321.90 | H123: =SUM(H117:H122) -> 71.16
A124: ВСЕГО: | C124: =C105+C108+C116+C123 -> 1412 | D124: 31.85 | E124: 35.27 | F124: 158.65 | G124: 1080.00 | H124: 85.76
A126: День 5 - ый
A127: Наименование блюд и | C127: Масса | D127: Пищевые вещества | G127: Энергетическая | H127: Витамин | I127: № рецептуры
A128: продуктов | C128: порции | G128: ценность
D129: белки | E129: жиры | F129: угл-ды | G129: Ккал | H129: С
B130: ЗАВТРАК
A131: Каша рисовая молочная с маслом | C131: 150/4 | D131: 4.4 | E131: 3.8 | F131: 18.3 | G131: 125 | H131: 0.16 | I131: №311сбшк2004
A132: Какао с молоком | C132: 160 | D132: 2.00 | E132: 2.20 | F132: 11.30 | G132: 73.30 | H132: 0.32 | I132: №397Дели2010
A133: Бутерброд с маслом сливочным | C133: 25/5 | D133: 1.9 | E133: 4.4 | F133: 13 | G133: 99 | I133: №1 Дели2010
C134: 350 | D134: =SUM(D130:D133) -> 8.30 | E134: =SUM(E130:E133) -> 10.40 | F134: =SUM(F130:F133) -> 42.60 | G134: =SUM(G130:G133) -> 297.30 | H134: =SUM(H130:H133) -> 0.48
B135: 2 - ой ЗАВТРАК
A136: Фрукты свежие | C136: 70 | D136: 0.2 | E136: 0.1 | F136: 10 | G136: 42 | H136: 7 | I136: №368 Дели2010
A137: Итого: | C137: 70 | D137: =SUM(D136) -> 0.20 | E137: =SUM(E136) -> 0.10 | F137: 10.00 | G137: 42.00 | H137: 7.00
B138: ОБЕД
A139: Икра кабачковая | C139: 40 | D139: 0.76 | E139: 3.56 | F139: 3.08 | G139: 47.60 | H139: 2.80
A140: Суп крестьянский с цыплятами, сметаной | C140: 150/15/6 | D140: 4.24 | E140: 4.80 | F140: 7.10 | G140: 88.60 | H140: 3.73 | I140: №134сбшк2004
A141: Тефтели рыбные в сметанно-томатном соусе | C141: 70/30 | D141: 11.00 | E141: 7.00 | F141: 9.40 | G141: 144.00 | I141: ТТК №1
A142: Пюре Картофельное | C142: 100 | D142: 2.00 | E142: 3.00 | F142: 14.00 | G142: 90.80 | H142: 6.95 | I142: №520,сбшк2004
A143: Компот из сухофруктов | C143: 130 | D143: 0.60 | E143: 0.00 | F143: 18.10 | G143: 73.50 | H143: 0.26 | I143: №376Дели2010
A144: Хлеб сельский | C144: 30 | D144: 1.5 | E144: 0.3 | F144: 14.3 | G144: 66
A145: Итого: | C145: 571.00 | D145: =SUM(D138:D144) -> 20.10 | E145: =SUM(E138:E144) -> 18.66 | F145: =SUM(F138:F144) -> 65.98 | G145: =SUM(G138:G144) -> 510.50 | H145: =SUM(H138:H144) -> 13.74
B146: ПОЛДНИК
A147: Ряженка | C147: 130 | D147: 3.2 | E147: 3.3 | F147: 5.5 | G147: 64 | H147: 0.68 | I147: №400Дели2010
A148: Морковь отварная | C148: 40 | D148: 0.4 | E148: 0.4 | F148: 2.2 | G148: 14.4 | H148: 0.4 | I148: сб1996,стр562
A149: Пудинг творожный | C149: 100/20 | D149: 12.00 | E149: 7.30 | F149: 25.00 | G149: 214.00 | H149: 12.50 | I149: №349, справ М 2003
A150: Чай с сахаром | C150: 100/4 | D150: 0.05 | E150: 0.01 | F150: 5.4 | G150: 21.9 | I150: №392Дели2010
A151: Итого: | C151: 394 | D151: =SUM(D146:D150) -> 15.65 | E151: =SUM(E146:E150) -> 11.01 | F151: =SUM(F146:F150) -> 38.10 | G151: =SUM(G146:G150) -> 314.30 | H151: =SUM(H146:H150) -> 13.58
A152: ВСЕГО: | C152: =C134+C137+C145+C151 -> 1385.00 | D152: 44.25 | E152: 40.17 | F152: 156.68 | G152: 1164.10 | H152: 34.80
A154: День 6 - ой
A155: Наименование блюд и | C155: Масса | D155: Пищевые вещества | G155: Энергетическая | H155: Витамин | I155: № рецептуры
A156: продуктов | C156: порции | G156: ценность
D157: белки | E157: жиры | F157: угл-ды | G157: Ккал | H157: С
B158: ЗАВТРАК
A159: Каша пшённая молочная с маслом | C159: 150/4 | D159: 5.50 | E159: 6.70 | F159: 24.60 | G159: 180.00 | H159: 0.16 | I159: №311,сбшк2004
A160: Кофейный напиток с молоком | C160: 165 | D160: 1 | E160: 1.2 | F160: 10 | G160: 55 | H160: 0.16 | I160: №395Дели2010
A161: Бутерброд с сыром, маслом | C161: 25/5/5 | D161: 3.50 | E161: 5.95 | F161: 12.90 | G161: 119.60 | H161: 0.04 | I161: №3Дели2010
A162: Итого: | C162: 354
B163: 2 - ой ЗАВТРАК
A164: Сок | C164: 90 | D164: 0.23 | E164: 0 | F164: 3 | G164: 13 | H164: 1.5 | I164: №399Дели2010
A165: Итого: | C165: 90 | D165: =SUM(D158:D164) -> 10.23 | E165: =SUM(E158:E164) -> 13.85 | F165: =SUM(F158:F164) -> 50.50 | G165: =SUM(G158:G164) -> 367.60 | H165: =SUM(H158:H164) -> 1.86
B166: ОБЕД
A167: Помидоры порционно | C167: 50 | D167: 0.63 | E167: 0.05 | F167: 7.10 | G167: 31.30 | H167: 1.60 | I167: сб1996, стр563
A168: Свекольник с мясными фрикадельками, со сметаной | C168: 150/15/6 | D168: 6.90 | E168: 6.00 | F168: 11.20 | G168: 126.70 | H168: 4.77 | I168: №35,сб.Пермь
A169: Биточки рубленые из рыбы | C169: 70 | D169: 10.40 | E169: 4.90 | F169: 3.50 | G169: 99.00 | I169: ТТК №3
A170: Макароны отварные | C170: 70/2 | D170: 2.60 | E170: 2.00 | F170: 8.00 | G170: 60.00 | I170: №332,сбшк2004
A171: Компот из свежих яблок | C171: 130 | D171: 0.10 | E171: 0.10 | F171: 10.20 | G171: 42.00 | H171: 1.20 | I171: №372Дели2010
A172: Хлеб пшеничный 1с | C172: 20 | D172: 1.6 | E172: 0.2 | F172: 9.8 | G172: 47 | H172: 0
A173: Хлеб сельский | C173: 30 | D173: 1.5 | E173: 0.3 | F173: 14.3 | G173: 66
A174: Итого: | C174: 543.00 | D174: =SUM(D166:D173) -> 23.73 | E174: =SUM(E166:E173) -> 13.55 | F174: =SUM(F166:F173) -> 64.10 | G174: =SUM(G166:G173) -> 472.00 | H174: =SUM(H166:H173) -> 7.57
B175: ПОЛДНИК
A176: Фрукты свежие | C176: 70 | D176: 0.2 | E176: 0.2 | F176: 2.5 | G176: 12.6 | H176: 7 | I176: №368Дели2010
A177: Катык | C177: 130 | D177: 4.35 | E177: 3.2 | F177: 6 | G177: 70 | H177: 1.05 | I177: №401Дели2010
A178: Плюшка новомосковская | C178: 50 | D178: 2.30 | E178: 2.90 | F178: 21.00 | G178: 120.00 | H178: 0.02 | I178: №184
A179: Кондитерские изделия | C179: 19 | D179: 0.53 | E179: 4.6 | F179: 2 | G179: 51 | H179: 0
A180: (печенье)
A181: Чай с молоком,сахаром | C181: 100/4 | D181: 1.70 | E181: 1.30 | F181: 7.90 | G181: 50.00 | H181: 0.78 | I181: №394Дели2010
A182: Итого: | C182: 373 | D182: =SUM(D175:D181) -> 9.08 | E182: =SUM(E175:E181) -> 12.20 | F182: =SUM(F175:F181) -> 39.40 | G182: =SUM(G175:G181) -> 303.60 | H182: =SUM(H175:H181) -> 8.85
A183: ВСЕГО: | C183: =C165+C174+C182 -> 1006.00 | D183: 43.04 | E183: 39.60 | F183: 154.00 | G183: 1143.20 | H183: 18.28
A185: День 7 - ой
A186: Наименование блюд и | C186: Масса | D186: Пищевые вещества | G186: Энергетическая | H186: Витамин | I186: № рецептуры
A187: продуктов | C187: порции | G187: ценность
D188: белки | E188: жиры | F188: угл-ды | G188: Ккал | H188: С
B189: ЗАВТРАК
A190: Омлет с сыром | C190: 85/5 | D190: 7.20 | E190: 5.90 | F190: 2.40 | G190: 92.00 | H190: 0.11 | I190: №215Дели2010
A191: Чай с молоком,сахаром | C191: 160/7 | D191: 2.60 | E191: 2.00 | F191: 11.90 | G191: 76.00 | H191: 1.20 | I191: №394Дели2010
A192: Бутерброд с маслом сливочным | C192: 25/5 | D192: 1.9 | E192: 4.4 | F192: 13 | G192: 99 | I192: №1 Дели2010
A193: Фрукты свежие | C193: 70 | D193: 0.2 | E193: 0.01 | F193: 15 | G193: 61 | H193: 7 | I193: №368 Дели2010
A194: Итого: | C194: 357 | D194: =SUM(D189:D193) -> 11.9 | E194: =SUM(E189:E193) -> 12.3 | F194: =SUM(F189:F193) -> 42.3 | G194: =SUM(G189:G193) -> 328.0 | H194: =SUM(H189:H193) -> 8.3
B195: 2 - ой ЗАВТРАК
A196: Сок | C196: 90 | D196: 0.75 | E196: 0 | F196: 10 | G196: 43 | H196: 3 | I196: №399Дели2010
A197: Итого: | C197: 90 | D197: =SUM(D196) -> 0.75 | E197: =SUM(E196) -> 0.00 | F197: =SUM(F196) -> 10.00 | G197: =SUM(G196) -> 43.00 | H197: =SUM(H196) -> 3.00
B198: ОБЕД
A199: Икра кабачковая | C199: 40 | D199: 0.76 | E199: 3.56 | F199: 3.08 | G199: 47.60 | H199: 2.80
A200: Суп с крупой, картофелем с рыбными фрикадельками | C200: 150/20 | D200: 6.80 | E200: 2.00 | F200: 11.80 | G200: 92.40 | H200: 4.20 | I200: №138сбшк2004
A201: Рагу овощное с мясом | C201: 160/47 | D201: 11.00 | E201: 14.10 | F201: 25.00 | G201: 270.00 | H201: 0.33 | I201: №224сбшк2004
A202: Кисель | C202: 130 | F202: 13.00 | G202: 52.00 | I202: №648сбшк2004
A203: Хлеб пшеничный 1с | C203: 15 | D203: 1.2 | E203: 0.1 | F203: 7.3 | G203: 36 | H203: 0
A204: Хлеб сельский | C204: 30 | D204: 1.5 | E204: 0.3 | F204: 14.3 | G204: 66
A205: Итого: | C205: 592.00 | D205: =SUM(D198:D204) -> 21.26 | E205: =SUM(E198:E204) -> 20.06 | F205: =SUM(F198:F204) -> 74.48 | G205: =SUM(G198:G204) -> 564.00 | H205: =SUM(H198:H204) -> 7.33
B206: ПОЛДНИК
A207: Кефир | C207: 130/3 | D207: 4 | E207: 3.2 | F207: 5.1 | G207: 65 | H207: 1.05 | I207: №401Дели2010
A208: Запеканка творожная со сгущённым молоком | C208: 75/20 | D208: 5.70 | E208: 5.50 | F208: 16.70 | G208: 139.00 | H208: 0.24 | I208: № 237 Дели 2010
... 116 more rows

Sheet раскладка3-7
H1: "Утверждаю"
H2: Руководитель дошкольной образовательной
H3: организации
D8: Примерное 10 дневное меню
C9: для организации питания детей в дошкольных учреждениях
F10: с 8 -10,5 - часовым пребыванием
E11: от 3 до 7 лет
A12: День 1 - ый
A13: Наименование блюд и | C13: Масса | D13: Кол - во | E13: Кол - во | F13: Пищевые вещества | I13: Энергетическая | J13: витамин | K13: Сборник рецептур
A14: продуктов | C14: порции | D14: (в гр ) | E14: (в гр ) | I14: ценность
D15: брутто | E15: нетто | F15: белки | G15: жиры | H15: угл-ды | I15: Ккал | J15: С
B16: ЗАВТРАК
A17: Макароны, запеченные с яйцом | C17: 130/4 | F17: 6.20 | G17: 8.30 | H17: 20.00 | I17: 179.50 | J17: 0.12 | K17: №262,справ.М2003
B18: Макаронные изделия | D18: 34.00 | E18: 34.00
B19: Яйцо | D19: 21.30 | E19: 19.00
B20: Масло сливочное | D20: 2.60 | E20: 2.60
B21: Молоко | D21: 24.30 | E21: 24.30
B22: соль | D22: 0.80 | E22: 0.80
B23: масса п/ф | E23: 142.00
B24: Масло сливочное | D24: 4.00 | E24: 4.00
A25: Чай с сахаром и молоком | C25: 180/10 | F25: 2.60 | G25: 2.30 | H25: 14.30 | I25: 89.00 | J25: 1.20 | K25: № 394 Дели2010
B26: Заварка | D26: 0.50 | E26: 0.50
B27: Сахар | D27: 10.00 | E27: 10.00
B28: Молоко | D28: 92.00 | E28: 90.00
B29: Вода | D29: 90.00 | E29: 90.00
A30: Бутерброд с маслом сливочным | C30: 30/5 | F30: 2.30 | G30: 4.50 | H30: 15.40 | I30: 111.00 | K30: №1 Дели2010
B31: Батон нарезной | D31: 30.00 | E31: 30.00
B32: Масло сливочное | D32: 5.00 | E32: 5.00
A33: Фрукты свежие | C33: 70 | D33: 79.8 | E33: 70 | F33: 1.05 | G33: 0.35 | H33: 14.7 | I33: 67 | J33: 7 | K33: №368 Дели2010
A34: Итого: | C34: 429 | F34: =SUM(F16:F33) -> 12.15 | G34: =SUM(G16:G33) -> 15.45 | H34: 64.40 | I34: 446.50 | J34: 8.32
B35: 2 - ой ЗАВТРАК
A36: Сок | C36: 90 | D36: 90.00 | E36: 90.00 | F36: 0.3 | G36: 0.00 | H36: 10.80 | I36: 44 | J36: 11.00 | K36: №399,Дели2010
A37: Итого: | C37: 90 | F37: =SUM(F36) -> 0.30 | G37: =SUM(G36) -> 0.00 | H37: 10.80 | I37: 44.00 | J37: 11.00
B38: ОБЕД
A39: Огурцы порционно | C39: 60 | F39: 0.42 | G39: 0.06 | H39: 1.14 | I39: 6.80 | J39: 4.20 | K39: сб1996, стр564
B40: Огурцы свежие | D40: 61.20 | E40: 60.00
A41: Суп с крупой и картофелем с мясом | C41: 200/10 | F41: 7.00 | G41: 5.00 | H41: 16.10 | I41: 137.50 | J41: 5.60 | K41: №138, сб шк2004
B42: Говядина | D42: 22.00 | E42: 16.20
B43: Картофель | D43: 100.20 | E43: 60.00
B44: Морковь | D44: 10.64 | E44: 8.00
B45: Лук репчатый | D45: 9.52 | E45: 8.00
B46: Крупа пшенная | D46: 8.00 | E46: 8.00
B47: Масло растительное | D47: 4.00 | E47: 4.00
B48: Соль | D48: 1.00 | E48: 1.00
B49: Вода | D49: 144.00 | E49: 144.00
A50: Котлеты рубленые из говядины | C50: 70/4 | F50: 11.00 | G50: 10.80 | H50: 10.90 | I50: 184.00 | J50: 0.42 | K50: №451сбшк2004
B51: Говядина | D51: 70.65 | E51: 52.00
B52: Хлеб пшеничный 1с | D52: 13.00 | E52: 13.00
B53: Вода | D53: 16.00 | E53: 16.00
B54: сухари панировочные | D54: 7.00 | E54: 7.00
B55: масса полуфабриката | E55: 86.00
B56: Масло растительное | D56: 2.00 | E56: 2.00
B57: Масло сливочное | D57: 4.00 | E57: 4.00
B58: соль | D58: 1.00 | E58: 1.00
A59: Капуста тушеная | C59: 150 | F59: 3.30 | G59: 4.90 | H59: 16.10 | I59: 121.00 | J59: 24.70 | K59: №534сб шк2004
B60: Капуста свежая | D60: 215.00 | E60: 172.00
B61: Лук репчатый | D61: 7.14 | E61: 6.00
B62: Морковь | D62: 3.99 | E62: 3.00
B63: Мука пшеничная | D63: 2.00 | E63: 2.00
B64: Масло растительное | D64: 2.00 | E64: 2.00
B65: Масло сливочное | D65: 2.00 | E65: 2.00
B66: Томат-паста | D66: 1.20 | E66: 1.20
B67: Сахар | D67: 4.50 | E67: 4.50
B68: Соль | D68: 1.00 | E68: 1.00
A69: Кисель | C69: 150 | H69: 18.00 | I69: 71.00 | K69: № 648, сб шк2004
B70: Кисель-концентрат | D70: 18.00 | E70: 18.00
B71: вода | D71: 143.00 | E71: 143.00
B72: Сахар | D72: 7.50 | E72: 7.50
A73: Хлеб сельский | C73: 37.5 | D73: 37.50 | E73: 37.50 | F73: 1.8 | G73: 0.4 | H73: 18 | I73: 82.5
A74: Итого: | C74: 681.5 | F74: =SUM(F38:F73) -> 23.52 | G74: =SUM(G38:G73) -> 21.16 | H74: =SUM(H38:H73) -> 80.24 | I74: =SUM(I38:I73) -> 602.8 | J74: =SUM(J38:J73) -> 34.92
B75: ПОЛДНИК
A76: Пирожок печёный с повидлом | C76: 60 | F76: 3.4 | G76: 2.9 | H76: 24.1 | I76: 136 | J76: 0 | K76: №738сбшк2004
B77: Мука пшеничная | D77: 29.3 | E77: 29.3
B78: Масло сливочное | D78: 3 | E78: 3
B79: сахар | D79: 2 | E79: 2
B80: Яйцо | D80: 4.8 | E80: 4.2
B81: соль | D81: 0.7 | E81: 0.7
B82: вода | D82: 8 | E82: 8
B83: дрожжи сухие | D83: 0.2 | E83: 0.2
B84: тесто дрожжевое | E84: 43
B85: Масло растительное | D85: 0.1 | E85: 0.1
B86: повидло фруктовое | D86: 25 | E86: 25
A87: Кефир | C87: 150 | F87: 4.35 | G87: 3.8 | H87: 6.0 | I87: 80 | J87: 1.05 | K87: №401Дели2010
B88: кефир | D88: 155.00 | E88: 150.00
A89: Кондитерские изделия | C89: 15 | D89: 15.00 | E89: 15.00 | F89: 0.9 | G89: 3.5 | H89: 11.0 | I89: 79
A90: Чай с сахаром и лимоном | C90: 120/5/3 | F90: 0.08 | G90: 0.01 | H90: 6.80 | I90: 27.30 | J90: 1.90 | K90: №393Дели2010
B91: Заварка | D91: 0.3 | E91: 0.3
B92: Сахар | D92: 5 | E92: 5
B93: лимон | D93: 3.4 | E93: 3
B94: Вода | D94: 120.0 | E94: 120.0
A95: Итого: | C95: 350 | F95: =SUM(F75:F94) -> 8.73 | G95: =SUM(G75:G94) -> 10.16 | H95: =SUM(H75:H94) -> 47.9 | I95: =SUM(I75:I94) -> 322.3 | J95: =SUM(J75:J94) -> 2.95
A97: ВСЕГО: | C97: =C34+C37+C74+C95 -> 1550.5 | F97: =F34+F37+F74+F95 -> 44.70 | G97: =G34+G37+G74+G95 -> 46.77 | H97: =H34+H37+H74+H95 -> 203.34 | I97: =I34+I37+I74+I95 -> 1415.60 | J97: =J34+J37+J74+J95 -> 57.19
A99: День 2- ой
A100: Наименование блюд и | C100: Масса | D100: Кол - во | E100: Кол - во | F100: Пищевые вещества | I100: Энергетическая | J100: витамин | K100: №рецептуры
A101: продуктов | C101: порции | D101: (в гр ) | E101: (в гр ) | I101: ценность
D102: брутто | E102: нетто | F102: белки | G102: жиры | H102: угл-ды | I102: Ккал | J102: С
B103: ЗАВТРАК
A104: Каша манная молочная жидкая | C104: 200/5 | F104: 6.00 | G104: 8.20 | H104: 28.00 | I104: 209.50 | J104: 0.22 | K104: №311,сбшк2004
B105: Крупа манная | D105: 31.00 | E105: 31.00
B106: Молоко | D106: 126.00 | E106: 126.00
B107: вода | D107: 50.00 | E107: 50.00
B108: Сахар | D108: 5.00 | E108: 5.00
B109: Соль | D109: 1.00 | E109: 1.00
B110: Масло сливочное | D110: 5.00 | E110: 5.00
A111: Какао с молоком | C111: 180 | F111: 2.10 | G111: 2.58 | H111: 13.60 | I111: 86.00 | J111: 0.39 | K111: №397 Дели2010
B112: Какао-порошок | D112: 1.70 | E112: 1.70
B113: Сахар | D113: 10.00 | E113: 10.00
B114: Молоко | D114: 110.00 | E114: 110.00
B115: Вода | D115: 80.00 | E115: 80.00
A116: Бутерброд с сыром, маслом | C116: 30/7/5 | F116: 4.80 | G116: 7.20 | H116: 15.40 | I116: 146.00 | J116: 0.19 | K116: №3 Дели2010
B117: Батон нарезной | D117: 30.00 | E117: 30.00
B118: Сыр | D118: 7.14 | E118: 7.00
B119: Масло сливочное | D119: 5.00 | E119: 5.00
A120: Итого: | C120: 427 | F120: =SUM(F103:F119) -> 12.90 | G120: =SUM(G103:G119) -> 17.98 | H120: 57.00 | I120: 441.50 | J120: 0.80
B121: 2 - ой ЗАВТРАК
A122: Фрукты свежие | C122: 70 | D122: 79.8 | E122: 70 | F122: 0.1 | G122: 0.10 | H122: 2.80 | I122: 12 | J122: 7.50 | K122: №368 Дели2010
A123: Итого: | C123: 70 | F123: =SUM(F122) -> 0.10 | G123: =SUM(G122) -> 0.10 | H123: 2.80 | I123: 12.00 | J123: 7.50
B124: ОБЕД
A125: Икра кабачковая | C125: 50 | F125: 0.95 | G125: 4.45 | H125: 3.85 | I125: 59.00 | J125: 3.50
B126: икра кабачковая | D126: 52.50 | E126: 50.00
A127: Суп вермишелевый с картофелем, говядиной | C127: 200/10 | F127: 8.42 | G127: 5.34 | H127: 21.10 | I127: 166 | J127: 5.30 | K127: 140,сбшк2004
B128: Говядина | D128: 22.00 | E128: 16.20
B129: Картофель | D129: 100.20 | E129: 60.00
B130: Морковь | D130: 10.64 | E130: 8.00
B131: Лук репчатый | D131: 9.52 | E131: 8.00
B132: Макаронные изделия | D132: 8.00 | E132: 8.00
B133: Масло растительное | D133: 4.00 | E133: 4.00
B134: Соль | D134: 1.00 | E134: 1.00
B135: Вода | D135: 152.00 | E135: 152.00
A136: Пудинг рыбный | C136: 100.00 | F136: 9.10 | G136: 5.00 | H136: 10.80 | I136: 124.00 | K136: ТТК №4
B137: рыба | D137: 87.5 | E137: 70
B138: Хлеб пшеничный 1с | D138: 12.5 | E138: 12.5
B139: яйцо | D139: 10 | E139: 9
B140: молоко | D140: 17.5 | E140: 17.5
B141: масло сливочное | D141: 4 | E141: 4
B142: соль | D142: 0.5 | E142: 0.5
B143: Масло растительное | D143: 1.3 | E143: 1.3
B144: Соус молочный
B145: молоко | D145: 16.9 | E145: 16.9
B146: масло сливочное | D146: 2 | E146: 2
B147: Мука пшеничная | D147: 2.5 | E147: 2.5
B148: Вода | D148: 3.75 | E148: 3.75
B149: Сахар | D149: 0.3 | E149: 0.3
B150: соль | D150: 0.2 | E150: 0.2
A151: Картофель тушёный | C151: 150 | F151: 2.8 | G151: 8 | H151: 12.4 | I151: 132 | J151: 11 | K151: №216сбшк2004
B152: Картофель | D152: 213.76 | E152: 128
B153: Лук репчатый | D153: 28.56 | E153: 24
B154: Морковь | D154: 19.95 | E154: 15
B155: Масло сливочное | D155: 3.4 | E155: 3.4
B156: Масло растительное | D156: 0.6 | E156: 0.6
B157: Соль | D157: 1.3 | E157: 1.3
A158: Компот из свежих яблок | C158: 150 | F158: 0.10 | G158: 0.10 | H158: 11.80 | I158: 47.00 | J158: 1.20 | K158: № 372 Дели2010
B159: яблоки | D159: 34.0 | E159: 30.0
B160: вода | D160: 129.0 | E160: 129.0
B161: сахар | D161: 10.0 | E161: 10.0
A162: Хлеб пшеничный 1с | C162: 30 | D162: 30.00 | E162: 30.00 | F162: 1.5 | G162: 0.3 | H162: 14.4 | I162: 66 | J162: 0
A163: Хлеб сельский | C163: 37.5 | D163: 37.50 | E163: 37.50 | F163: 1.8 | G163: 0.4 | H163: 18 | I163: 82.5
A164: Итого: | C164: 577.5 | F164: =SUM(F124:F163) -> 24.67 | G164: =SUM(G124:G163) -> 23.59 | H164: =SUM(H124:H163) -> 92.35 | I164: =SUM(I124:I163) -> 676.5 | J164: =SUM(J124:J163) -> 21
B165: ПОЛДНИК
A166: Ряженка | C166: 150 | F166: 2.1 | G166: 3.2 | H166: 6.3 | I166: 66 | J166: 0.78 | K166: №400Дели2010
B167: ряженка | D167: 155.00 | E167: 150.00
A168: Салат из моркови припущенной | C168: 60/3 | F168: 0.90 | G168: 0.08 | H168: 9.60 | I168: 42.00 | J168: 2.28 | K168: №41 Дели2010
B169: Морковь | D169: 79.80 | E169: 60.00
B170: Сахар | D170: 3.00 | E170: 3.00
A171: Суфле из творога с повидлом | C171: 105/20 | F171: 13.30 | G171: 6.50 | H171: 18.00 | I171: 183.00 | J171: 0.30 | K171: №365сбшк2004
B172: Творог | D172: 76.50 | E172: 75.00
B173: Мука пшеничная | D173: 8.00 | E173: 8.00
B174: Яйцо | D174: 5.60 | E174: 5.00
B175: Сахар | D175: 8.00 | E175: 8.00
B176: Молоко | D176: 15.00 | E176: 15.00
B177: Сметана | D177: 10.00 | E177: 10.00
B178: соль | D178: 0.30 | E178: 0.30
B179: Масло растительное | D179: 0.60 | E179: 0.60
B180: Повидло фруктовое | D180: 20.00 | E180: 20.00
A181: Кондитерские изделия | C181: 15 | D181: 15.00 | E181: 15.00 | F181: 0.3 | G181: 0.1 | H181: 5.0 | I181: 22
A182: Чай с сахаром | C182: 120/5 | F182: 0.05 | G182: 0.01 | H182: 6.5 | I182: 26 | K182: №392Дели2010
B183: Заварка | D183: 0.35 | E183: 0.35
B184: Сахар | D184: 5 | E184: 5
B185: Вода | D185: 120 | E185: 120
A186: Итого: | C186: 478 | F186: =SUM(F165:F185) -> 16.65 | G186: =SUM(G165:G185) -> 9.885 | H186: =SUM(H165:H185) -> 45.4 | I186: =SUM(I165:I185) -> 339 | J186: =SUM(J165:J185) -> 3.36
A187: ВСЕГО: | C187: =C120+C123+C164+C186 -> 1552.5 | F187: =F120+F123+F164+F186 -> 54.32 | G187: =G120+G123+G164+G186 -> 51.56 | H187: 197.55 | I187: 1469.00 | J187: =J120+J123+J164+J186 -> 32.66
A189: День 3 - ий
A190: Наименование блюд и | C190: Масса | D190: Кол - во | E190: Кол - во | F190: Пищевые вещества | I190: Энергетическая | J190: витамин | K190: № рецептуры
A191: продуктов | C191: порции | D191: (в гр ) | E191: (в гр ) | I191: ценность
D192: брутто | E192: нетто | F192: белки | G192: жиры | H192: угл-ды | I192: Ккал | J192: С
B193: ЗАВТРАК
A194: Каша Геркулесовая молочная с маслом | C194: 200/5 | F194: 6.70 | G194: 9.80 | H194: 23.00 | I194: 207.00 | J194: 0.23 | K194: №311, сбшк2004
B195: Крупа Геркулесовая | D195: 31.00 | E195: 31.00
B196: Молоко | D196: 100.00 | E196: 100.00
B197: вода | D197: 76.00 | E197: 76.00
B198: Сахар | D198: 5.00 | E198: 5.00
B199: Соль | D199: 1.00 | E199: 1.00
B200: Масло сливочное | D200: 5.00 | E200: 5.00
A201: Кофейный напиток с молоком | C201: 180 | F201: 1.20 | G201: 1.34 | H201: 12.00 | I201: 65.00 | J201: 0.19 | K201: №395 Дели2010
B202: Кофейный напиток | D202: 3.00 | E202: 3.00
B203: Сахар | D203: 10.00 | E203: 10.00
B204: Молоко | D204: 90.00 | E204: 90.00
B205: Вода | D205: 108.00 | E205: 108.00
A206: Бутерброд с маслом сливочным | C206: 30/5 | F206: 2.30 | G206: 4.50 | H206: 15.40 | I206: 111.00 | K206: №1 Дели2010
B207: Батон нарезной | D207: 30.00 | E207: 30.00
... 741 more rows

Sheet кал3-7
C2: Калорийность в разрезе
E3: ДОУ от 3 до 7 лет
D4: с 8 -10,5 часовым пребыванием
B7: Объемы порций | C7: Белки | D7: Жиры | E7: Угл-ды | F7: Энергетическая ценность | G7: Витамин С
A8: норма | B8: 1250-1800 | C8: 40,5-55 | D8: 45-52 | E8: 196-206 | F8: 1350-1472
A9: 1 | B9: ='[2]старш 8-10ч'!C97 -> 1550.5 | C9: ='[2]старш 8-10ч'!F97 -> 44.70 | D9: ='[2]старш 8-10ч'!G97 -> 46.77 | E9: ='[2]старш 8-10ч'!H97 -> 203.34 | F9: ='[2]старш 8-10ч'!I97 -> 1415.60 | G9: ='[2]старш 8-10ч'!J97 -> 57.19
A10: 2 | B10: ='[2]старш 8-10ч'!C187 -> 1552.5 | C10: ='[2]старш 8-10ч'!F187 -> 54.32 | D10: ='[2]старш 8-10ч'!G187 -> 51.56 | E10: ='[2]старш 8-10ч'!H187 -> 197.55 | F10: ='[2]старш 8-10ч'!I187 -> 1469.00 | G10: ='[2]старш 8-10ч'!J187 -> 32.66
A11: 3 | B11: ='[2]старш 8-10ч'!C281 -> 1662.5 | C11: ='[2]старш 8-10ч'!F281 -> 49.97 | D11: ='[2]старш 8-10ч'!G281 -> 50.01 | E11: ='[2]старш 8-10ч'!H281 -> 204.33 | F11: ='[2]старш 8-10ч'!I281 -> 1464.79 | G11: ='[2]старш 8-10ч'!J281 -> 26.26
A12: 4 | B12: ='[2]старш 8-10ч'!C372 -> 1741.5 | C12: ='[2]старш 8-10ч'!F372 -> 41.98 | D12: ='[2]старш 8-10ч'!G372 -> 45.07 | E12: ='[2]старш 8-10ч'!H372 -> 204.72 | F12: ='[2]старш 8-10ч'!I372 -> 1393.68 | G12: ='[2]старш 8-10ч'!J372 -> 97.13
A13: 5 | B13: ='[2]старш 8-10ч'!C467 -> 1722.5 | C13: ='[2]старш 8-10ч'!F467 -> 54.99 | D13: ='[2]старш 8-10ч'!G467 -> 50.16 | E13: ='[2]старш 8-10ч'!H467 -> 199.71 | F13: ='[2]старш 8-10ч'!I467 -> 1470.70 | G13: ='[2]старш 8-10ч'!J467 -> 43.42
A14: 6 | B14: ='[2]старш 8-10ч'!C561 -> 1630.5 | C14: ='[2]старш 8-10ч'!F561 -> 54.32 | D14: ='[2]старш 8-10ч'!G561 -> 49.20 | E14: ='[2]старш 8-10ч'!H561 -> 199.48 | F14: ='[2]старш 8-10ч'!I561 -> 1454.09 | G14: ='[2]старш 8-10ч'!J561 -> 21.05
A15: 7 | B15: ='[2]старш 8-10ч'!C648 -> 1627.5 | C15: ='[2]старш 8-10ч'!F648 -> 54.20 | D15: ='[2]старш 8-10ч'!G648 -> 50.35 | E15: ='[2]старш 8-10ч'!H648 -> 199.75 | F15: ='[2]старш 8-10ч'!I648 -> 1467.80 | G15: ='[2]старш 8-10ч'!J648 -> 48.65
A16: 8 | B16: ='[2]старш 8-10ч'!C747 -> 1586.5 | C16: ='[2]старш 8-10ч'!F747 -> 43.72 | D16: ='[2]старш 8-10ч'!G747 -> 45.04 | E16: ='[2]старш 8-10ч'!H747 -> 198.63 | F16: ='[2]старш 8-10ч'!I747 -> 1370.90 | G16: ='[2]старш 8-10ч'!J747 -> 23.58
A17: 9 | B17: ='[2]старш 8-10ч'!C836 -> 1734.5 | C17: ='[2]старш 8-10ч'!F836 -> 42.97 | D17: ='[2]старш 8-10ч'!G836 -> 46.92 | E17: ='[2]старш 8-10ч'!H836 -> 204.93 | F17: ='[2]старш 8-10ч'!I836 -> 1414.09 | G17: ='[2]старш 8-10ч'!J836 -> 33.72
A18: 10 | B18: ='[2]старш 8-10ч'!C942 -> 1752.5 | C18: ='[2]старш 8-10ч'!F942 -> 49.21 | D18: ='[2]старш 8-10ч'!G942 -> 49.69 | E18: ='[2]старш 8-10ч'!H942 -> 205.34 | F18: ='[2]старш 8-10ч'!I942 -> 1465.18 | G18: ='[2]старш 8-10ч'!J942 -> 79.89
A20: Всего | B20: =SUM(B9:B19) -> 16561.00 | C20: =SUM(C9:C19) -> 490.38 | D20: =SUM(D9:D18) -> 484.77 | E20: 2017.78 | F20: 14385.83 | G20: =SUM(G9:G19) -> 463.55
A21: В среднем | B21: =AVERAGE(B9:B18) -> 1656.10 | C21: 49.04 | D21: 48.48 | E21: 201.78 | F21: 1438.58 | G21: 46.35
A27: Примечание: при составлении примерного 10- дневного меню соблюдено выполнение средне-суточных наборов продуктов по возрастам и времени пребывания. Пищевая,энергетическая ценность соответствует показателям СанПиН 2.4.1.3049-13 таб. 3 "Нормы физиологических потребностей в энергии и пищевых веществах" и приложению№10 " Рекомендуемые суточные наборы продуктов для организации питания детей в дошкольных образовательных организациях" по химическому составу использованных наборов продуктов.

Sheet свод3-7
B1: Расход продуктов ДОУ
D2: от 3 до 7 лет | F2: с 8 - 10 часовым пребыванием | K2: нетто
A3: Наименов. прод. | B3: 1 | C3: 2 | D3: 3 | E3: 4 | F3: 5 | G3: 6 | H3: 7 | I3: 8 | J3: 9 | K3: 10 | L3: Кол-во | M3: Среднее | N3: Норма нетто | O3: Отклон. | P3: Отклон.%
A5: Сахар | B5: 29.00 | C5: 41.30 | D5: 36.00 | E5: 24.50 | F5: 44.00 | G5: 36.50 | H5: 32.00 | I5: 36.20 | J5: 30.30 | K5: 31.40 | L5: 341.20 | M5: 34.12 | N5: 353 | O5: -11.8 | P5: -3.34
A6: Заварка | B6: 0.80 | C6: 0.35 | D6: 0.35 | E6: 0.50 | F6: 0.35 | G6: 0.35 | H6: 0.80 | I6: 0.35 | J6: 0.35 | K6: 0.50 | L6: 4.70 | M6: 0.47 | N6: 4.5 | O6: 0.2 | P6: 4.44
A7: Яйцо | B7: 23.20 | C7: 14.00 | D7: 5.40 | E7: 10.00 | F7: 7.50 | G7: 15.50 | H7: 79.90 | I7: 5.50 | J7: 14.00 | K7: 11.90 | L7: 186.90 | M7: 18.69 | N7: 180 | O7: 6.9 | P7: 3.83
A8: Дрожжи сухие | B8: 0.20 | C8: 0.00 | D8: 0.20 | E8: 0.00 | F8: 0.00 | G8: 0.20 | H8: 0.00 | I8: 0.20 | J8: 0.00 | K8: 0.20 | L8: 1.00 | M8: 0.10 | N8: 1 | O8: 0.0 | P8: 0.00
A9: Батон нарезной | B9: 30.00 | C9: 30.00 | D9: 30.00 | E9: 30.00 | F9: 30.00 | G9: 30.00 | H9: 30.00 | I9: 30.00 | J9: 30.00 | K9: 30.00 | L9: 300.00 | M9: 30.00 | N9: 0 | O9: 300.0
A10: Хлеб пшеничный 1с | B10: 13.00 | C10: 42.50 | D10: 15.00 | E10: 30.00 | F10: 23.00 | G10: 30.00 | H10: 30.00 | I10: 30.00 | J10: 41.00 | K10: 40.00 | L10: 294.50 | M10: 29.45 | O10: 294.5
A11: Хлеб сельский | B11: 37.50 | C11: 37.50 | D11: 37.50 | E11: 37.50 | F11: 37.50 | G11: 37.50 | H11: 37.50 | I11: 37.50 | J11: 37.50 | K11: 37.50 | L11: 375.00 | M11: 37.50 | N11: 375 | O11: 0.0 | P11: 0.00
A12: Мука пшеничная | B12: 31.30 | C12: 10.50 | D12: 44.70 | E12: 3.50 | F12: 8.60 | G12: 50.00 | H12: 2.70 | I12: 25.30 | J12: 1.60 | K12: 44.80 | L12: 223.00 | M12: 22.30 | N12: 225.0 | O12: -2.0 | P12: -0.89
A13: Кисель-концентрат | B13: 18.00 | C13: 0.00 | D13: 0.00 | E13: 18.00 | F13: 0.00 | G13: 0.00 | H13: 18.00 | I13: 0.00 | J13: 0.00 | K13: 18.00 | L13: 72.00 | M13: 7.20 | O13: 72.0
A14: Макаронные изделия | B14: 34.00 | C14: 8.00 | D14: 0.00 | E14: 14.00 | F14: 0.00 | G14: 34.00 | H14: 0.00 | I14: 0.00 | J14: 0.00 | K14: 0.00 | L14: 90.00 | M14: 9.00 | N14: 90 | O14: 0.0 | P14: 0.00
A15: Крупа рисовая | B15: 0.00 | C15: 0.00 | D15: 0.00 | E15: 0.00 | F15: 40.00 | G15: 0.00 | H15: 0.00 | I15: 16.00 | J15: 0.00 | K15: 11.00 | L15: 67.00 | M15: 6.70 | O15: 67.0
A16: Крупа кукурузная | B16: 0.00 | C16: 0.00 | D16: 0.00 | E16: 0.00 | F16: 0.00 | G16: 0.00 | H16: 0.00 | I16: 0.00 | J16: 0.00 | K16: 0.00 | L16: 0.00 | M16: 0.00 | O16: 0.0
A17: Крупа манная | B17: 0.00 | C17: 31.00 | D17: 0.00 | E17: 0.00 | F17: 11.00 | G17: 2.00 | H17: 7.00 | I17: 0.00 | J17: 0.00 | K17: 0.00 | L17: 51.00 | M17: 5.10 | O17: 51.0
A18: Горох | B18: 0.00 | C18: 0.00 | D18: 16.00 | E18: 0.00 | F18: 0.00 | G18: 0.00 | H18: 0.00 | I18: 0.00 | J18: 0.00 | K18: 0.00 | L18: 16.00 | M18: 1.60 | O18: 16.0
A19: Крупа пшенная | B19: 8.00 | C19: 0.00 | D19: 0.00 | E19: 0.00 | F19: 0.00 | G19: 40.00 | H19: 0.00 | I19: 20.00 | J19: 0.00 | K19: 0.00 | L19: 68.00 | M19: 6.80 | O19: 68.0
A20: Крупа ячневая | B20: 0.00 | C20: 0.00 | D20: 0.00 | E20: 0.00 | F20: 0.00 | G20: 0.00 | H20: 0.00 | I20: 0.00 | J20: 0.00 | K20: 0.00 | L20: 0.00 | M20: 0.00 | O20: 0.0
A21: Полба | B21: 0.00 | C21: 0.00 | D21: 0.00 | E21: 0.00 | F21: 0.00 | G21: 0.00 | H21: 0.00 | I21: 0.00 | J21: 0.00 | K21: 0.00 | L21: 0.00 | M21: 0.00 | O21: 0.0
A22: Крупа перловая | B22: 0.00 | C22: 0.00 | D22: 0.00 | E22: 0.00 | F22: 8.00 | G22: 0.00 | H22: 8.00 | I22: 0.00 | J22: 0.00 | K22: 0.00 | L22: 16.00 | M22: 1.60 | O22: 16.0
A23: Крупа геркулесовая | B23: 0.00 | C23: 0.00 | D23: 31.00 | E23: 0.00 | F23: 0.00 | G23: 0.00 | H23: 0.00 | I23: 0.00 | J23: 0.00 | K23: 0.00 | L23: 31.00 | M23: 3.10 | O23: 31.0
A24: Крупа пшеничная | B24: 0.00 | C24: 0.00 | D24: 0.00 | E24: 0.00 | F24: 0.00 | G24: 0.00 | H24: 0.00 | I24: 0.00 | J24: 31.00 | K24: 0.00 | L24: 31.00 | M24: 3.10 | O24: 31.0
A25: Крупа гречневая | B25: 0.00 | C25: 0.00 | D25: 0.00 | E25: 50.00 | F25: 0.00 | G25: 0.00 | H25: 0.00 | I25: 0.00 | J25: 0.00 | K25: 0.00 | L25: 50.00 | M25: 5.00 | O25: 50.0
A26: Картофель | B26: 60.00 | C26: 188.00 | D26: 100.30 | E26: 114.00 | F26: 105.80 | G26: 34.50 | H26: 120.30 | I26: 155.00 | J26: 152.80 | K26: 64.00 | L26: 1094.70 | M26: 109.47 | N26: 1050 | O26: 44.7 | P26: 4.26
A27: Морковь | B27: 11.00 | C27: 83.00 | D27: 68.00 | E27: 33.50 | F27: 68.60 | G27: 8.80 | H27: 48.00 | I27: 9.00 | J27: 36.00 | K27: 104.00 | L27: 469.90 | M27: 46.99 | O27: 469.9
A28: Лук репчатый | B28: 14.00 | C28: 32.00 | D28: 44.00 | E28: 31.00 | F28: 13.70 | G28: 25.90 | H28: 36.50 | I28: 21.20 | J28: 10.00 | K28: 35.00 | L28: 263.30 | M28: 26.33 | O28: 263.3
A29: Свекла | B29: 0.00 | C29: 0.00 | D29: 0.00 | E29: 0.00 | F29: 0.00 | G29: 51.00 | H29: 0.00 | I29: 32.00 | J29: 0.00 | K29: 0.00 | L29: 83.00 | M29: 8.30 | O29: 83.0
A30: Капуста свежая | B30: 172.00 | C30: 0.00 | D30: 52.20 | E30: 40.00 | F30: 24.00 | G30: 0.00 | H30: 52.20 | I30: 41.00 | J30: 57.80 | K30: 72.00 | L30: 511.20 | M30: 51.12 | O30: 511.2
A31: икра кабачковая | B31: 0.00 | C31: 50.00 | D31: 0.00 | E31: 0.00 | F31: 50.00 | G31: 0.00 | H31: 50.00 | I31: 0.00 | J31: 0.00 | K31: 50.00 | L31: 200.00 | M31: 20.00 | O31: 200.0
A32: Огурцы соленые | B32: 0.00 | C32: 0.00 | D32: 0.00 | E32: 0.00 | F32: 0.00 | G32: 0.00 | H32: 0.00 | I32: 0.00 | J32: 0.00 | K32: 0.00 | L32: 0.00 | M32: 0.00 | O32: 0.0
A33: Помидоры свежие | B33: 0.00 | C33: 0.00 | D33: 60.00 | E33: 0.00 | F33: 0.00 | G33: 60.00 | H33: 0.00 | I33: 0.00 | J33: 60.00 | K33: 0.00 | L33: 180.00 | M33: 18.00 | O33: 180.0
A34: Огурцы свежие | B34: 60.00 | C34: 0.00 | D34: 0.00 | E34: 60.00 | F34: 0.00 | G34: 0.00 | H34: 0.00 | I34: 60.00 | J34: 0.00 | K34: 0.00 | L34: 180.00 | M34: 18.00 | O34: 180.0
A35: Томат-паста | B35: 1.20 | C35: 0.00 | D35: 1.00 | E35: 1.00 | F35: 1.20 | G35: 1.00 | H35: 1.00 | I35: 2.00 | J35: 0.00 | K35: 0.00 | L35: 8.40 | M35: 0.84 | O35: 8.4
A36: Масло сливочное | B36: 20.60 | C36: 19.40 | D36: 17.00 | E36: 11.00 | F36: 19.00 | G36: 17.50 | H36: 14.00 | I36: 17.00 | J36: 14.60 | K36: 11.80 | L36: 161.90 | M36: 16.19 | N36: 158 | O36: 3.9 | P36: 2.47
A37: Масло растительное | B37: 8.10 | C37: 6.50 | D37: 8.70 | E37: 13.00 | F37: 6.60 | G37: 8.10 | H37: 5.50 | I37: 7.30 | J37: 7.00 | K37: 9.80 | L37: 80.60 | M37: 8.06 | N37: 83 | O37: -2.4 | P37: -2.89
A38: Фрукты свежие | B38: 70.00 | C38: 70.00 | D38: 70.00 | E38: 70.00 | F38: 70.00 | G38: 70.00 | H38: 70.00 | I38: 70.00 | J38: 70.00 | K38: 70.00 | L38: 700.00 | M38: 70.00 | O38: 700.0
A39: Яблоки | B39: 0.00 | C39: 30.00 | D39: 0.00 | E39: 0.00 | F39: 0.00 | G39: 30.00 | H39: 0.00 | I39: 0.00 | J39: 30.00 | K39: 0.00 | L39: 90.00 | M39: 9.00 | O39: 90.0
A40: Ягоды | B40: 0.00 | C40: 0.00 | D40: 0.00 | E40: 0.00 | F40: 0.00 | G40: 0.00 | H40: 0.00 | I40: 0.00 | J40: 0.00 | K40: 0.00 | L40: 0.00 | M40: 0.00 | O40: 0.0
A41: Лимон | B41: 3.00 | C41: 0.00 | D41: 0.00 | E41: 0.00 | F41: 0.00 | G41: 0.00 | H41: 3.00 | I41: 0.00 | J41: 0.00 | K41: 0.00 | L41: 6.00 | M41: 0.60 | O41: 6.0
A42: Повидло фруктовое | B42: 25.00 | C42: 20.00 | D42: 0.00 | E42: 0.00 | F42: 0.00 | G42: 0.00 | H42: 0.00 | I42: 0.00 | J42: 0.00 | K42: 0.00 | L42: 45.00 | M42: 4.50 | O42: 45.0
A43: Сок | B43: 90.00 | C43: 0.00 | D43: 90.00 | E43: 90.00 | F43: 0.00 | G43: 90.00 | H43: 90.00 | I43: 90.00 | J43: 90.00 | K43: 90.00 | L43: 720.00 | M43: 72.00 | N43: 750 | O43: -30.0 | P43: -4.00
A44: Курага | B44: 0.00 | C44: 0.00 | D44: 15.00 | E44: 0.00 | F44: 0.00 | G44: 0.00 | H44: 0.00 | I44: 0.00 | J44: 0.00 | K44: 0.00 | L44: 15.00 | M44: 1.50 | O44: 15.0
A45: Сухофрукты | B45: 0.00 | C45: 0.00 | D45: 0.00 | E45: 0.00 | F45: 15.00 | G45: 0.00 | H45: 0.00 | I45: 15.00 | J45: 0.00 | K45: 0.00 | L45: 30.00 | M45: 3.00 | O45: 30.0
A46: Урюк | B46: 0.00 | C46: 0.00 | D46: 0.00 | E46: 0.00 | F46: 0.00 | G46: 0.00 | H46: 0.00 | I46: 0.00 | J46: 0.00 | K46: 0.00 | L46: 0.00 | M46: 0.00 | O46: 0.0
A47: Изюм | B47: 0.00 | C47: 0.00 | D47: 0.00 | E47: 0.00 | F47: 15.00 | G47: 0.00 | H47: 0.00 | I47: 0.00 | J47: 0.00 | K47: 0.00 | L47: 15.00 | M47: 1.50 | O47: 15.0
A48: Шиповник | B48: 0.00 | C48: 0.00 | D48: 0.00 | E48: 12.00 | F48: 0.00 | G48: 0.00 | H48: 0.00 | I48: 0.00 | J48: 0.00 | K48: 12.00 | L48: 24.00 | M48: 2.40 | O48: 24.0
A49: Молоко | B49: 114.30 | C49: 285.40 | D49: 262.00 | E49: 136.00 | F49: 225.00 | G49: 267.00 | H49: 124.00 | I49: 210.00 | J49: 292.00 | K49: 190.00 | L49: 2105.70 | M49: 210.57 | O49: 2105.7
A50: Кефир | B50: 150.00 | C50: 0.00 | D50: 0.00 | E50: 150.00 | F50: 0.00 | G50: 0.00 | H50: 150.00 | I50: 0.00 | J50: 0.00 | K50: 150.00 | L50: 600.00 | M50: 60.00 | O50: 600.0
A51: Ряженка | B51: 0.00 | C51: 150.00 | D51: 0.00 | E51: 0.00 | F51: 150.00 | G51: 0.00 | H51: 0.00 | I51: 150.00 | J51: 0.00 | K51: 0.00 | L51: 450.00 | M51: 45.00 | O51: 450.0
A52: Катык | B52: 0.00 | C52: 0.00 | D52: 150.00 | E52: 0.00 | F52: 0.00 | G52: 150.00 | H52: 0.00 | I52: 0.00 | J52: 150.00 | K52: 0.00 | L52: 450.00 | M52: 45.00 | O52: 450.0
A53: Молоко сгущенное | B53: 0.00 | C53: 0.00 | D53: 0.00 | E53: 0.00 | F53: 25.00 | G53: 0.00 | H53: 25.00 | I53: 0.00 | J53: 0.00 | K53: 0.00 | L53: 50.00 | M53: 5.00 | O53: 50.0
A54: Сметана | B54: 0.00 | C54: 10.00 | D54: 0.00 | E54: 15.00 | F54: 30.00 | G54: 6.00 | H54: 4.40 | I54: 6.00 | J54: 6.00 | K54: 0.00 | L54: 77.40 | M54: 7.74 | N54: 80 | O54: -2.6 | P54: -3.25
A55: Творог | B55: 0.00 | C55: 75.00 | D55: 0.00 | E55: 0.00 | F55: 113.00 | G55: 0.00 | H55: 101.00 | I55: 0.00 | J55: 0.00 | K55: 16.00 | L55: 305.00 | M55: 30.50 | N55: 300 | O55: 5.0 | P55: 1.67
A56: Говядина | B56: 68.20 | C56: 16.20 | D56: 22.80 | E56: 74.00 | F56: 0.00 | G56: 22.80 | H56: 74.00 | I56: 67.00 | J56: 22.80 | K56: 47.70 | L56: 415.50 | M56: 41.55 | O56: 415.5
A57: Фарш из говядины | B57: 0.00 | C57: 0.00 | D57: 0.00 | E57: 0.00 | F57: 0.00 | G57: 0.00 | H57: 0.00 | I57: 0.00 | J57: 0.00 | K57: 0.00 | L57: 0.00 | M57: 0.00 | O57: 0.0
A58: Цыплята | B58: 0.00 | C58: 0.00 | D58: 63.00 | E58: 0.00 | F58: 29.00 | G58: 0.00 | H58: 0.00 | I58: 23.50 | J58: 0.00 | K58: 64.50 | L58: 180.00 | M58: 18.00 | N58: 180 | O58: 0.0 | P58: 0.00
A59: Сыр | B59: 0.00 | C59: 7.00 | D59: 0.00 | E59: 7.00 | F59: 0.00 | G59: 7.00 | H59: 10.00 | I59: 7.00 | J59: 0.00 | K59: 7.00 | L59: 45.00 | M59: 4.50 | N59: 45 | O59: 0.0 | P59: 0.00
A60: Рыба | B60: 0.00 | C60: 70.00 | D60: 0.00 | E60: 0.00 | F60: 64.00 | G60: 60.00 | H60: 29.00 | I60: 0.00 | J60: 63.00 | K60: 0.00 | L60: 286.00 | M60: 28.60 | N60: 280.0 | O60: 6.0 | P60: 2.14
A61: Кофейный напиток | B61: 0.00 | C61: 0.00 | D61: 3.00 | E61: 0.00 | F61: 0.00 | G61: 3.00 | H61: 0.00 | I61: 0.00 | J61: 3.00 | K61: 0.00 | L61: 9.00 | M61: 0.90 | N61: 9 | O61: 0.0 | P61: 0.00
A62: Какао-порошок | B62: 0.00 | C62: 1.70 | D62: 0.00 | E62: 0.00 | F62: 1.70 | G62: 0.00 | H62: 0.00 | I62: 1.70 | J62: 0.00 | K62: 0.00 | L62: 5.10 | M62: 0.51 | N62: 5 | O62: 0.1 | P62: 2.00
A63: Кондитерские изделия | B63: 15.00 | C63: 15.00 | D63: 15.00 | E63: 0.00 | F63: 24.00 | G63: 15.00 | H63: 0.00 | I63: 0.00 | J63: 36.00 | K63: 30.00 | L63: 150.00 | M63: 15.00 | O63: 150.0
A64: конфеты | B64: 0.00 | C64: 0.00 | D64: 0.00 | E64: 0.00 | F64: 0.00 | G64: 0.00 | H64: 0.00 | I64: 0.00 | J64: 0.00 | K64: 0.00 | L64: 0.00 | M64: 0.00 | O64: 0.0
A65: Соль | B65: 4.50 | C65: 4.30 | D65: 4.50 | E65: 4.30 | F65: 4.50 | G65: 4.20 | H65: 4.20 | I65: 4.50 | J65: 4.30 | K65: 4.50 | L65: 43.80 | M65: 4.38 | N65: 45.0 | O65: -1.2 | P65: -2.67
A66: Крахмал | B66: 5.75 | C66: 0.00 | D66: 0.00 | E66: 5.75 | F66: 0.00 | G66: 0.00 | H66: 5.75 | I66: 0.00 | J66: 0.00 | K66: 5.75 | L66: 23.00 | M66: 2.30 | N66: 23.0 | O66: 0.0 | P66: 0.00
A67: Сухари панировочные | B67: 7.00 | C67: 0.00 | D67: 0.00 | E67: 3.00 | F67: 4.00 | G67: 6.00 | H67: 4.00 | I67: 3.00 | J67: 6.00 | K67: 6.00 | L67: 39.00 | M67: 3.90 | O67: 39.0
A68: Крупы, бобовые | B68: 8.00 | C68: 31.00 | D68: 47.00 | E68: 50.00 | F68: 59.00 | G68: 42.00 | H68: 15.00 | I68: 36.00 | J68: 31.00 | K68: 11.00 | L68: 330.00 | M68: 33.00 | N68: 323 | O68: 7.0 | P68: 2.17
A69: Овощи разные | B69: 258.20 | C69: 165.00 | D69: 225.20 | E69: 165.50 | F69: 157.50 | G69: 146.70 | H69: 187.70 | I69: 165.20 | J69: 163.80 | K69: 261.00 | L69: 1895.80 | M69: 189.58 | N69: 1950 | O69: -54.2 | P69: -2.78
A70: Фрукты | B70: 73.00 | C70: 100.00 | D70: 70.00 | E70: 70.00 | F70: 70.00 | G70: 100.00 | H70: 73.00 | I70: 70.00 | J70: 100.00 | K70: 70.00 | L70: 796.00 | M70: 79.60 | N70: 800 | O70: -4.0 | P70: -0.50
A71: Фрукты сухие | B71: 0.00 | C71: 0.00 | D71: 15.00 | E71: 12.00 | F71: 30.00 | G71: 0.00 | H71: 0.00 | I71: 15.00 | J71: 0.00 | K71: 12.00 | L71: 84.00 | M71: 8.40 | N71: 83.0 | O71: 1.0 | P71: 1.20
A72: Молочные прод. | B72: 264.30 | C72: 435.40 | D72: 412.00 | E72: 286.00 | F72: 400.00 | G72: 417.00 | H72: 299.00 | I72: 360.00 | J72: 442.00 | K72: 340.00 | L72: 3655.70 | M72: 365.57 | N72: 3600.0 | O72: 55.7 | P72: 1.55
A73: Говядина | B73: 68.20 | C73: 16.20 | D73: 22.80 | E73: 74.00 | F73: 0.00 | G73: 22.80 | H73: 74.00 | I73: 67.00 | J73: 22.80 | K73: 47.70 | L73: 415.50 | M73: 41.55 | N73: 410.0 | O73: 5.5 | P73: 1.34
A74: Хлеб пшеничный | B74: 43.00 | C74: 72.50 | D74: 45.00 | E74: 60.00 | F74: 53.00 | G74: 60.00 | H74: 60.00 | I74: 60.00 | J74: 71.00 | K74: 70.00 | L74: 594.50 | M74: 59.45 | N74: 600.0 | O74: -5.5 | P74: -0.92
A75: Кондитерские изделия | B75: 15.00 | C75: 15.00 | D75: 15.00 | E75: 0.00 | F75: 24.00 | G75: 15.00 | H75: 0.00 | I75: 0.00 | J75: 36.00 | K75: 30.00 | L75: 150.00 | M75: 15.00 | N75: 150.0 | O75: 0.0 | P75: 0.00
A76: Итого
B77: Расход продуктов ДОУ
D78: от 3 до 7 лет | F78: с 8 - 10 часовым пребыванием | K78: брутто | P78: мясо потушное
A79: Наименов. прод. | B79: 1 | C79: 2 | D79: 3 | E79: 4 | F79: 5 | G79: 6 | H79: 7 | I79: 8 | J79: 9 | K79: 10 | L79: Кол-во | M79: Среднее
A81: Сахар | B81: 29.00 | C81: 41.30 | D81: 36.00 | E81: 24.50 | F81: 44.00 | G81: 36.50 | H81: 32.00 | I81: 36.20 | J81: 30.30 | K81: 31.40 | L81: 341.20 | M81: 34.12
A82: Заварка | B82: 0.80 | C82: 0.35 | D82: 0.35 | E82: 0.50 | F82: 0.35 | G82: 0.35 | H82: 0.80 | I82: 0.35 | J82: 0.35 | K82: 0.50 | L82: 4.70 | M82: 0.47
A83: Яйцо | B83: 26.10 | C83: 15.60 | D83: 5.82 | E83: 11.00 | F83: 8.40 | G83: 17.38 | H83: 88.58 | I83: 6.90 | J83: 15.70 | K83: 13.30 | L83: 208.78 | M83: 20.88
A84: Дрожжи сухие | B84: 0.20 | C84: 0.00 | D84: 0.20 | E84: 0.00 | F84: 0.00 | G84: 0.20 | H84: 0.00 | I84: 0.20 | J84: 0.00 | K84: 0.20 | L84: 1.00 | M84: 0.10
A85: Батон нарезной | B85: 30.00 | C85: 30.00 | D85: 30.00 | E85: 30.00 | F85: 30.00 | G85: 30.00 | H85: 30.00 | I85: 30.00 | J85: 30.00 | K85: 30.00 | L85: 300.00 | M85: 30.00
A86: Хлеб пшеничный 1с | B86: 13.00 | C86: 42.50 | D86: 15.00 | E86: 30.00 | F86: 23.00 | G86: 30.00 | H86: 30.00 | I86: 30.00 | J86: 41.00 | K86: 40.00 | L86: 294.50 | M86: 29.45
A87: Хлеб сельский | B87: 37.50 | C87: 37.50 | D87: 37.50 | E87: 37.50 | F87: 37.50 | G87: 37.50 | H87: 37.50 | I87: 37.50 | J87: 37.50 | K87: 37.50 | L87: 375.00 | M87: 37.50
A88: Мука пшеничная | B88: 31.30 | C88: 10.50 | D88: 44.70 | E88: 3.50 | F88: 8.60 | G88: 50.00 | H88: 2.70 | I88: 25.30 | J88: 1.60 | K88: 44.80 | L88: 223.00 | M88: 22.30
A89: Кисель-концентрат | B89: 18.00 | C89: 0.00 | D89: 0.00 | E89: 18.00 | F89: 0.00 | G89: 0.00 | H89: 18.00 | I89: 0.00 | J89: 0.00 | K89: 18.00 | L89: 72.00 | M89: 7.20
A90: Макаронные изделия | B90: 34.00 | C90: 8.00 | D90: 0.00 | E90: 14.00 | F90: 0.00 | G90: 34.00 | H90: 0.00 | I90: 0.00 | J90: 0.00 | K90: 0.00 | L90: 90.00 | M90: 9.00
A91: Крупа рисовая | B91: 0.00 | C91: 0.00 | D91: 0.00 | E91: 0.00 | F91: 40.00 | G91: 0.00 | H91: 0.00 | I91: 16.00 | J91: 0.00 | K91: 11.00 | L91: 67.00 | M91: 6.70
A92: Крупа кукурузная | B92: 0.00 | C92: 0.00 | D92: 0.00 | E92: 0.00 | F92: 0.00 | G92: 0.00 | H92: 0.00 | I92: 0.00 | J92: 0.00 | K92: 0.00 | L92: 0.00 | M92: 0.00
A93: Крупа манная | B93: 0.00 | C93: 31.00 | D93: 0.00 | E93: 0.00 | F93: 11.00 | G93: 2.00 | H93: 7.00 | I93: 0.00 | J93: 0.00 | K93: 0.00 | L93: 51.00 | M93: 5.10
A94: Горох | B94: 0.00 | C94: 0.00 | D94: 16.20 | E94: 0.00 | F94: 0.00 | G94: 0.00 | H94: 0.00 | I94: 0.00 | J94: 0.00 | K94: 0.00 | L94: 16.20 | M94: 1.62
A95: Крупа пшенная | B95: 8.00 | C95: 0.00 | D95: 0.00 | E95: 0.00 | F95: 0.00 | G95: 40.00 | H95: 0.00 | I95: 20.00 | J95: 0.00 | K95: 0.00 | L95: 68.00 | M95: 6.80
A96: Крупа ячневая | B96: 0.00 | C96: 0.00 | D96: 0.00 | E96: 0.00 | F96: 0.00 | G96: 0.00 | H96: 0.00 | I96: 0.00 | J96: 0.00 | K96: 0.00 | L96: 0.00 | M96: 0.00
A97: Полба | B97: 0.00 | C97: 0.00 | D97: 0.00 | E97: 0.00 | F97: 0.00 | G97: 0.00 | H97: 0.00 | I97: 0.00 | J97: 0.00 | K97: 0.00 | L97: 0.00 | M97: 0.00
A98: Крупа перловая | B98: 0.00 | C98: 0.00 | D98: 0.00 | E98: 0.00 | F98: 8.00 | G98: 0.00 | H98: 8.00 | I98: 0.00 | J98: 0.00 | K98: 0.00 | L98: 16.00 | M98: 1.60
A99: Крупа геркулесовая | B99: 0.00 | C99: 0.00 | D99: 31.00 | E99: 0.00 | F99: 0.00 | G99: 0.00 | H99: 0.00 | I99: 0.00 | J99: 0.00 | K99: 0.00 | L99: 31.00 | M99: 3.10
A100: Крупа пшеничная | B100: 0.00 | C100: 0.00 | D100: 0.00 | E100: 0.00 | F100: 0.00 | G100: 0.00 | H100: 0.00 | I100: 0.00 | J100: 31.00 | K100: 0.00 | L100: 31.00 | M100: 3.10
A101: Крупа гречневая | B101: 0.00 | C101: 0.00 | D101: 0.00 | E101: 50.00 | F101: 0.00 | G101: 0.00 | H101: 0.00 | I101: 0.00 | J101: 0.00 | K101: 0.00 | L101: 50.00 | M101: 5.00
A102: Картофель | B102: 100.20 | C102: 313.96 | D102: 167.50 | E102: 190.38 | F102: 176.68 | G102: 57.60 | H102: 200.90 | I102: 258.85 | J102: 255.17 | K102: 106.88 | L102: 1828.12 | M102: 182.81
A103: Морковь | B103: 14.63 | C103: 110.39 | D103: 90.44 | E103: 44.55 | F103: 91.24 | G103: 11.70 | H103: 63.84 | I103: 11.97 | J103: 47.88 | K103: 138.32 | L103: 624.96 | M103: 62.50
A104: Лук репчатый | B104: 16.66 | C104: 38.08 | D104: 52.36 | E104: 36.89 | F104: 16.30 | G104: 30.82 | H104: 43.43 | I104: 25.23 | J104: 11.90 | K104: 41.65 | L104: 313.32 | M104: 31.33
A105: Свекла | B105: 0.00 | C105: 0.00 | D105: 0.00 | E105: 0.00 | F105: 0.00 | G105: 69.36 | H105: 0.00 | I105: 43.52 | J105: 0.00 | K105: 0.00 | L105: 112.88 | M105: 11.29
A106: Капуста свежая | B106: 215.00 | C106: 0.00 | D106: 65.25 | E106: 50.00 | F106: 30.00 | G106: 0.00 | H106: 65.25 | I106: 51.25 | J106: 72.25 | K106: 90.00 | L106: 639.00 | M106: 63.90
A107: икра кабачковая | B107: 0.00 | C107: 52.50 | D107: 0.00 | E107: 0.00 | F107: 52.50 | G107: 0.00 | H107: 52.50 | I107: 0.00 | J107: 0.00 | K107: 52.50 | L107: 210.00 | M107: 21.00
A108: Огурцы соленые | B108: 0.00 | C108: 0.00 | D108: 0.00 | E108: 0.00 | F108: 0.00 | G108: 0.00 | H108: 0.00 | I108: 0.00 | J108: 0.00 | K108: 0.00 | L108: 0.00 | M108: 0.00
A109: Помидоры свежие | B109: 0.00 | C109: 0.00 | D109: 61.20 | E109: 0.00 | F109: 0.00 | G109: 61.20 | H109: 0.00 | I109: 0.00 | J109: 61.20 | K109: 0.00 | L109: 183.60 | M109: 18.36
A110: Огурцы свежие | B110: 61.20 | C110: 0.00 | D110: 0.00 | E110: 61.20 | F110: 0.00 | G110: 0.00 | H110: 0.00 | I110: 61.20 | J110: 0.00 | K110: 0.00 | L110: 183.60 | M110: 18.36
A111: Томат-паста | B111: 1.20 | C111: 0.00 | D111: 1.00 | E111: 1.00 | F111: 1.20 | G111: 1.00 | H111: 1.00 | I111: 2.00 | J111: 0.00 | K111: 0.00 | L111: 8.40 | M111: 0.84
A112: Масло сливочное | B112: 20.60 | C112: 19.40 | D112: 17.00 | E112: 11.00 | F112: 19.00 | G112: 17.50 | H112: 14.00 | I112: 17.00 | J112: 14.60 | K112: 11.80 | L112: 161.90 | M112: 16.19
A113: Масло растительное | B113: 8.10 | C113: 6.50 | D113: 8.70 | E113: 13.00 | F113: 6.60 | G113: 8.10 | H113: 5.50 | I113: 7.30 | J113: 7.00 | K113: 9.80 | L113: 80.60 | M113: 8.06
A114: Фрукты свежие | B114: 79.80 | C114: 79.80 | D114: 79.80 | E114: 79.80 | F114: 79.80 | G114: 79.80 | H114: 79.80 | I114: 79.80 | J114: 79.80 | K114: 79.80 | L114: 798.00 | M114: 79.80
A115: Яблоки | B115: 0.00 | C115: 34.00 | D115: 0.00 | E115: 0.00 | F115: 0.00 | G115: 34.00 | H115: 0.00 | I115: 0.00 | J115: 34.00 | K115: 0.00 | L115: 102.00 | M115: 10.20
A116: Ягоды | B116: 0.00 | C116: 0.00 | D116: 0.00 | E116: 0.00 | F116: 0.00 | G116: 0.00 | H116: 0.00 | I116: 0.00 | J116: 0.00 | K116: 0.00 | L116: 0.00 | M116: 0.00
A117: Лимон | B117: 3.40 | C117: 0.00 | D117: 0.00 | E117: 0.00 | F117: 0.00 | G117: 0.00 | H117: 3.40 | I117: 0.00 | J117: 0.00 | K117: 0.00 | L117: 6.80 | M117: 0.68
A118: Повидло фруктовое | B118: 25.00 | C118: 20.00 | D118: 0.00 | E118: 0.00 | F118: 0.00 | G118: 0.00 | H118: 0.00 | I118: 0.00 | J118: 0.00 | K118: 0.00 | L118: 45.00 | M118: 4.50
A119: Сок | B119: 90.00 | C119: 0.00 | D119: 90.00 | E119: 90.00 | F119: 0.00 | G119: 90.00 | H119: 90.00 | I119: 90.00 | J119: 90.00 | K119: 90.00 | L119: 720.00 | M119: 72.00
A120: Курага | B120: 0.00 | C120: 0.00 | D120: 15.30 | E120: 0.00 | F120: 0.00 | G120: 0.00 | H120: 0.00 | I120: 0.00 | J120: 0.00 | K120: 0.00 | L120: 15.30 | M120: 1.53
A121: Сухофрукты | B121: 0.00 | C121: 0.00 | D121: 0.00 | E121: 0.00 | F121: 15.30 | G121: 0.00 | H121: 0.00 | I121: 15.30 | J121: 0.00 | K121: 0.00 | L121: 30.60 | M121: 3.06
A122: Урюк | B122: 0.00 | C122: 0.00 | D122: 0.00 | E122: 0.00 | F122: 0.00 | G122: 0.00 | H122: 0.00 | I122: 0.00 | J122: 0.00 | K122: 0.00 | L122: 0.00 | M122: 0.00
A123: Изюм | B123: 0.00 | C123: 0.00 | D123: 0.00 | E123: 0.00 | F123: 15.30 | G123: 0.00 | H123: 0.00 | I123: 0.00 | J123: 0.00 | K123: 0.00 | L123: 15.30 | M123: 1.53
A124: Шиповник | B124: 0.00 | C124: 0.00 | D124: 0.00 | E124: 12.00 | F124: 0.00 | G124: 0.00 | H124: 0.00 | I124: 0.00 | J124: 0.00 | K124: 12.00 | L124: 24.00 | M124: 2.40
A125: Молоко | B125: 116.30 | C125: 285.40 | D125: 263.60 | E125: 136.00 | F125: 225.80 | G125: 268.60 | H125: 126.00 | I125: 210.00 | J125: 294.40 | K125: 192.00 | L125: 2118.10 | M125: 211.81
A126: Кефир | B126: 155.00 | C126: 0.00 | D126: 0.00 | E126: 155.00 | F126: 0.00 | G126: 0.00 | H126: 155.00 | I126: 0.00 | J126: 0.00 | K126: 155.00 | L126: 620.00 | M126: 62.00
A127: Ряженка | B127: 0.00 | C127: 155.00 | D127: 0.00 | E127: 0.00 | F127: 155.00 | G127: 0.00 | H127: 0.00 | I127: 155.00 | J127: 0.00 | K127: 0.00 | L127: 465.00 | M127: 46.50
A128: Катык | B128: 0.00 | C128: 0.00 | D128: 155.00 | E128: 0.00 | F128: 0.00 | G128: 155.00 | H128: 0.00 | I128: 0.00 | J128: 155.00 | K128: 0.00
A129: Молоко сгущенное | B129: 0.00 | C129: 0.00 | D129: 0.00 | E129: 0.00 | F129: 25.00 | G129: 0.00 | H129: 25.00 | I129: 0.00 | J129: 0.00 | K129: 0.00 | L129: 50.00 | M129: 5.00
A130: Сметана | B130: 0.00 | C130: 10.00 | D130: 0.00 | E130: 15.00 | F130: 30.00 | G130: 6.00 | H130: 4.40 | I130: 6.00 | J130: 6.00 | K130: 0.00 | L130: 77.40 | M130: 7.74
A131: Творог | B131: 0.00 | C131: 76.50 | D131: 0.00 | E131: 0.00 | F131: 115.26 | G131: 0.00 | H131: 103.02 | I131: 0.00 | J131: 0.00 | K131: 16.32 | L131: 311.10 | M131: 31.11
A132: Говядина | B132: 92.65 | C132: 22.00 | D132: 30.98 | E132: 100.54 | F132: 0.00 | G132: 30.98 | H132: 100.54 | I132: 91.03 | J132: 30.98 | K132: 64.81 | L132: 564.51 | M132: 56.45
A133: Фарш из говядины | B133: 0.00 | C133: 0.00 | D133: 0.00 | E133: 0.00 | F133: 0.00 | G133: 0.00 | H133: 0.00 | I133: 0.00 | J133: 0.00 | K133: 0.00 | L133: 0.00 | M133: 0.00
A134: Цыплята | B134: 0.00 | C134: 0.00 | D134: 96.92 | E134: 0.00 | F134: 44.62 | G134: 0.00 | H134: 0.00 | I134: 36.15 | J134: 0.00 | K134: 99.23 | L134: 276.92 | M134: 27.69
A135: Сыр | B135: 0.00 | C135: 7.14 | D135: 0.00 | E135: 7.14 | F135: 0.00 | G135: 7.14 | H135: 10.20 | I135: 7.14 | J135: 0.00 | K135: 7.14 | L135: 45.90 | M135: 4.59
A136: Рыба | B136: 0.00 | C136: 87.50 | D136: 0.00 | E136: 0.00 | F136: 80.00 | G136: 75.00 | H136: 36.25 | I136: 0.00 | J136: 78.75 | K136: 0.00 | L136: 357.50 | M136: 35.75
A137: Кофейный напиток | B137: 0.00 | C137: 0.00 | D137: 3.00 | E137: 0.00 | F137: 0.00 | G137: 3.00 | H137: 0.00 | I137: 0.00 | J137: 3.00 | K137: 0.00 | L137: 9.00 | M137: 0.90
A138: Какао-порошок | B138: 0.00 | C138: 1.70 | D138: 0.00 | E138: 0.00 | F138: 1.70 | G138: 0.00 | H138: 0.00 | I138: 1.70 | J138: 0.00 | K138: 0.00 | L138: 5.10 | M138: 0.51
A139: Кондитерские изделия | B139: 15.00 | C139: 15.00 | D139: 15.00 | E139: 0.00 | F139: 24.00 | G139: 15.00 | H139: 0.00 | I139: 0.00 | J139: 36.00 | K139: 30.00 | L139: 150.00 | M139: 15.00
A140: конфеты | B140: 0.00 | C140: 0.00 | D140: 0.00 | E140: 0.00 | F140: 0.00 | G140: 0.00 | H140: 0.00 | I140: 0.00 | J140: 0.00 | K140: 0.00 | L140: 0.00 | M140: 0.00
A141: Соль | B141: 0.00 | C141: 0.00 | D141: 0.00 | E141: 0.00 | F141: 0.00 | G141: 0.00 | H141: 0.00 | I141: 0.00 | J141: 0.00 | K141: 0.00 | L141: 0.00 | M141: 0.00
A142: Крахмал | B142: 0.00 | C142: 0.00 | D142: 0.00 | E142: 0.00 | F142: 0.00 | G142: 0.00 | H142: 0.00 | I142: 0.00 | J142: 0.00 | K142: 0.00 | L142: 0.00 | M142: 0.00
A143: Сухари панировочные | B143: 7.00 | C143: 0.00 | D143: 0.00 | E143: 3.00 | F143: 4.00 | G143: 6.00 | H143: 4.00 | I143: 3.00 | J143: 6.00 | K143: 6.00 | L143: 39.00 | M143: 3.90
A144: Напиток витаминный | B144: 0.00 | C144: 0.00 | D144: 0.00 | E144: 0.00 | F144: 0.00 | G144: 0.00 | H144: 0.00 | I144: 0.00 | J144: 0.00 | K144: 0.00 | L144: 0.00 | M144: 0.00
A145: Крупы, бобовые | B145: 8.00 | C145: 31.00 | D145: 47.20 | E145: 50.00 | F145: 59.00 | G145: 42.00 | H145: 15.00 | I145: 36.00 | J145: 31.00 | K145: 11.00 | L145: 330.20 | M145: 33.02
A146: Овощи разные | B146: 308.69 | C146: 200.97 | D146: 270.25 | E146: 193.64 | F146: 191.24 | G146: 174.08 | H146: 226.02 | I146: 195.17 | J146: 193.23 | K146: 322.47 | L146: 2275.76 | M146: 227.58
A147: Фрукты | B147: 83.20 | C147: 113.80 | D147: 79.80 | E147: 79.80 | F147: 79.80 | G147: 113.80 | H147: 83.20 | I147: 79.80 | J147: 113.80 | K147: 79.80 | L147: 906.80 | M147: 90.68
A148: Фрукты сухие | B148: 0.00 | C148: 0.00 | D148: 15.30 | E148: 0.00 | F148: 30.60 | G148: 0.00 | H148: 0.00 | I148: 15.30 | J148: 0.00 | K148: 0.00 | L148: 61.20 | M148: 6.12
A149: Молочные прод. | B149: 271.30 | C149: 440.40 | D149: 418.60 | E149: 291.00 | F149: 405.80 | G149: 423.60 | H149: 306.00 | I149: 365.00 | J149: 449.40 | K149: 347.00 | L149: 3718.10 | M149: 371.81
A150: Говядина | B150: 92.65 | C150: 22.00 | D150: 30.98 | E150: 100.54 | F150: 0.00 | G150: 30.98 | H150: 100.54 | I150: 91.03 | J150: 30.98 | K150: 64.81 | L150: 564.51 | M150: 56.45
A151: Хлеб пшеничный | B151: 43.00 | C151: 72.50 | D151: 45.00 | E151: 60.00 | F151: 53.00 | G151: 60.00 | H151: 60.00 | I151: 60.00 | J151: 71.00 | K151: 70.00 | L151: 594.50 | M151: 59.45
A152: Кондитерские изделия | B152: 15.00 | C152: 15.00 | D152: 15.00 | E152: 0.00 | F152: 24.00 | G152: 15.00 | H152: 0.00 | I152: 0.00 | J152: 36.00 | K152: 30.00 | L152: 150.00 | M152: 15.00
A153: Итого
B156: Расход продуктов ДОУ
D157: от 3 до 7 лет | F157: с 8 - 10 часовым пребыванием | K157: брутто | O157: лопатка, фарш
A158: Наименов. прод. | B158: 1 | C158: 2 | D158: 3 | E158: 4 | F158: 5 | G158: 6 | H158: 7 | I158: 8 | J158: 9 | K158: 10 | L158: Кол-во | M158: Среднее
A160: Сахар | B160: 29.00 | C160: 41.30 | D160: 36.00 | E160: 24.50 | F160: 44.00 | G160: 36.50 | H160: 32.00 | I160: 36.20 | J160: 30.30 | K160: 31.40 | L160: 341.20 | M160: 34.12
A161: Заварка | B161: 0.80 | C161: 0.35 | D161: 0.35 | E161: 0.50 | F161: 0.35 | G161: 0.35 | H161: 0.80 | I161: 0.35 | J161: 0.35 | K161: 0.50 | L161: 4.70 | M161: 0.47
A162: Яйцо | B162: 26.10 | C162: 15.60 | D162: 5.82 | E162: 11.00 | F162: 8.40 | G162: 17.38 | H162: 88.58 | I162: 6.90 | J162: 15.70 | K162: 13.30 | L162: 208.78 | M162: 20.88
A163: Дрожжи сухие | B163: 0.20 | C163: 0.00 | D163: 0.20 | E163: 0.00 | F163: 0.00 | G163: 0.20 | H163: 0.00 | I163: 0.20 | J163: 0.00 | K163: 0.20 | L163: 1.00 | M163: 0.10
A164: Батон нарезной | B164: 30.00 | C164: 30.00 | D164: 30.00 | E164: 30.00 | F164: 30.00 | G164: 30.00 | H164: 30.00 | I164: 30.00 | J164: 30.00 | K164: 30.00 | L164: 300.00 | M164: 30.00
A165: Хлеб пшеничный 1с | B165: 13.00 | C165: 42.50 | D165: 15.00 | E165: 30.00 | F165: 23.00 | G165: 30.00 | H165: 30.00 | I165: 30.00 | J165: 41.00 | K165: 40.00 | L165: 294.50 | M165: 29.45
A166: Хлеб сельский | B166: 37.50 | C166: 37.50 | D166: 37.50 | E166: 37.50 | F166: 37.50 | G166: 37.50 | H166: 37.50 | I166: 37.50 | J166: 37.50 | K166: 37.50 | L166: 375.00 | M166: 37.50
A167: Мука пшеничная | B167: 31.30 | C167: 10.50 | D167: 44.70 | E167: 3.50 | F167: 8.60 | G167: 50.00 | H167: 2.70 | I167: 25.30 | J167: 1.60 | K167: 44.80 | L167: 223.00 | M167: 22.30
A168: Кисель-концентрат | B168: 18.00 | C168: 0.00 | D168: 0.00 | E168: 18.00 | F168: 0.00 | G168: 0.00 | H168: 18.00 | I168: 0.00 | J168: 0.00 | K168: 18.00 | L168: 72.00 | M168: 7.20
A169: Макаронные изделия | B169: 34.00 | C169: 8.00 | D169: 0.00 | E169: 14.00 | F169: 0.00 | G169: 34.00 | H169: 0.00 | I169: 0.00 | J169: 0.00 | K169: 0.00 | L169: 90.00 | M169: 9.00
A170: Крупа рисовая | B170: 0.00 | C170: 0.00 | D170: 0.00 | E170: 0.00 | F170: 40.00 | G170: 0.00 | H170: 0.00 | I170: 16.00 | J170: 0.00 | K170: 11.00 | L170: 67.00 | M170: 6.70
A171: Крупа кукурузная | B171: 0.00 | C171: 0.00 | D171: 0.00 | E171: 0.00 | F171: 0.00 | G171: 0.00 | H171: 0.00 | I171: 0.00 | J171: 0.00 | K171: 0.00 | L171: 0.00 | M171: 0.00
A172: Крупа манная | B172: 0.00 | C172: 31.00 | D172: 0.00 | E172: 0.00 | F172: 11.00 | G172: 2.00 | H172: 7.00 | I172: 0.00 | J172: 0.00 | K172: 0.00 | L172: 51.00 | M172: 5.10
A173: Горох | B173: 0.00 | C173: 0.00 | D173: 16.20 | E173: 0.00 | F173: 0.00 | G173: 0.00 | H173: 0.00 | I173: 0.00 | J173: 0.00 | K173: 0.00 | L173: 16.20 | M173: 1.62
A174: Крупа пшенная | B174: 8.00 | C174: 0.00 | D174: 0.00 | E174: 0.00 | F174: 0.00 | G174: 40.00 | H174: 0.00 | I174: 20.00 | J174: 0.00 | K174: 0.00 | L174: 68.00 | M174: 6.80
A175: Крупа ячневая | B175: 0.00 | C175: 0.00 | D175: 0.00 | E175: 0.00 | F175: 0.00 | G175: 0.00 | H175: 0.00 | I175: 0.00 | J175: 0.00 | K175: 0.00 | L175: 0.00 | M175: 0.00
A176: Полба | B176: 0.00 | C176: 0.00 | D176: 0.00 | E176: 0.00 | F176: 0.00 | G176: 0.00 | H176: 0.00 | I176: 0.00 | J176: 0.00 | K176: 0.00 | L176: 0.00 | M176: 0.00
A177: Крупа перловая | B177: 0.00 | C177: 0.00 | D177: 0.00 | E177: 0.00 | F177: 8.00 | G177: 0.00 | H177: 8.00 | I177: 0.00 | J177: 0.00 | K177: 0.00 | L177: 16.00 | M177: 1.60
A178: Крупа геркулесовая | B178: 0.00 | C178: 0.00 | D178: 31.00 | E178: 0.00 | F178: 0.00 | G178: 0.00 | H178: 0.00 | I178: 0.00 | J178: 0.00 | K178: 0.00 | L178: 31.00 | M178: 3.10
A179: Крупа пшеничная | B179: 0.00 | C179: 0.00 | D179: 0.00 | E179: 0.00 | F179: 0.00 | G179: 0.00 | H179: 0.00 | I179: 0.00 | J179: 31.00 | K179: 0.00 | L179: 31.00 | M179: 3.10
A180: Крупа гречневая | B180: 0.00 | C180: 0.00 | D180: 0.00 | E180: 50.00 | F180: 0.00 | G180: 0.00 | H180: 0.00 | I180: 0.00 | J180: 0.00 | K180: 0.00 | L180: 50.00 | M180: 5.00
A181: Картофель | B181: 100.20 | C181: 313.96 | D181: 167.50 | E181: 190.38 | F181: 176.68 | G181: 57.60 | H181: 200.90 | I181: 258.85 | J181: 255.17 | K181: 106.88 | L181: 1828.12 | M181: 182.81
A182: Морковь | B182: 14.63 | C182: 110.39 | D182: 90.44 | E182: 44.55 | F182: 91.24 | G182: 11.70 | H182: 63.84 | I182: 11.97 | J182: 47.88 | K182: 138.32 | L182: 624.96 | M182: 62.50
A183: Лук репчатый | B183: 16.66 | C183: 38.08 | D183: 52.36 | E183: 36.89 | F183: 16.30 | G183: 30.82 | H183: 43.43 | I183: 25.23 | J183: 11.90 | K183: 41.65 | L183: 313.32 | M183: 31.33
A184: Свекла | B184: 0.00 | C184: 0.00 | D184: 0.00 | E184: 0.00 | F184: 0.00 | G184: 69.36 | H184: 0.00 | I184: 43.52 | J184: 0.00 | K184: 0.00 | L184: 112.88 | M184: 11.29
A185: Капуста свежая | B185: 215.00 | C185: 0.00 | D185: 65.25 | E185: 50.00 | F185: 30.00 | G185: 0.00 | H185: 65.25 | I185: 51.25 | J185: 72.25 | K185: 90.00 | L185: 639.00 | M185: 63.90
A186: икра кабачковая | B186: 0.00 | C186: 52.50 | D186: 0.00 | E186: 0.00 | F186: 52.50 | G186: 0.00 | H186: 52.50 | I186: 0.00 | J186: 0.00 | K186: 52.50 | L186: 210.00 | M186: 21.00
A187: Огурцы соленые | B187: 0.00 | C187: 0.00 | D187: 0.00 | E187: 0.00 | F187: 0.00 | G187: 0.00 | H187: 0.00 | I187: 0.00 | J187: 0.00 | K187: 0.00 | L187: 0.00 | M187: 0.00
A188: Помидоры свежие | B188: 0.00 | C188: 0.00 | D188: 61.20 | E188: 0.00 | F188: 0.00 | G188: 61.20 | H188: 0.00 | I188: 0.00 | J188: 61.20 | K188: 0.00 | L188: 183.60 | M188: 18.36
A189: Огурцы свежие | B189: 61.20 | C189: 0.00 | D189: 0.00 | E189: 61.20 | F189: 0.00 | G189: 0.00 | H189: 0.00 | I189: 61.20 | J189: 0.00 | K189: 0.00 | L189: 183.60 | M189: 18.36
A190: Томат-паста | B190: 1.20 | C190: 0.00 | D190: 1.00 | E190: 1.00 | F190: 1.20 | G190: 1.00 | H190: 1.00 | I190: 2.00 | J190: 0.00 | K190: 0.00 | L190: 8.40 | M190: 0.84
A191: Масло сливочное | B191: 20.60 | C191: 19.40 | D191: 17.00 | E191: 11.00 | F191: 19.00 | G191: 17.50 | H191: 14.00 | I191: 17.00 | J191: 14.60 | K191: 11.80 | L191: 161.90 | M191: 16.19
A192: Масло растительное | B192: 8.10 | C192: 6.50 | D192: 8.70 | E192: 13.00 | F192: 6.60 | G192: 8.10 | H192: 5.50 | I192: 7.30 | J192: 7.00 | K192: 9.80 | L192: 80.60 | M192: 8.06
A193: Фрукты свежие | B193: 79.80 | C193: 79.80 | D193: 79.80 | E193: 79.80 | F193: 79.80 | G193: 79.80 | H193: 79.80 | I193: 79.80 | J193: 79.80 | K193: 79.80 | L193: 798.00 | M193: 79.80
A194: Яблоки | B194: 0.00 | C194: 34.00 | D194: 0.00 | E194: 0.00 | F194: 0.00 | G194: 34.00 | H194: 0.00 | I194: 0.00 | J194: 34.00 | K194: 0.00 | L194: 102.00 | M194: 10.20
A195: Ягоды | B195: 0.00 | C195: 0.00 | D195: 0.00 | E195: 0.00 | F195: 0.00 | G195: 0.00 | H195: 0.00 | I195: 0.00 | J195: 0.00 | K195: 0.00 | L195: 0.00 | M195: 0.00
A196: Лимон | B196: 3.40 | C196: 0.00 | D196: 0.00 | E196: 0.00 | F196: 0.00 | G196: 0.00 | H196: 3.40 | I196: 0.00 | J196: 0.00 | K196: 0.00 | L196: 6.80 | M196: 0.68
A197: Повидло фруктовое | B197: 25.00 | C197: 20.00 | D197: 0.00 | E197: 0.00 | F197: 0.00 | G197: 0.00 | H197: 0.00 | I197: 0.00 | J197: 0.00 | K197: 0.00 | L197: 45.00 | M197: 4.50
A198: Сок | B198: 90.00 | C198: 0.00 | D198: 90.00 | E198: 90.00 | F198: 0.00 | G198: 90.00 | H198: 90.00 | I198: 90.00 | J198: 90.00 | K198: 90.00 | L198: 720.00 | M198: 72.00
A199: Курага | B199: 0.00 | C199: 0.00 | D199: 15.30 | E199: 0.00 | F199: 0.00 | G199: 0.00 | H199: 0.00 | I199: 0.00 | J199: 0.00 | K199: 0.00 | L199: 15.30 | M199: 1.53
A200: Сухофрукты | B200: 0.00 | C200: 0.00 | D200: 0.00 | E200: 0.00 | F200: 15.30 | G200: 0.00 | H200: 0.00 | I200: 15.30 | J200: 0.00 | K200: 0.00 | L200: 30.60 | M200: 3.06
A201: Урюк | B201: 0.00 | C201: 0.00 | D201: 0.00 | E201: 0.00 | F201: 0.00 | G201: 0.00 | H201: 0.00 | I201: 0.00 | J201: 0.00 | K201: 0.00 | L201: 0.00 | M201: 0.00
A202: Изюм | B202: 0.00 | C202: 0.00 | D202: 0.00 | E202: 0.00 | F202: 15.30 | G202: 0.00 | H202: 0.00 | I202: 0.00 | J202: 0.00 | K202: 0.00 | L202: 15.30 | M202: 1.53
A203: Шиповник | B203: 0.00 | C203: 0.00 | D203: 0.00 | E203: 12.00 | F203: 0.00 | G203: 0.00 | H203: 0.00 | I203: 0.00 | J203: 0.00 | K203: 12.00 | L203: 24.00 | M203: 2.40
A204: Молоко | B204: 116.30 | C204: 285.40 | D204: 263.60 | E204: 136.00 | F204: 225.80 | G204: 268.60 | H204: 126.00 | I204: 210.00 | J204: 294.40 | K204: 192.00 | L204: 2118.10 | M204: 211.81
A205: Кефир | B205: 155.00 | C205: 0.00 | D205: 0.00 | E205: 155.00 | F205: 0.00 | G205: 0.00 | H205: 155.00 | I205: 0.00 | J205: 0.00 | K205: 155.00 | L205: 620.00 | M205: 62.00
... 26 more rows
